Workbook

Sheet Prezenční listina (hidden)
A1: ="Prezenční listina - Bystřickem kolem Vírské přehrady "&U2 -> Prezenční listina - Bystřickem kolem Vírské přehrady 2018
A2: Kategorie | B2: # | C2: Startovní číslo | D2: Příjmení | E2: Jméno | F2: Rok narození | G2: M / Ž | H2: E-mail | I2: Telefon | J2: Město | K2: Tým | L2: Datum registrace | M2: Zaplaceno? | N2: VS | U2: 2018 | Y2: Pohlaví
A3: =IF(Y3<>"Ž",IF($U$2-F3>39,IF($U$2-F3>49,IF($U$2-F3>59,IF($U$2-F3>69,IF($U$2-F3>90,"","E"),"D"),"C"),"B"),"A"),IF(Y3="Ž",IF($U$2-F3>34,IF($U$2-F3>44,IF($U$2-F3>90,"","H"),"G"),"F"))) -> B | B3: 1 | C3: 42 | D3: Fritscher | E3: Adam | F3: 1975 | G3: Muž | H3: ambo@email.cz | I3: 736533790 | K3: TJ Liga 100 Olomouc | L3: 2018-05-26 | M3: Nezaplaceno | N3: 74737479 | Y3: =IF(LEN(D3)=0," ",IF(MID(D3,LEN(D3),1)="á","Ž","M")) -> M
A4: F | B4: 2 | C4: 41 | D4: Matějíková | E4: Jana | F4: 1990 | G4: Žena | H4: matejikova.jana@centrum.cz | I4: 721162550 | K4: TJ Liga 100 Olomouc | L4: 2018-05-26 | M4: Nezaplaceno | N4: 19763815 | Y4: Ž
A5: A | B5: 3 | C5: 36 | D5: Hradecký | E5: Jaromír | F5: 1985 | G5: Muž | H5: jaromirhradecky@gmail.com | I5: 720474536 | J5: Skuteč | L5: 2018-05-26 | M5: Nezaplaceno | N5: 80027669 | Y5: M
A6: A | B6: 4 | C6: 34 | D6: Oberreiter | E6: Martin | F6: 1988 | G6: Muž | H6: bionic7@seznam.cz | I6: 725563450 | J6: Polná | L6: 2018-05-26 | M6: Nezaplaceno | N6: 90732247 | Q6: Rok nastavit v buňce T2 | Y6: M
A7: B | B7: 5 | C7: 33 | D7: Pohanka | E7: Martin | F7: 1973 | G7: Muž | H7: mpohanka@centrum.cz | I7: 734420358 | K7: Track & Field Brno | L7: 2018-05-26 | M7: Nezaplaceno | N7: 79113638 | Y7: M
A8: C | B8: 6 | C8: 30 | D8: Dvořáček | E8: Jiří | F8: 1968 | G8: Muž | H8: dvorjiri@cntrum.cz | I8: 730902579 | K8: Elite Sport Max Training | L8: 2018-05-26 | M8: Nezaplaceno | N8: 34640308 | Y8: M
A9: A | B9: 7 | C9: 29 | D9: Šebánek | E9: Petr | F9: 1979 | G9: Muž | H9: petrseban@seznam.cz | I9: 608410908 | J9: Rájec | L9: 2018-05-26 | M9: Nezaplaceno | N9: 32959754 | Y9: M
A10: A | B10: 8 | C10: 27 | D10: Kohut | E10: Jan | F10: 1985 | G10: Muž | H10: hkohut@seznam.cz | I10: 777975754 | K10: Univerzita Brno | L10: 2018-05-26 | M10: Nezaplaceno | N10: 50709775 | Y10: M
A11: F | B11: 9 | C11: 15 | D11: Trefilová | E11: Ester | F11: 1993 | G11: Žena | H11: trefilovaester@seznam.cz | I11: 731373229 | J11: Vír | L11: 2018-05-26 | M11: Nezaplaceno | N11: 33892780 | Y11: Ž
A12: A | B12: 10 | C12: 11 | D12: Vrba | E12: Tomáš | F12: 1986 | G12: Muž | H12: tomas.vrba@sseznam.cz | I12: 732916576 | J12: Bystré | L12: 2018-05-26 | M12: Nezaplaceno | N12: 41682519 | Y12: M
A13: B | B13: 11 | C13: 10 | D13: Štýbnar | E13: Zbyněk | F13: 1974 | G13: Muž | H13: z1stybnar@sseznam.cz | I13: 604646142 | K13: PTEAM | L13: 2018-05-26 | M13: Nezaplaceno | N13: 53066934 | Y13: M
A14: B | B14: 12 | C14: 8 | D14: Faja | E14: Ondřej | F14: 1976 | G14: Muž | H14: ondra.faja@seznam.cz | I14: 603364391 | J14: Brno | L14: 2018-05-18 | M14: Nezaplaceno | N14: 65561489 | Y14: M
A15: E | B15: 13 | C15: 7 | D15: Holý | E15: Josef | F15: 1941 | G15: Muž | H15: holyjosef@upcmail.cz | I15: 732789425 | K15: AC Moravská Slavia | L15: 2018-05-26 | M15: Nezaplaceno | N15: 19550201 | Y15: M
A16: A | B16: 14 | C16: 3 | D16: Hanák | E16: Jakub | F16: 1986 | G16: Muž | H16: jacobakiro@gmail.com | I16: 724929121 | J16: Vír | K16: Plant Powered Runners | L16: 2018-04-29 | M16: Nezaplaceno | N16: 2127935 | Y16: M
A17: B | B17: 15 | C17: 2 | D17: Kuneš | E17: David | F17: 1974 | G17: Muž | H17: dkunes@post.cz | I17: 604820537 | J17: Tišnov | K17: EURUNNER | L17: 2018-05-26 | M17: Nezaplaceno | N17: 92891832 | Y17: M
A18: B | B18: 16 | C18: 6 | D18: Šerák | E18: Martin | F18: 1978 | G18: Muž | H18: sherry@sendmail.cz | K18: Sokol Bílovice n. Svit. | L18: 2018-05-23 | M18: Nezaplaceno | N18: 54961417 | Y18: M
A19: C | B19: 17 | C19: 23 | D19: Šimunek | E19: Martin | F19: 1966 | G19: Muž | H19: simunek@servisdmychadel.cz | I19: 732335291 | J19: Modřice | K19: Modřice | L19: 2018-05-22 | M19: Nezaplaceno | N19: 98649068 | Y19: M
A20: H | B20: 18 | D20: Podmelová | E20: Vilma | F20: 1962 | G20: Žena | H20: vilka@centrum.cz | J20: Brno | K20: ČAU | L20: 2018-05-21 | M20: Nezaplaceno | N20: 61942551 | Y20: Ž
A21: G | B21: 19 | D21: Novotná | E21: Zuzana | F21: 1981 | G21: Žena | H21: zuzana.novotna@atlas.cz | I21: 608448871 | L21: 2018-05-20 | M21: Nezaplaceno | N21: 19761325 | Y21: Ž
A22: F | B22: 20 | C22: 37 | D22: Tomková | E22: Iva | F22: 1990 | G22: Žena | H22: iv.atom@email.cz | J22: Letovice | K22: Letovice | L22: 2018-05-19 | M22: Nezaplaceno | N22: 45954170 | Y22: Ž
A23: C | B23: 21 | C23: 24 | D23: Nosek | E23: Pavel | F23: 1965 | G23: Muž | H23: nosek_pavel@volny.cz | I23: 777630690 | J23: Slavkov u Brna | K23: ASK Slavkov | L23: 2018-05-19 | M23: Nezaplaceno | N23: 84422486 | Y23: M
A24: A | B24: 22 | C24: 26 | D24: Hakl | E24: Zdeněk | F24: 1982 | G24: Muž | H24: haklzdenek@seznam.cz | I24: 776276726 | J24: Žďár nad Sázavou | K24: SK Tri Cyklochlubna | L24: 2018-05-19 | M24: Nezaplaceno | N24: 37608342 | Y24: M
A25: B | B25: 23 | C25: 44 | D25: Kratochvíl | E25: Jaroslav | F25: 1977 | G25: Muž | H25: kratochviljaroslav77@seznam.cz | I25: 737986319 | J25: Moravany | K25: SDH Hluboké | L25: 2018-05-19 | M25: Nezaplaceno | N25: 36825554 | Y25: M
A26: G | B26: 24 | C26: 32 | D26: Klinecká | E26: Jana | F26: 1981 | G26: Žena | H26: j.klinecka@seznam.cz | I26: 774350664 | J26: Hlinsko | K26: MK Hlinsko | L26: 2018-05-18 | M26: Nezaplaceno | N26: 46941351 | Y26: Ž
A27: C | B27: 25 | C27: 14 | D27: Ožana | E27: Václav | F27: 1964 | G27: Muž | H27: vaclav.ozana@seznam.cz | J27: Nové Město na Moravě | K27: TJ Nové Město na Moravě | L27: 2018-05-18 | M27: Nezaplaceno | N27: 78709905 | Y27: M
A28: A | B28: 26 | C28: 40 | D28: Lenhart | E28: Vít | F28: 1982 | G28: Muž | H28: v.lenhart@seznam.cz | I28: 777570694 | J28: Přerov | K28: TJ Liga 100 Olomouc | L28: 2018-05-18 | M28: Nezaplaceno | N28: 72695504 | Y28: M
A29: B | B29: 27 | C29: 35 | D29: Vintrlík | E29: Martin | F29: 1977 | G29: Muž | H29: vintrlik@gmail.com | I29: 602770915 | J29: Křepice | K29: Triatlon Křepice | L29: 2018-05-17 | M29: Nezaplaceno | N29: 90045605 | Y29: M
A30: H | B30: 28 | C30: 12 | D30: Breburdová | E30: Hana | F30: 1961 | G30: Žena | H30: hana.kb@centrum.cz | I30: 723364854 | J30: 19800 Praha 9, Tálinská 999 | K30: Maraton klub Kladno | L30: 2018-05-16 | M30: Nezaplaceno | N30: 39559492 | Y30: Ž
A31: B | B31: 29 | C31: 28 | D31: Kupka | E31: Pavel | F31: 1975 | G31: Muž | H31: kupkovic@volny.cz | I31: 776237257 | J31: Lukovany | L31: 2018-05-16 | M31: Nezaplaceno | N31: 232347 | Y31: M
A32: A | B32: 30 | D32: Kremeň | E32: Martin | F32: 1994 | G32: Muž | H32: Kremen.M@seznam.cz | I32: 733288144 | J32: Svitavy | L32: 2018-05-14 | M32: Nezaplaceno | N32: 11727445 | Y32: M
A33: G | B33: 31 | C33: 16 | D33: Kuncová | E33: Markéta | F33: 1982 | G33: Žena | H33: kuncmarketa@centrum.cz | I33: 702189396 | J33: Rožná | L33: 2018-05-14 | M33: Nezaplaceno | N33: 64726521 | Y33: Ž
A34: C | B34: 32 | C34: 31 | D34: Žák | E34: Miroslav | F34: 1965 | G34: Muž | H34: boba.z@seznam.cz | I34: 720646989 | J34: Stříbrné Hory | L34: 2018-05-13 | M34: Nezaplaceno | N34: 9373852 | Y34: M
A35: =IF(Y35<>"Ž",IF($U$2-F35>39,IF($U$2-F35>49,IF($U$2-F35>59,IF($U$2-F35>69,IF($U$2-F35>90,"","E"),"D"),"C"),"B"),"A"),IF(Y35="Ž",IF($U$2-F35>34,IF($U$2-F35>44,IF($U$2-F35>90,"","H"),"G"),"F"))) -> C | B35: 33 | C35: 19 | D35: Hýbl | E35: Jiří | F35: 1967 | G35: Muž | H35: hybljura@seznam.cz | I35: 721721392 | J35: Hrušovany u Brna | K35: Hrušovany u Brna | L35: 2018-05-13 | M35: Nezaplaceno | N35: 38342570 | Y35: =IF(LEN(D35)=0," ",IF(MID(D35,LEN(D35),1)="á","Ž","M")) -> M
A36: C | B36: 34 | C36: 22 | D36: Svoboda | E36: Petr | F36: 1968 | G36: Muž | H36: pesvoboda@bvk.cz | I36: 777289161 | J36: Brno | K36: AC Moravská Slavia Brno | L36: 2018-05-11 | M36: Nezaplaceno | N36: 19787461 | Y36: M
A37: A | B37: 35 | C37: 43 | D37: Glier | E37: Michal | F37: 1982 | G37: Muž | H37: Michalglier@seznam.cz | I37: 736121372 | J37: Doubravník | K37: SDH Doubravník | L37: 2018-05-06 | M37: Nezaplaceno | N37: 46228470 | Y37: M
A38: A | B38: 36 | C38: 9 | D38: Labedz | E38: Jan | F38: 1984 | G38: Muž | H38: jan.labedz@gmail.com | I38: 797977797 | J38: Svinošice | L38: 2018-05-02 | M38: Nezaplaceno | N38: 38263288 | Y38: M
A39: F | B39: 37 | C39: 4 | D39: Pešáková | E39: Mirka | F39: 1985 | G39: Žena | H39: Pesakova.Mirka@seznam.cz | I39: 773656679 | J39: Tetčice | K39: AC Racers | L39: 2018-05-02 | M39: Nezaplaceno | N39: 63869881 | Y39: Ž
A40: A | B40: 38 | C40: 25 | D40: Košek | E40: Martin | F40: 1984 | G40: Muž | H40: martin.kosek@gmail.com | I40: 777001377 | J40: Brno | L40: 2018-04-29 | M40: Nezaplaceno | N40: 33299342 | Y40: M
A41: G | B41: 39 | C41: 38 | D41: Komárková | E41: Zdeňka | F41: 1974 | G41: Žena | H41: zdekom252@seznam.cz | J41: Olešnice na Mor. | K41: SDH Bolešín | L41: 2018-04-27 | M41: Nezaplaceno | N41: 58699195 | Y41: Ž
A42: A | B42: 40 | C42: 21 | D42: Toman | E42: Radek | F42: 1987 | G42: Muž | H42: radektomanu@seznam.cz | I42: 736148211 | J42: Litomysl | K42: AFK Kornice | L42: 2018-04-25 | M42: Nezaplaceno | N42: 89836754 | Y42: M
A43: A | B43: 41 | C43: 13 | D43: Koutský | E43: Tomáš | F43: 1987 | G43: Muž | H43: koutskyt@gmail.com | I43: 775862730 | K43: Ledová stěna Vír | L43: 2018-04-19 | M43: Nezaplaceno | N43: 69326216 | Y43: M
A44: B | B44: 42 | C44: 20 | D44: Kropáček | E44: Jaroslav | F44: 1970 | G44: Muž | H44: jarda.krop@email.cz | I44: 608629531 | J44: Brno | L44: 2018-04-18 | M44: Nezaplaceno | N44: 47610013 | Y44: M
A45: C | B45: 43 | C45: 17 | D45: Krátký | E45: Josef | F45: 1965 | G45: Muž | H45: cagwe@seznam.cz | I45: 775651040 | J45: Vysoká nad Labem | K45: Hvězda Pardubice | L45: 2018-04-17 | M45: Nezaplaceno | N45: 66495966 | Y45: M
A46: D | B46: 44 | C46: 18 | D46: Mareš | E46: Bohumil | F46: 1951 | G46: Muž | H46: maresbo@seznam.cz | I46: 734312683 | J46: Brno | K46: Posilovna Průvan Brno | L46: 2018-04-16 | M46: Nezaplaceno | N46: 77869723 | Y46: M
A47: D | B47: 45 | D47: Sedláček | E47: Svatopluk | F47: 1957 | G47: Muž | H47: ssedlacek@volny.cz | I47: 602764685 | J47: Brno | K47: AC Moravská Slavia Brno | L47: 2018-04-16 | M47: Nezaplaceno | N47: 23376992 | Y47: M
A48: A | B48: 46 | C48: 1 | D48: Hübner | E48: Tomáš | F48: 1979 | G48: Muž | H48: tomas.hubner@gmail.com | I48: 777565711 | J48: Brno | K48: SDH Bolešín | L48: 2018-04-16 | M48: Nezaplaceno | N48: 86322273 | Y48: M
A49: A | B49: 47 | C49: 5 | D49: Hrdina | E49: Tomáš | F49: 1979 | G49: Muž | H49: tom@tomejc.cz | I49: 603216549 | J49: Rosice | K49: AC Moravská Slavia Brno | L49: 2018-03-28 | M49: Nezaplaceno | N49: 1923374 | Y49: M
A50: B | B50: 48 | C50: 39 | D50: Konečný | E50: Libor | F50: 1971 | G50: Muž | H50: kovokonecny@seznam.cz | I50: 608879716 | J50: Kuřim | L50: 2018-03-24 | M50: Nezaplaceno | N50: 55376710 | Y50: M
A51: F | B51: 49 | D51: Vlachová Hutová | E51: Eliška | F51: 1988 | G51: Žena | H51: ehutova@gmail.com | I51: 732274564 | J51: Brno | K51: Tréninková skupina Tomáše Ondráčka | L51: 2018-03-06 | M51: Nezaplaceno | N51: 14161748 | Y51: Ž
A67: =IF(Y67<>"Ž",IF($U$2-F67>39,IF($U$2-F67>49,IF($U$2-F67>59,IF($U$2-F67>69,IF($U$2-F67>90,"","E"),"D"),"C"),"B"),"A"),IF(Y67="Ž",IF($U$2-F67>34,IF($U$2-F67>44,IF($U$2-F67>90,"","H"),"G"),"F"))) ->  | Y67: =IF(LEN(D67)=0," ",IF(MID(D67,LEN(D67),1)="á","Ž","M")) -> 
A99: =IF(Y99<>"Ž",IF($U$2-F99>39,IF($U$2-F99>49,IF($U$2-F99>59,IF($U$2-F99>69,IF($U$2-F99>90,"","E"),"D"),"C"),"B"),"A"),IF(Y99="Ž",IF($U$2-F99>34,IF($U$2-F99>44,IF($U$2-F99>90,"","H"),"G"),"F"))) ->  | Y99: =IF(LEN(D99)=0," ",IF(MID(D99,LEN(D99),1)="á","Ž","M")) -> 
A131: =IF(Y131<>"Ž",IF($U$2-F131>39,IF($U$2-F131>49,IF($U$2-F131>59,IF($U$2-F131>69,IF($U$2-F131>90,"","E"),"D"),"C"),"B"),"A"),IF(Y131="Ž",IF($U$2-F131>34,IF($U$2-F131>44,IF($U$2-F131>90,"","H"),"G"),"F"))) ->  | Y131: =IF(LEN(D131)=0," ",IF(MID(D131,LEN(D131),1)="á","Ž","M")) -> 

Sheet Startovní listina
A1: ="Startovní listina - Bystřickem kolem Vírské přehrady "&'Prezenční listina'!U2 -> Startovní listina - Bystřickem kolem Vírské přehrady 2018
A2: 2018-05-26 | J2: Počet přihlášených v jednotlivých kategoriích
A3: ='Prezenční listina'!U2-2004&". ročník" -> 14. ročník | M3: Celkem startujících
A4: # | B4: Startovní číslo | C4: Příjmení | D4: Jméno | E4: Narození | F4: Město | G4: Tým | H4: Kategorie
A5: 1 | B5: =IF('Prezenční listina'!C48=0,"",'Prezenční listina'!C48) -> 1 | C5: =IF('Prezenční listina'!C48=0,"",'Prezenční listina'!D48) -> Hübner | D5: =IF('Prezenční listina'!C48=0,"",'Prezenční listina'!E48) -> Tomáš | E5: =IF('Prezenční listina'!C48=0,"",'Prezenční listina'!F48) -> 1979 | F5: =IF('Prezenční listina'!C48=0,"",'Prezenční listina'!J48) -> Brno | G5: =IF('Prezenční listina'!C48=0,"",'Prezenční listina'!K48) -> SDH Bolešín | H5: =IF('Prezenční listina'!C48=0,"",'Prezenční listina'!A48) -> A | J5: A: | K5: =COUNTIF($H$5:$H$141,"A") -> 15 | M5: =COUNT(B5:B141) -> 44
A6: =IF(B6="","",A5+1) -> 2 | B6: =IF('Prezenční listina'!C17=0,"",'Prezenční listina'!C17) -> 2 | C6: =IF('Prezenční listina'!C17=0,"",'Prezenční listina'!D17) -> Kuneš | D6: =IF('Prezenční listina'!C17=0,"",'Prezenční listina'!E17) -> David | E6: =IF('Prezenční listina'!C17=0,"",'Prezenční listina'!F17) -> 1974 | F6: =IF('Prezenční listina'!C17=0,"",'Prezenční listina'!J17) -> Tišnov | G6: =IF('Prezenční listina'!C17=0,"",'Prezenční listina'!K17) -> EURUNNER | H6: =IF('Prezenční listina'!C17=0,"",'Prezenční listina'!A17) -> B | J6: B: | K6: =COUNTIF($H$5:$H$141,"B") -> 11
A7: =IF(B7="","",A6+1) -> 3 | B7: =IF('Prezenční listina'!C16=0,"",'Prezenční listina'!C16) -> 3 | C7: =IF('Prezenční listina'!C16=0,"",'Prezenční listina'!D16) -> Hanák | D7: =IF('Prezenční listina'!C16=0,"",'Prezenční listina'!E16) -> Jakub | E7: =IF('Prezenční listina'!C16=0,"",'Prezenční listina'!F16) -> 1986 | F7: =IF('Prezenční listina'!C16=0,"",'Prezenční listina'!J16) -> Vír | G7: =IF('Prezenční listina'!C16=0,"",'Prezenční listina'!K16) -> Plant Powered Runners | H7: =IF('Prezenční listina'!C16=0,"",'Prezenční listina'!A16) -> A | J7: C: | K7: =COUNTIF($H$5:$H$141,"C") -> 8
A8: 4 | B8: =IF('Prezenční listina'!C39=0,"",'Prezenční listina'!C39) -> 4 | C8: =IF('Prezenční listina'!C39=0,"",'Prezenční listina'!D39) -> Pešáková | D8: =IF('Prezenční listina'!C39=0,"",'Prezenční listina'!E39) -> Mirka | E8: =IF('Prezenční listina'!C39=0,"",'Prezenční listina'!F39) -> 1985 | F8: =IF('Prezenční listina'!C39=0,"",'Prezenční listina'!J39) -> Tetčice | G8: =IF('Prezenční listina'!C39=0,"",'Prezenční listina'!K39) -> AC Racers | H8: =IF('Prezenční listina'!C39=0,"",'Prezenční listina'!A39) -> F | J8: D: | K8: =COUNTIF($H$5:$H$141,"D") -> 1
A9: 5 | B9: =IF('Prezenční listina'!C49=0,"",'Prezenční listina'!C49) -> 5 | C9: =IF('Prezenční listina'!C49=0,"",'Prezenční listina'!D49) -> Hrdina | D9: =IF('Prezenční listina'!C49=0,"",'Prezenční listina'!E49) -> Tomáš | E9: =IF('Prezenční listina'!C49=0,"",'Prezenční listina'!F49) -> 1979 | F9: =IF('Prezenční listina'!C49=0,"",'Prezenční listina'!J49) -> Rosice | G9: =IF('Prezenční listina'!C49=0,"",'Prezenční listina'!K49) -> AC Moravská Slavia Brno | H9: =IF('Prezenční listina'!C49=0,"",'Prezenční listina'!A49) -> A | J9: E: | K9: =COUNTIF($H$5:$H$141,"E") -> 1
A10: 6 | B10: =IF('Prezenční listina'!C18=0,"",'Prezenční listina'!C18) -> 6 | C10: =IF('Prezenční listina'!C18=0,"",'Prezenční listina'!D18) -> Šerák | D10: =IF('Prezenční listina'!C18=0,"",'Prezenční listina'!E18) -> Martin | E10: =IF('Prezenční listina'!C18=0,"",'Prezenční listina'!F18) -> 1978 | F10: =IF('Prezenční listina'!C18=0,"",'Prezenční listina'!J18) -> 0 | G10: =IF('Prezenční listina'!C18=0,"",'Prezenční listina'!K18) -> Sokol Bílovice n. Svit. | H10: =IF('Prezenční listina'!C18=0,"",'Prezenční listina'!A18) -> B | J10: F: | K10: =COUNTIF($H$5:$H$141,"F") -> 4
A11: 7 | B11: =IF('Prezenční listina'!C15=0,"",'Prezenční listina'!C15) -> 7 | C11: =IF('Prezenční listina'!C15=0,"",'Prezenční listina'!D15) -> Holý | D11: =IF('Prezenční listina'!C15=0,"",'Prezenční listina'!E15) -> Josef | E11: =IF('Prezenční listina'!C15=0,"",'Prezenční listina'!F15) -> 1941 | F11: =IF('Prezenční listina'!C15=0,"",'Prezenční listina'!J15) -> 0 | G11: =IF('Prezenční listina'!C15=0,"",'Prezenční listina'!K15) -> AC Moravská Slavia | H11: =IF('Prezenční listina'!C15=0,"",'Prezenční listina'!A15) -> E | J11: G: | K11: =COUNTIF($H$5:$H$141,"G") -> 3
A12: 8 | B12: =IF('Prezenční listina'!C14=0,"",'Prezenční listina'!C14) -> 8 | C12: =IF('Prezenční listina'!C14=0,"",'Prezenční listina'!D14) -> Faja | D12: =IF('Prezenční listina'!C14=0,"",'Prezenční listina'!E14) -> Ondřej | E12: =IF('Prezenční listina'!C14=0,"",'Prezenční listina'!F14) -> 1976 | F12: =IF('Prezenční listina'!C14=0,"",'Prezenční listina'!J14) -> Brno | G12: =IF('Prezenční listina'!C14=0,"",'Prezenční listina'!K14) -> 0 | H12: =IF('Prezenční listina'!C14=0,"",'Prezenční listina'!A14) -> B | J12: H: | K12: =COUNTIF($H$5:$H$141,"H") -> 1
A13: 9 | B13: =IF('Prezenční listina'!C38=0,"",'Prezenční listina'!C38) -> 9 | C13: =IF('Prezenční listina'!C38=0,"",'Prezenční listina'!D38) -> Labedz | D13: =IF('Prezenční listina'!C38=0,"",'Prezenční listina'!E38) -> Jan | E13: =IF('Prezenční listina'!C38=0,"",'Prezenční listina'!F38) -> 1984 | F13: =IF('Prezenční listina'!C38=0,"",'Prezenční listina'!J38) -> Svinošice | G13: =IF('Prezenční listina'!C38=0,"",'Prezenční listina'!K38) -> 0 | H13: =IF('Prezenční listina'!C38=0,"",'Prezenční listina'!A38) -> A
A14: 10 | B14: =IF('Prezenční listina'!C13=0,"",'Prezenční listina'!C13) -> 10 | C14: =IF('Prezenční listina'!C13=0,"",'Prezenční listina'!D13) -> Štýbnar | D14: =IF('Prezenční listina'!C13=0,"",'Prezenční listina'!E13) -> Zbyněk | E14: =IF('Prezenční listina'!C13=0,"",'Prezenční listina'!F13) -> 1974 | F14: =IF('Prezenční listina'!C13=0,"",'Prezenční listina'!J13) -> 0 | G14: =IF('Prezenční listina'!C13=0,"",'Prezenční listina'!K13) -> PTEAM | H14: =IF('Prezenční listina'!C13=0,"",'Prezenční listina'!A13) -> B
A15: 11 | B15: =IF('Prezenční listina'!C12=0,"",'Prezenční listina'!C12) -> 11 | C15: =IF('Prezenční listina'!C12=0,"",'Prezenční listina'!D12) -> Vrba | D15: =IF('Prezenční listina'!C12=0,"",'Prezenční listina'!E12) -> Tomáš | E15: =IF('Prezenční listina'!C12=0,"",'Prezenční listina'!F12) -> 1986 | F15: =IF('Prezenční listina'!C12=0,"",'Prezenční listina'!J12) -> Bystré | G15: =IF('Prezenční listina'!C12=0,"",'Prezenční listina'!K12) -> 0 | H15: =IF('Prezenční listina'!C12=0,"",'Prezenční listina'!A12) -> A
A16: 12 | B16: =IF('Prezenční listina'!C30=0,"",'Prezenční listina'!C30) -> 12 | C16: =IF('Prezenční listina'!C30=0,"",'Prezenční listina'!D30) -> Breburdová | D16: =IF('Prezenční listina'!C30=0,"",'Prezenční listina'!E30) -> Hana | E16: =IF('Prezenční listina'!C30=0,"",'Prezenční listina'!F30) -> 1961 | F16: =IF('Prezenční listina'!C30=0,"",'Prezenční listina'!J30) -> 19800 Praha 9, Tálinská 999 | G16: =IF('Prezenční listina'!C30=0,"",'Prezenční listina'!K30) -> Maraton klub Kladno | H16: =IF('Prezenční listina'!C30=0,"",'Prezenční listina'!A30) -> H
A17: 13 | B17: =IF('Prezenční listina'!C43=0,"",'Prezenční listina'!C43) -> 13 | C17: =IF('Prezenční listina'!C43=0,"",'Prezenční listina'!D43) -> Koutský | D17: =IF('Prezenční listina'!C43=0,"",'Prezenční listina'!E43) -> Tomáš | E17: =IF('Prezenční listina'!C43=0,"",'Prezenční listina'!F43) -> 1987 | F17: =IF('Prezenční listina'!C43=0,"",'Prezenční listina'!J43) -> 0 | G17: =IF('Prezenční listina'!C43=0,"",'Prezenční listina'!K43) -> Ledová stěna Vír | H17: =IF('Prezenční listina'!C43=0,"",'Prezenční listina'!A43) -> A
A18: 14 | B18: =IF('Prezenční listina'!C27=0,"",'Prezenční listina'!C27) -> 14 | C18: =IF('Prezenční listina'!C27=0,"",'Prezenční listina'!D27) -> Ožana | D18: =IF('Prezenční listina'!C27=0,"",'Prezenční listina'!E27) -> Václav | E18: =IF('Prezenční listina'!C27=0,"",'Prezenční listina'!F27) -> 1964 | F18: =IF('Prezenční listina'!C27=0,"",'Prezenční listina'!J27) -> Nové Město na Moravě | G18: =IF('Prezenční listina'!C27=0,"",'Prezenční listina'!K27) -> TJ Nové Město na Moravě | H18: =IF('Prezenční listina'!C27=0,"",'Prezenční listina'!A27) -> C
A19: 15 | B19: =IF('Prezenční listina'!C11=0,"",'Prezenční listina'!C11) -> 15 | C19: =IF('Prezenční listina'!C11=0,"",'Prezenční listina'!D11) -> Trefilová | D19: =IF('Prezenční listina'!C11=0,"",'Prezenční listina'!E11) -> Ester | E19: =IF('Prezenční listina'!C11=0,"",'Prezenční listina'!F11) -> 1993 | F19: =IF('Prezenční listina'!C11=0,"",'Prezenční listina'!J11) -> Vír | G19: =IF('Prezenční listina'!C11=0,"",'Prezenční listina'!K11) -> 0 | H19: =IF('Prezenční listina'!C11=0,"",'Prezenční listina'!A11) -> F
A20: 16 | B20: =IF('Prezenční listina'!C33=0,"",'Prezenční listina'!C33) -> 16 | C20: =IF('Prezenční listina'!C33=0,"",'Prezenční listina'!D33) -> Kuncová | D20: =IF('Prezenční listina'!C33=0,"",'Prezenční listina'!E33) -> Markéta | E20: =IF('Prezenční listina'!C33=0,"",'Prezenční listina'!F33) -> 1982 | F20: =IF('Prezenční listina'!C33=0,"",'Prezenční listina'!J33) -> Rožná | G20: =IF('Prezenční listina'!C33=0,"",'Prezenční listina'!K33) -> 0 | H20: =IF('Prezenční listina'!C33=0,"",'Prezenční listina'!A33) -> G
A21: 17 | B21: =IF('Prezenční listina'!C45=0,"",'Prezenční listina'!C45) -> 17 | C21: =IF('Prezenční listina'!C45=0,"",'Prezenční listina'!D45) -> Krátký | D21: =IF('Prezenční listina'!C45=0,"",'Prezenční listina'!E45) -> Josef | E21: =IF('Prezenční listina'!C45=0,"",'Prezenční listina'!F45) -> 1965 | F21: =IF('Prezenční listina'!C45=0,"",'Prezenční listina'!J45) -> Vysoká nad Labem | G21: =IF('Prezenční listina'!C45=0,"",'Prezenční listina'!K45) -> Hvězda Pardubice | H21: =IF('Prezenční listina'!C45=0,"",'Prezenční listina'!A45) -> C
A22: 18 | B22: =IF('Prezenční listina'!C46=0,"",'Prezenční listina'!C46) -> 18 | C22: =IF('Prezenční listina'!C46=0,"",'Prezenční listina'!D46) -> Mareš | D22: =IF('Prezenční listina'!C46=0,"",'Prezenční listina'!E46) -> Bohumil | E22: =IF('Prezenční listina'!C46=0,"",'Prezenční listina'!F46) -> 1951 | F22: =IF('Prezenční listina'!C46=0,"",'Prezenční listina'!J46) -> Brno | G22: =IF('Prezenční listina'!C46=0,"",'Prezenční listina'!K46) -> Posilovna Průvan Brno | H22: =IF('Prezenční listina'!C46=0,"",'Prezenční listina'!A46) -> D
A23: 19 | B23: =IF('Prezenční listina'!C35=0,"",'Prezenční listina'!C35) -> 19 | C23: =IF('Prezenční listina'!C35=0,"",'Prezenční listina'!D35) -> Hýbl | D23: =IF('Prezenční listina'!C35=0,"",'Prezenční listina'!E35) -> Jiří | E23: =IF('Prezenční listina'!C35=0,"",'Prezenční listina'!F35) -> 1967 | F23: =IF('Prezenční listina'!C35=0,"",'Prezenční listina'!J35) -> Hrušovany u Brna | G23: =IF('Prezenční listina'!C35=0,"",'Prezenční listina'!K35) -> Hrušovany u Brna | H23: =IF('Prezenční listina'!C35=0,"",'Prezenční listina'!A35) -> C
A24: 20 | B24: =IF('Prezenční listina'!C44=0,"",'Prezenční listina'!C44) -> 20 | C24: =IF('Prezenční listina'!C44=0,"",'Prezenční listina'!D44) -> Kropáček | D24: =IF('Prezenční listina'!C44=0,"",'Prezenční listina'!E44) -> Jaroslav | E24: =IF('Prezenční listina'!C44=0,"",'Prezenční listina'!F44) -> 1970 | F24: =IF('Prezenční listina'!C44=0,"",'Prezenční listina'!J44) -> Brno | G24: =IF('Prezenční listina'!C44=0,"",'Prezenční listina'!K44) -> 0 | H24: =IF('Prezenční listina'!C44=0,"",'Prezenční listina'!A44) -> B
A25: 21 | B25: =IF('Prezenční listina'!C42=0,"",'Prezenční listina'!C42) -> 21 | C25: =IF('Prezenční listina'!C42=0,"",'Prezenční listina'!D42) -> Toman | D25: =IF('Prezenční listina'!C42=0,"",'Prezenční listina'!E42) -> Radek | E25: =IF('Prezenční listina'!C42=0,"",'Prezenční listina'!F42) -> 1987 | F25: =IF('Prezenční listina'!C42=0,"",'Prezenční listina'!J42) -> Litomysl | G25: =IF('Prezenční listina'!C42=0,"",'Prezenční listina'!K42) -> AFK Kornice | H25: =IF('Prezenční listina'!C42=0,"",'Prezenční listina'!A42) -> A
A26: 22 | B26: =IF('Prezenční listina'!C36=0,"",'Prezenční listina'!C36) -> 22 | C26: =IF('Prezenční listina'!C36=0,"",'Prezenční listina'!D36) -> Svoboda | D26: =IF('Prezenční listina'!C36=0,"",'Prezenční listina'!E36) -> Petr | E26: =IF('Prezenční listina'!C36=0,"",'Prezenční listina'!F36) -> 1968 | F26: =IF('Prezenční listina'!C36=0,"",'Prezenční listina'!J36) -> Brno | G26: =IF('Prezenční listina'!C36=0,"",'Prezenční listina'!K36) -> AC Moravská Slavia Brno | H26: =IF('Prezenční listina'!C36=0,"",'Prezenční listina'!A36) -> C
A27: 23 | B27: =IF('Prezenční listina'!C19=0,"",'Prezenční listina'!C19) -> 23 | C27: =IF('Prezenční listina'!C19=0,"",'Prezenční listina'!D19) -> Šimunek | D27: =IF('Prezenční listina'!C19=0,"",'Prezenční listina'!E19) -> Martin | E27: =IF('Prezenční listina'!C19=0,"",'Prezenční listina'!F19) -> 1966 | F27: =IF('Prezenční listina'!C19=0,"",'Prezenční listina'!J19) -> Modřice | G27: =IF('Prezenční listina'!C19=0,"",'Prezenční listina'!K19) -> Modřice | H27: =IF('Prezenční listina'!C19=0,"",'Prezenční listina'!A19) -> C
A28: 24 | B28: =IF('Prezenční listina'!C23=0,"",'Prezenční listina'!C23) -> 24 | C28: =IF('Prezenční listina'!C23=0,"",'Prezenční listina'!D23) -> Nosek | D28: =IF('Prezenční listina'!C23=0,"",'Prezenční listina'!E23) -> Pavel | E28: =IF('Prezenční listina'!C23=0,"",'Prezenční listina'!F23) -> 1965 | F28: =IF('Prezenční listina'!C23=0,"",'Prezenční listina'!J23) -> Slavkov u Brna | G28: =IF('Prezenční listina'!C23=0,"",'Prezenční listina'!K23) -> ASK Slavkov | H28: =IF('Prezenční listina'!C23=0,"",'Prezenční listina'!A23) -> C
A29: 25 | B29: =IF('Prezenční listina'!C40=0,"",'Prezenční listina'!C40) -> 25 | C29: =IF('Prezenční listina'!C40=0,"",'Prezenční listina'!D40) -> Košek | D29: =IF('Prezenční listina'!C40=0,"",'Prezenční listina'!E40) -> Martin | E29: =IF('Prezenční listina'!C40=0,"",'Prezenční listina'!F40) -> 1984 | F29: =IF('Prezenční listina'!C40=0,"",'Prezenční listina'!J40) -> Brno | G29: =IF('Prezenční listina'!C40=0,"",'Prezenční listina'!K40) -> 0 | H29: =IF('Prezenční listina'!C40=0,"",'Prezenční listina'!A40) -> A
A30: 26 | B30: =IF('Prezenční listina'!C24=0,"",'Prezenční listina'!C24) -> 26 | C30: =IF('Prezenční listina'!C24=0,"",'Prezenční listina'!D24) -> Hakl | D30: =IF('Prezenční listina'!C24=0,"",'Prezenční listina'!E24) -> Zdeněk | E30: =IF('Prezenční listina'!C24=0,"",'Prezenční listina'!F24) -> 1982 | F30: =IF('Prezenční listina'!C24=0,"",'Prezenční listina'!J24) -> Žďár nad Sázavou | G30: =IF('Prezenční listina'!C24=0,"",'Prezenční listina'!K24) -> SK Tri Cyklochlubna | H30: =IF('Prezenční listina'!C24=0,"",'Prezenční listina'!A24) -> A
A31: 27 | B31: =IF('Prezenční listina'!C10=0,"",'Prezenční listina'!C10) -> 27 | C31: =IF('Prezenční listina'!C10=0,"",'Prezenční listina'!D10) -> Kohut | D31: =IF('Prezenční listina'!C10=0,"",'Prezenční listina'!E10) -> Jan | E31: =IF('Prezenční listina'!C10=0,"",'Prezenční listina'!F10) -> 1985 | F31: =IF('Prezenční listina'!C10=0,"",'Prezenční listina'!J10) -> 0 | G31: =IF('Prezenční listina'!C10=0,"",'Prezenční listina'!K10) -> Univerzita Brno | H31: =IF('Prezenční listina'!C10=0,"",'Prezenční listina'!A10) -> A
A32: 28 | B32: =IF('Prezenční listina'!C31=0,"",'Prezenční listina'!C31) -> 28 | C32: =IF('Prezenční listina'!C31=0,"",'Prezenční listina'!D31) -> Kupka | D32: =IF('Prezenční listina'!C31=0,"",'Prezenční listina'!E31) -> Pavel | E32: =IF('Prezenční listina'!C31=0,"",'Prezenční listina'!F31) -> 1975 | F32: =IF('Prezenční listina'!C31=0,"",'Prezenční listina'!J31) -> Lukovany | G32: =IF('Prezenční listina'!C31=0,"",'Prezenční listina'!K31) -> 0 | H32: =IF('Prezenční listina'!C31=0,"",'Prezenční listina'!A31) -> B
A33: 29 | B33: =IF('Prezenční listina'!C9=0,"",'Prezenční listina'!C9) -> 29 | C33: =IF('Prezenční listina'!C9=0,"",'Prezenční listina'!D9) -> Šebánek | D33: =IF('Prezenční listina'!C9=0,"",'Prezenční listina'!E9) -> Petr | E33: =IF('Prezenční listina'!C9=0,"",'Prezenční listina'!F9) -> 1979 | F33: =IF('Prezenční listina'!C9=0,"",'Prezenční listina'!J9) -> Rájec | G33: =IF('Prezenční listina'!C9=0,"",'Prezenční listina'!K9) -> 0 | H33: =IF('Prezenční listina'!C9=0,"",'Prezenční listina'!A9) -> A
A34: 30 | B34: =IF('Prezenční listina'!C8=0,"",'Prezenční listina'!C8) -> 30 | C34: =IF('Prezenční listina'!C8=0,"",'Prezenční listina'!D8) -> Dvořáček | D34: =IF('Prezenční listina'!C8=0,"",'Prezenční listina'!E8) -> Jiří | E34: =IF('Prezenční listina'!C8=0,"",'Prezenční listina'!F8) -> 1968 | F34: =IF('Prezenční listina'!C8=0,"",'Prezenční listina'!J8) -> 0 | G34: =IF('Prezenční listina'!C8=0,"",'Prezenční listina'!K8) -> Elite Sport Max Training | H34: =IF('Prezenční listina'!C8=0,"",'Prezenční listina'!A8) -> C
A35: 31 | B35: =IF('Prezenční listina'!C34=0,"",'Prezenční listina'!C34) -> 31 | C35: =IF('Prezenční listina'!C34=0,"",'Prezenční listina'!D34) -> Žák | D35: =IF('Prezenční listina'!C34=0,"",'Prezenční listina'!E34) -> Miroslav | E35: =IF('Prezenční listina'!C34=0,"",'Prezenční listina'!F34) -> 1965 | F35: =IF('Prezenční listina'!C34=0,"",'Prezenční listina'!J34) -> Stříbrné Hory | G35: =IF('Prezenční listina'!C34=0,"",'Prezenční listina'!K34) -> 0 | H35: =IF('Prezenční listina'!C34=0,"",'Prezenční listina'!A34) -> C
A36: 32 | B36: =IF('Prezenční listina'!C26=0,"",'Prezenční listina'!C26) -> 32 | C36: =IF('Prezenční listina'!C26=0,"",'Prezenční listina'!D26) -> Klinecká | D36: =IF('Prezenční listina'!C26=0,"",'Prezenční listina'!E26) -> Jana | E36: =IF('Prezenční listina'!C26=0,"",'Prezenční listina'!F26) -> 1981 | F36: =IF('Prezenční listina'!C26=0,"",'Prezenční listina'!J26) -> Hlinsko | G36: =IF('Prezenční listina'!C26=0,"",'Prezenční listina'!K26) -> MK Hlinsko | H36: =IF('Prezenční listina'!C26=0,"",'Prezenční listina'!A26) -> G
A37: 33 | B37: =IF('Prezenční listina'!C7=0,"",'Prezenční listina'!C7) -> 33 | C37: =IF('Prezenční listina'!C7=0,"",'Prezenční listina'!D7) -> Pohanka | D37: =IF('Prezenční listina'!C7=0,"",'Prezenční listina'!E7) -> Martin | E37: =IF('Prezenční listina'!C7=0,"",'Prezenční listina'!F7) -> 1973 | F37: =IF('Prezenční listina'!C7=0,"",'Prezenční listina'!J7) -> 0 | G37: =IF('Prezenční listina'!C7=0,"",'Prezenční listina'!K7) -> Track & Field Brno | H37: =IF('Prezenční listina'!C7=0,"",'Prezenční listina'!A7) -> B
A38: 34 | B38: =IF('Prezenční listina'!C6=0,"",'Prezenční listina'!C6) -> 34 | C38: =IF('Prezenční listina'!C6=0,"",'Prezenční listina'!D6) -> Oberreiter | D38: =IF('Prezenční listina'!C6=0,"",'Prezenční listina'!E6) -> Martin | E38: =IF('Prezenční listina'!C6=0,"",'Prezenční listina'!F6) -> 1988 | F38: =IF('Prezenční listina'!C6=0,"",'Prezenční listina'!J6) -> Polná | G38: =IF('Prezenční listina'!C6=0,"",'Prezenční listina'!K6) -> 0 | H38: =IF('Prezenční listina'!C6=0,"",'Prezenční listina'!A6) -> A
A39: 35 | B39: =IF('Prezenční listina'!C29=0,"",'Prezenční listina'!C29) -> 35 | C39: =IF('Prezenční listina'!C29=0,"",'Prezenční listina'!D29) -> Vintrlík | D39: =IF('Prezenční listina'!C29=0,"",'Prezenční listina'!E29) -> Martin | E39: =IF('Prezenční listina'!C29=0,"",'Prezenční listina'!F29) -> 1977 | F39: =IF('Prezenční listina'!C29=0,"",'Prezenční listina'!J29) -> Křepice | G39: =IF('Prezenční listina'!C29=0,"",'Prezenční listina'!K29) -> Triatlon Křepice | H39: =IF('Prezenční listina'!C29=0,"",'Prezenční listina'!A29) -> B
A40: 36 | B40: =IF('Prezenční listina'!C5=0,"",'Prezenční listina'!C5) -> 36 | C40: =IF('Prezenční listina'!C5=0,"",'Prezenční listina'!D5) -> Hradecký | D40: =IF('Prezenční listina'!C5=0,"",'Prezenční listina'!E5) -> Jaromír | E40: =IF('Prezenční listina'!C5=0,"",'Prezenční listina'!F5) -> 1985 | F40: =IF('Prezenční listina'!C5=0,"",'Prezenční listina'!J5) -> Skuteč | G40: =IF('Prezenční listina'!C5=0,"",'Prezenční listina'!K5) -> 0 | H40: =IF('Prezenční listina'!C5=0,"",'Prezenční listina'!A5) -> A
A41: 37 | B41: =IF('Prezenční listina'!C22=0,"",'Prezenční listina'!C22) -> 37 | C41: =IF('Prezenční listina'!C22=0,"",'Prezenční listina'!D22) -> Tomková | D41: =IF('Prezenční listina'!C22=0,"",'Prezenční listina'!E22) -> Iva | E41: =IF('Prezenční listina'!C22=0,"",'Prezenční listina'!F22) -> 1990 | F41: =IF('Prezenční listina'!C22=0,"",'Prezenční listina'!J22) -> Letovice | G41: =IF('Prezenční listina'!C22=0,"",'Prezenční listina'!K22) -> Letovice | H41: =IF('Prezenční listina'!C22=0,"",'Prezenční listina'!A22) -> F
A42: 38 | B42: =IF('Prezenční listina'!C41=0,"",'Prezenční listina'!C41) -> 38 | C42: =IF('Prezenční listina'!C41=0,"",'Prezenční listina'!D41) -> Komárková | D42: =IF('Prezenční listina'!C41=0,"",'Prezenční listina'!E41) -> Zdeňka | E42: =IF('Prezenční listina'!C41=0,"",'Prezenční listina'!F41) -> 1974 | F42: =IF('Prezenční listina'!C41=0,"",'Prezenční listina'!J41) -> Olešnice na Mor. | G42: =IF('Prezenční listina'!C41=0,"",'Prezenční listina'!K41) -> SDH Bolešín | H42: =IF('Prezenční listina'!C41=0,"",'Prezenční listina'!A41) -> G
A43: 39 | B43: =IF('Prezenční listina'!C50=0,"",'Prezenční listina'!C50) -> 39 | C43: =IF('Prezenční listina'!C50=0,"",'Prezenční listina'!D50) -> Konečný | D43: =IF('Prezenční listina'!C50=0,"",'Prezenční listina'!E50) -> Libor | E43: =IF('Prezenční listina'!C50=0,"",'Prezenční listina'!F50) -> 1971 | F43: =IF('Prezenční listina'!C50=0,"",'Prezenční listina'!J50) -> Kuřim | G43: =IF('Prezenční listina'!C50=0,"",'Prezenční listina'!K50) -> 0 | H43: =IF('Prezenční listina'!C50=0,"",'Prezenční listina'!A50) -> B
A44: 40 | B44: =IF('Prezenční listina'!C28=0,"",'Prezenční listina'!C28) -> 40 | C44: =IF('Prezenční listina'!C28=0,"",'Prezenční listina'!D28) -> Lenhart | D44: =IF('Prezenční listina'!C28=0,"",'Prezenční listina'!E28) -> Vít | E44: =IF('Prezenční listina'!C28=0,"",'Prezenční listina'!F28) -> 1982 | F44: =IF('Prezenční listina'!C28=0,"",'Prezenční listina'!J28) -> Přerov | G44: =IF('Prezenční listina'!C28=0,"",'Prezenční listina'!K28) -> TJ Liga 100 Olomouc | H44: =IF('Prezenční listina'!C28=0,"",'Prezenční listina'!A28) -> A
A45: 41 | B45: =IF('Prezenční listina'!C4=0,"",'Prezenční listina'!C4) -> 41 | C45: =IF('Prezenční listina'!C4=0,"",'Prezenční listina'!D4) -> Matějíková | D45: =IF('Prezenční listina'!C4=0,"",'Prezenční listina'!E4) -> Jana | E45: =IF('Prezenční listina'!C4=0,"",'Prezenční listina'!F4) -> 1990 | F45: =IF('Prezenční listina'!C4=0,"",'Prezenční listina'!J4) -> 0 | G45: =IF('Prezenční listina'!C4=0,"",'Prezenční listina'!K4) -> TJ Liga 100 Olomouc | H45: =IF('Prezenční listina'!C4=0,"",'Prezenční listina'!A4) -> F
A46: 42 | B46: =IF('Prezenční listina'!C3=0,"",'Prezenční listina'!C3) -> 42 | C46: =IF('Prezenční listina'!C3=0,"",'Prezenční listina'!D3) -> Fritscher | D46: =IF('Prezenční listina'!C3=0,"",'Prezenční listina'!E3) -> Adam | E46: =IF('Prezenční listina'!C3=0,"",'Prezenční listina'!F3) -> 1975 | F46: =IF('Prezenční listina'!C3=0,"",'Prezenční listina'!J3) -> 0 | G46: =IF('Prezenční listina'!C3=0,"",'Prezenční listina'!K3) -> TJ Liga 100 Olomouc | H46: =IF('Prezenční listina'!C3=0,"",'Prezenční listina'!A3) -> B
A47: 43 | B47: =IF('Prezenční listina'!C37=0,"",'Prezenční listina'!C37) -> 43 | C47: =IF('Prezenční listina'!C37=0,"",'Prezenční listina'!D37) -> Glier | D47: =IF('Prezenční listina'!C37=0,"",'Prezenční listina'!E37) -> Michal | E47: =IF('Prezenční listina'!C37=0,"",'Prezenční listina'!F37) -> 1982 | F47: =IF('Prezenční listina'!C37=0,"",'Prezenční listina'!J37) -> Doubravník | G47: =IF('Prezenční listina'!C37=0,"",'Prezenční listina'!K37) -> SDH Doubravník | H47: =IF('Prezenční listina'!C37=0,"",'Prezenční listina'!A37) -> A
A48: 44 | B48: =IF('Prezenční listina'!C25=0,"",'Prezenční listina'!C25) -> 44 | C48: =IF('Prezenční listina'!C25=0,"",'Prezenční listina'!D25) -> Kratochvíl | D48: =IF('Prezenční listina'!C25=0,"",'Prezenční listina'!E25) -> Jaroslav | E48: =IF('Prezenční listina'!C25=0,"",'Prezenční listina'!F25) -> 1977 | F48: =IF('Prezenční listina'!C25=0,"",'Prezenční listina'!J25) -> Moravany | G48: =IF('Prezenční listina'!C25=0,"",'Prezenční listina'!K25) -> SDH Hluboké | H48: =IF('Prezenční listina'!C25=0,"",'Prezenční listina'!A25) -> B
B49: =IF('Prezenční listina'!C20=0,"",'Prezenční listina'!C20) ->  | C49: =IF('Prezenční listina'!C20=0,"",'Prezenční listina'!D20) ->  | D49: =IF('Prezenční listina'!C20=0,"",'Prezenční listina'!E20) ->  | E49: =IF('Prezenční listina'!C20=0,"",'Prezenční listina'!F20) ->  | F49: =IF('Prezenční listina'!C20=0,"",'Prezenční listina'!J20) ->  | G49: =IF('Prezenční listina'!C20=0,"",'Prezenční listina'!K20) ->  | H49: =IF('Prezenční listina'!C20=0,"",'Prezenční listina'!A20) -> 
B50: =IF('Prezenční listina'!C21=0,"",'Prezenční listina'!C21) ->  | C50: =IF('Prezenční listina'!C21=0,"",'Prezenční listina'!D21) ->  | D50: =IF('Prezenční listina'!C21=0,"",'Prezenční listina'!E21) ->  | E50: =IF('Prezenční listina'!C21=0,"",'Prezenční listina'!F21) ->  | F50: =IF('Prezenční listina'!C21=0,"",'Prezenční listina'!J21) ->  | G50: =IF('Prezenční listina'!C21=0,"",'Prezenční listina'!K21) ->  | H50: =IF('Prezenční listina'!C21=0,"",'Prezenční listina'!A21) -> 
B51: =IF('Prezenční listina'!C32=0,"",'Prezenční listina'!C32) ->  | C51: =IF('Prezenční listina'!C32=0,"",'Prezenční listina'!D32) ->  | D51: =IF('Prezenční listina'!C32=0,"",'Prezenční listina'!E32) ->  | E51: =IF('Prezenční listina'!C32=0,"",'Prezenční listina'!F32) ->  | F51: =IF('Prezenční listina'!C32=0,"",'Prezenční listina'!J32) ->  | G51: =IF('Prezenční listina'!C32=0,"",'Prezenční listina'!K32) ->  | H51: =IF('Prezenční listina'!C32=0,"",'Prezenční listina'!A32) -> 
B52: =IF('Prezenční listina'!C47=0,"",'Prezenční listina'!C47) ->  | C52: =IF('Prezenční listina'!C47=0,"",'Prezenční listina'!D47) ->  | D52: =IF('Prezenční listina'!C47=0,"",'Prezenční listina'!E47) ->  | E52: =IF('Prezenční listina'!C47=0,"",'Prezenční listina'!F47) ->  | F52: =IF('Prezenční listina'!C47=0,"",'Prezenční listina'!J47) ->  | G52: =IF('Prezenční listina'!C47=0,"",'Prezenční listina'!K47) ->  | H52: =IF('Prezenční listina'!C47=0,"",'Prezenční listina'!A47) -> 
B53: =IF('Prezenční listina'!C51=0,"",'Prezenční listina'!C51) ->  | C53: =IF('Prezenční listina'!C51=0,"",'Prezenční listina'!D51) ->  | D53: =IF('Prezenční listina'!C51=0,"",'Prezenční listina'!E51) ->  | E53: =IF('Prezenční listina'!C51=0,"",'Prezenční listina'!F51) ->  | F53: =IF('Prezenční listina'!C51=0,"",'Prezenční listina'!J51) ->  | G53: =IF('Prezenční listina'!C51=0,"",'Prezenční listina'!K51) ->  | H53: =IF('Prezenční listina'!C51=0,"",'Prezenční listina'!A51) -> 
B54: =IF('Prezenční listina'!C52=0,"",'Prezenční listina'!C52) ->  | C54: =IF('Prezenční listina'!C52=0,"",'Prezenční listina'!D52) ->  | D54: =IF('Prezenční listina'!C52=0,"",'Prezenční listina'!E52) ->  | E54: =IF('Prezenční listina'!C52=0,"",'Prezenční listina'!F52) ->  | F54: =IF('Prezenční listina'!C52=0,"",'Prezenční listina'!J52) ->  | G54: =IF('Prezenční listina'!C52=0,"",'Prezenční listina'!K52) ->  | H54: =IF('Prezenční listina'!C52=0,"",'Prezenční listina'!A52) -> 
B55: =IF('Prezenční listina'!C53=0,"",'Prezenční listina'!C53) ->  | C55: =IF('Prezenční listina'!C53=0,"",'Prezenční listina'!D53) ->  | D55: =IF('Prezenční listina'!C53=0,"",'Prezenční listina'!E53) ->  | E55: =IF('Prezenční listina'!C53=0,"",'Prezenční listina'!F53) ->  | F55: =IF('Prezenční listina'!C53=0,"",'Prezenční listina'!J53) ->  | G55: =IF('Prezenční listina'!C53=0,"",'Prezenční listina'!K53) ->  | H55: =IF('Prezenční listina'!C53=0,"",'Prezenční listina'!A53) -> 
B56: =IF('Prezenční listina'!C54=0,"",'Prezenční listina'!C54) ->  | C56: =IF('Prezenční listina'!C54=0,"",'Prezenční listina'!D54) ->  | D56: =IF('Prezenční listina'!C54=0,"",'Prezenční listina'!E54) ->  | E56: =IF('Prezenční listina'!C54=0,"",'Prezenční listina'!F54) ->  | F56: =IF('Prezenční listina'!C54=0,"",'Prezenční listina'!J54) ->  | G56: =IF('Prezenční listina'!C54=0,"",'Prezenční listina'!K54) ->  | H56: =IF('Prezenční listina'!C54=0,"",'Prezenční listina'!A54) -> 
B57: =IF('Prezenční listina'!C55=0,"",'Prezenční listina'!C55) ->  | C57: =IF('Prezenční listina'!C55=0,"",'Prezenční listina'!D55) ->  | D57: =IF('Prezenční listina'!C55=0,"",'Prezenční listina'!E55) ->  | E57: =IF('Prezenční listina'!C55=0,"",'Prezenční listina'!F55) ->  | F57: =IF('Prezenční listina'!C55=0,"",'Prezenční listina'!J55) ->  | G57: =IF('Prezenční listina'!C55=0,"",'Prezenční listina'!K55) ->  | H57: =IF('Prezenční listina'!C55=0,"",'Prezenční listina'!A55) -> 
B58: =IF('Prezenční listina'!C56=0,"",'Prezenční listina'!C56) ->  | C58: =IF('Prezenční listina'!C56=0,"",'Prezenční listina'!D56) ->  | D58: =IF('Prezenční listina'!C56=0,"",'Prezenční listina'!E56) ->  | E58: =IF('Prezenční listina'!C56=0,"",'Prezenční listina'!F56) ->  | F58: =IF('Prezenční listina'!C56=0,"",'Prezenční listina'!J56) ->  | G58: =IF('Prezenční listina'!C56=0,"",'Prezenční listina'!K56) ->  | H58: =IF('Prezenční listina'!C56=0,"",'Prezenční listina'!A56) -> 
B59: =IF('Prezenční listina'!C57=0,"",'Prezenční listina'!C57) ->  | C59: =IF('Prezenční listina'!C57=0,"",'Prezenční listina'!D57) ->  | D59: =IF('Prezenční listina'!C57=0,"",'Prezenční listina'!E57) ->  | E59: =IF('Prezenční listina'!C57=0,"",'Prezenční listina'!F57) ->  | F59: =IF('Prezenční listina'!C57=0,"",'Prezenční listina'!J57) ->  | G59: =IF('Prezenční listina'!C57=0,"",'Prezenční listina'!K57) ->  | H59: =IF('Prezenční listina'!C57=0,"",'Prezenční listina'!A57) -> 
B60: =IF('Prezenční listina'!C58=0,"",'Prezenční listina'!C58) ->  | C60: =IF('Prezenční listina'!C58=0,"",'Prezenční listina'!D58) ->  | D60: =IF('Prezenční listina'!C58=0,"",'Prezenční listina'!E58) ->  | E60: =IF('Prezenční listina'!C58=0,"",'Prezenční listina'!F58) ->  | F60: =IF('Prezenční listina'!C58=0,"",'Prezenční listina'!J58) ->  | G60: =IF('Prezenční listina'!C58=0,"",'Prezenční listina'!K58) ->  | H60: =IF('Prezenční listina'!C58=0,"",'Prezenční listina'!A58) -> 
B61: =IF('Prezenční listina'!C59=0,"",'Prezenční listina'!C59) ->  | C61: =IF('Prezenční listina'!C59=0,"",'Prezenční listina'!D59) ->  | D61: =IF('Prezenční listina'!C59=0,"",'Prezenční listina'!E59) ->  | E61: =IF('Prezenční listina'!C59=0,"",'Prezenční listina'!F59) ->  | F61: =IF('Prezenční listina'!C59=0,"",'Prezenční listina'!J59) ->  | G61: =IF('Prezenční listina'!C59=0,"",'Prezenční listina'!K59) ->  | H61: =IF('Prezenční listina'!C59=0,"",'Prezenční listina'!A59) -> 
B62: =IF('Prezenční listina'!C60=0,"",'Prezenční listina'!C60) ->  | C62: =IF('Prezenční listina'!C60=0,"",'Prezenční listina'!D60) ->  | D62: =IF('Prezenční listina'!C60=0,"",'Prezenční listina'!E60) ->  | E62: =IF('Prezenční listina'!C60=0,"",'Prezenční listina'!F60) ->  | F62: =IF('Prezenční listina'!C60=0,"",'Prezenční listina'!J60) ->  | G62: =IF('Prezenční listina'!C60=0,"",'Prezenční listina'!K60) ->  | H62: =IF('Prezenční listina'!C60=0,"",'Prezenční listina'!A60) -> 
B63: =IF('Prezenční listina'!C61=0,"",'Prezenční listina'!C61) ->  | C63: =IF('Prezenční listina'!C61=0,"",'Prezenční listina'!D61) ->  | D63: =IF('Prezenční listina'!C61=0,"",'Prezenční listina'!E61) ->  | E63: =IF('Prezenční listina'!C61=0,"",'Prezenční listina'!F61) ->  | F63: =IF('Prezenční listina'!C61=0,"",'Prezenční listina'!J61) ->  | G63: =IF('Prezenční listina'!C61=0,"",'Prezenční listina'!K61) ->  | H63: =IF('Prezenční listina'!C61=0,"",'Prezenční listina'!A61) -> 
B64: =IF('Prezenční listina'!C62=0,"",'Prezenční listina'!C62) ->  | C64: =IF('Prezenční listina'!C62=0,"",'Prezenční listina'!D62) ->  | D64: =IF('Prezenční listina'!C62=0,"",'Prezenční listina'!E62) ->  | E64: =IF('Prezenční listina'!C62=0,"",'Prezenční listina'!F62) ->  | F64: =IF('Prezenční listina'!C62=0,"",'Prezenční listina'!J62) ->  | G64: =IF('Prezenční listina'!C62=0,"",'Prezenční listina'!K62) ->  | H64: =IF('Prezenční listina'!C62=0,"",'Prezenční listina'!A62) -> 
B65: =IF('Prezenční listina'!C63=0,"",'Prezenční listina'!C63) ->  | C65: =IF('Prezenční listina'!C63=0,"",'Prezenční listina'!D63) ->  | D65: =IF('Prezenční listina'!C63=0,"",'Prezenční listina'!E63) ->  | E65: =IF('Prezenční listina'!C63=0,"",'Prezenční listina'!F63) ->  | F65: =IF('Prezenční listina'!C63=0,"",'Prezenční listina'!J63) ->  | G65: =IF('Prezenční listina'!C63=0,"",'Prezenční listina'!K63) ->  | H65: =IF('Prezenční listina'!C63=0,"",'Prezenční listina'!A63) -> 
B66: =IF('Prezenční listina'!C64=0,"",'Prezenční listina'!C64) ->  | C66: =IF('Prezenční listina'!C64=0,"",'Prezenční listina'!D64) ->  | D66: =IF('Prezenční listina'!C64=0,"",'Prezenční listina'!E64) ->  | E66: =IF('Prezenční listina'!C64=0,"",'Prezenční listina'!F64) ->  | F66: =IF('Prezenční listina'!C64=0,"",'Prezenční listina'!J64) ->  | G66: =IF('Prezenční listina'!C64=0,"",'Prezenční listina'!K64) ->  | H66: =IF('Prezenční listina'!C64=0,"",'Prezenční listina'!A64) -> 
B67: =IF('Prezenční listina'!C65=0,"",'Prezenční listina'!C65) ->  | C67: =IF('Prezenční listina'!C65=0,"",'Prezenční listina'!D65) ->  | D67: =IF('Prezenční listina'!C65=0,"",'Prezenční listina'!E65) ->  | E67: =IF('Prezenční listina'!C65=0,"",'Prezenční listina'!F65) ->  | F67: =IF('Prezenční listina'!C65=0,"",'Prezenční listina'!J65) ->  | G67: =IF('Prezenční listina'!C65=0,"",'Prezenční listina'!K65) ->  | H67: =IF('Prezenční listina'!C65=0,"",'Prezenční listina'!A65) -> 
B68: =IF('Prezenční listina'!C66=0,"",'Prezenční listina'!C66) ->  | C68: =IF('Prezenční listina'!C66=0,"",'Prezenční listina'!D66) ->  | D68: =IF('Prezenční listina'!C66=0,"",'Prezenční listina'!E66) ->  | E68: =IF('Prezenční listina'!C66=0,"",'Prezenční listina'!F66) ->  | F68: =IF('Prezenční listina'!C66=0,"",'Prezenční listina'!J66) ->  | G68: =IF('Prezenční listina'!C66=0,"",'Prezenční listina'!K66) ->  | H68: =IF('Prezenční listina'!C66=0,"",'Prezenční listina'!A66) -> 
B69: =IF('Prezenční listina'!C67=0,"",'Prezenční listina'!C67) ->  | C69: =IF('Prezenční listina'!C67=0,"",'Prezenční listina'!D67) ->  | D69: =IF('Prezenční listina'!C67=0,"",'Prezenční listina'!E67) ->  | E69: =IF('Prezenční listina'!C67=0,"",'Prezenční listina'!F67) ->  | F69: =IF('Prezenční listina'!C67=0,"",'Prezenční listina'!J67) ->  | G69: =IF('Prezenční listina'!C67=0,"",'Prezenční listina'!K67) ->  | H69: =IF('Prezenční listina'!C67=0,"",'Prezenční listina'!A67) -> 
B70: =IF('Prezenční listina'!C68=0,"",'Prezenční listina'!C68) ->  | C70: =IF('Prezenční listina'!C68=0,"",'Prezenční listina'!D68) ->  | D70: =IF('Prezenční listina'!C68=0,"",'Prezenční listina'!E68) ->  | E70: =IF('Prezenční listina'!C68=0,"",'Prezenční listina'!F68) ->  | F70: =IF('Prezenční listina'!C68=0,"",'Prezenční listina'!J68) ->  | G70: =IF('Prezenční listina'!C68=0,"",'Prezenční listina'!K68) ->  | H70: =IF('Prezenční listina'!C68=0,"",'Prezenční listina'!A68) -> 
A71: =IF(B71="","",A70+1) ->  | B71: =IF('Prezenční listina'!C69=0,"",'Prezenční listina'!C69) ->  | C71: =IF('Prezenční listina'!C69=0,"",'Prezenční listina'!D69) ->  | D71: =IF('Prezenční listina'!C69=0,"",'Prezenční listina'!E69) ->  | E71: =IF('Prezenční listina'!C69=0,"",'Prezenční listina'!F69) ->  | F71: =IF('Prezenční listina'!C69=0,"",'Prezenční listina'!J69) ->  | G71: =IF('Prezenční listina'!C69=0,"",'Prezenční listina'!K69) ->  | H71: =IF('Prezenční listina'!C69=0,"",'Prezenční listina'!A69) -> 
B72: =IF('Prezenční listina'!C70=0,"",'Prezenční listina'!C70) ->  | C72: =IF('Prezenční listina'!C70=0,"",'Prezenční listina'!D70) ->  | D72: =IF('Prezenční listina'!C70=0,"",'Prezenční listina'!E70) ->  | E72: =IF('Prezenční listina'!C70=0,"",'Prezenční listina'!F70) ->  | F72: =IF('Prezenční listina'!C70=0,"",'Prezenční listina'!J70) ->  | G72: =IF('Prezenční listina'!C70=0,"",'Prezenční listina'!K70) ->  | H72: =IF('Prezenční listina'!C70=0,"",'Prezenční listina'!A70) -> 
B73: =IF('Prezenční listina'!C71=0,"",'Prezenční listina'!C71) ->  | C73: =IF('Prezenční listina'!C71=0,"",'Prezenční listina'!D71) ->  | D73: =IF('Prezenční listina'!C71=0,"",'Prezenční listina'!E71) ->  | E73: =IF('Prezenční listina'!C71=0,"",'Prezenční listina'!F71) ->  | F73: =IF('Prezenční listina'!C71=0,"",'Prezenční listina'!J71) ->  | G73: =IF('Prezenční listina'!C71=0,"",'Prezenční listina'!K71) ->  | H73: =IF('Prezenční listina'!C71=0,"",'Prezenční listina'!A71) -> 
B74: =IF('Prezenční listina'!C72=0,"",'Prezenční listina'!C72) ->  | C74: =IF('Prezenční listina'!C72=0,"",'Prezenční listina'!D72) ->  | D74: =IF('Prezenční listina'!C72=0,"",'Prezenční listina'!E72) ->  | E74: =IF('Prezenční listina'!C72=0,"",'Prezenční listina'!F72) ->  | F74: =IF('Prezenční listina'!C72=0,"",'Prezenční listina'!J72) ->  | G74: =IF('Prezenční listina'!C72=0,"",'Prezenční listina'!K72) ->  | H74: =IF('Prezenční listina'!C72=0,"",'Prezenční listina'!A72) -> 
B75: =IF('Prezenční listina'!C73=0,"",'Prezenční listina'!C73) ->  | C75: =IF('Prezenční listina'!C73=0,"",'Prezenční listina'!D73) ->  | D75: =IF('Prezenční listina'!C73=0,"",'Prezenční listina'!E73) ->  | E75: =IF('Prezenční listina'!C73=0,"",'Prezenční listina'!F73) ->  | F75: =IF('Prezenční listina'!C73=0,"",'Prezenční listina'!J73) ->  | G75: =IF('Prezenční listina'!C73=0,"",'Prezenční listina'!K73) ->  | H75: =IF('Prezenční listina'!C73=0,"",'Prezenční listina'!A73) -> 
B76: =IF('Prezenční listina'!C74=0,"",'Prezenční listina'!C74) ->  | C76: =IF('Prezenční listina'!C74=0,"",'Prezenční listina'!D74) ->  | D76: =IF('Prezenční listina'!C74=0,"",'Prezenční listina'!E74) ->  | E76: =IF('Prezenční listina'!C74=0,"",'Prezenční listina'!F74) ->  | F76: =IF('Prezenční listina'!C74=0,"",'Prezenční listina'!J74) ->  | G76: =IF('Prezenční listina'!C74=0,"",'Prezenční listina'!K74) ->  | H76: =IF('Prezenční listina'!C74=0,"",'Prezenční listina'!A74) -> 
B77: =IF('Prezenční listina'!C75=0,"",'Prezenční listina'!C75) ->  | C77: =IF('Prezenční listina'!C75=0,"",'Prezenční listina'!D75) ->  | D77: =IF('Prezenční listina'!C75=0,"",'Prezenční listina'!E75) ->  | E77: =IF('Prezenční listina'!C75=0,"",'Prezenční listina'!F75) ->  | F77: =IF('Prezenční listina'!C75=0,"",'Prezenční listina'!J75) ->  | G77: =IF('Prezenční listina'!C75=0,"",'Prezenční listina'!K75) ->  | H77: =IF('Prezenční listina'!C75=0,"",'Prezenční listina'!A75) -> 
B78: =IF('Prezenční listina'!C76=0,"",'Prezenční listina'!C76) ->  | C78: =IF('Prezenční listina'!C76=0,"",'Prezenční listina'!D76) ->  | D78: =IF('Prezenční listina'!C76=0,"",'Prezenční listina'!E76) ->  | E78: =IF('Prezenční listina'!C76=0,"",'Prezenční listina'!F76) ->  | F78: =IF('Prezenční listina'!C76=0,"",'Prezenční listina'!J76) ->  | G78: =IF('Prezenční listina'!C76=0,"",'Prezenční listina'!K76) ->  | H78: =IF('Prezenční listina'!C76=0,"",'Prezenční listina'!A76) -> 
B79: =IF('Prezenční listina'!C77=0,"",'Prezenční listina'!C77) ->  | C79: =IF('Prezenční listina'!C77=0,"",'Prezenční listina'!D77) ->  | D79: =IF('Prezenční listina'!C77=0,"",'Prezenční listina'!E77) ->  | E79: =IF('Prezenční listina'!C77=0,"",'Prezenční listina'!F77) ->  | F79: =IF('Prezenční listina'!C77=0,"",'Prezenční listina'!J77) ->  | G79: =IF('Prezenční listina'!C77=0,"",'Prezenční listina'!K77) ->  | H79: =IF('Prezenční listina'!C77=0,"",'Prezenční listina'!A77) -> 
B80: =IF('Prezenční listina'!C78=0,"",'Prezenční listina'!C78) ->  | C80: =IF('Prezenční listina'!C78=0,"",'Prezenční listina'!D78) ->  | D80: =IF('Prezenční listina'!C78=0,"",'Prezenční listina'!E78) ->  | E80: =IF('Prezenční listina'!C78=0,"",'Prezenční listina'!F78) ->  | F80: =IF('Prezenční listina'!C78=0,"",'Prezenční listina'!J78) ->  | G80: =IF('Prezenční listina'!C78=0,"",'Prezenční listina'!K78) ->  | H80: =IF('Prezenční listina'!C78=0,"",'Prezenční listina'!A78) -> 
B81: =IF('Prezenční listina'!C79=0,"",'Prezenční listina'!C79) ->  | C81: =IF('Prezenční listina'!C79=0,"",'Prezenční listina'!D79) ->  | D81: =IF('Prezenční listina'!C79=0,"",'Prezenční listina'!E79) ->  | E81: =IF('Prezenční listina'!C79=0,"",'Prezenční listina'!F79) ->  | F81: =IF('Prezenční listina'!C79=0,"",'Prezenční listina'!J79) ->  | G81: =IF('Prezenční listina'!C79=0,"",'Prezenční listina'!K79) ->  | H81: =IF('Prezenční listina'!C79=0,"",'Prezenční listina'!A79) -> 
B82: =IF('Prezenční listina'!C80=0,"",'Prezenční listina'!C80) ->  | C82: =IF('Prezenční listina'!C80=0,"",'Prezenční listina'!D80) ->  | D82: =IF('Prezenční listina'!C80=0,"",'Prezenční listina'!E80) ->  | E82: =IF('Prezenční listina'!C80=0,"",'Prezenční listina'!F80) ->  | F82: =IF('Prezenční listina'!C80=0,"",'Prezenční listina'!J80) ->  | G82: =IF('Prezenční listina'!C80=0,"",'Prezenční listina'!K80) ->  | H82: =IF('Prezenční listina'!C80=0,"",'Prezenční listina'!A80) -> 
B83: =IF('Prezenční listina'!C81=0,"",'Prezenční listina'!C81) ->  | C83: =IF('Prezenční listina'!C81=0,"",'Prezenční listina'!D81) ->  | D83: =IF('Prezenční listina'!C81=0,"",'Prezenční listina'!E81) ->  | E83: =IF('Prezenční listina'!C81=0,"",'Prezenční listina'!F81) ->  | F83: =IF('Prezenční listina'!C81=0,"",'Prezenční listina'!J81) ->  | G83: =IF('Prezenční listina'!C81=0,"",'Prezenční listina'!K81) ->  | H83: =IF('Prezenční listina'!C81=0,"",'Prezenční listina'!A81) -> 
B84: =IF('Prezenční listina'!C82=0,"",'Prezenční listina'!C82) ->  | C84: =IF('Prezenční listina'!C82=0,"",'Prezenční listina'!D82) ->  | D84: =IF('Prezenční listina'!C82=0,"",'Prezenční listina'!E82) ->  | E84: =IF('Prezenční listina'!C82=0,"",'Prezenční listina'!F82) ->  | F84: =IF('Prezenční listina'!C82=0,"",'Prezenční listina'!J82) ->  | G84: =IF('Prezenční listina'!C82=0,"",'Prezenční listina'!K82) ->  | H84: =IF('Prezenční listina'!C82=0,"",'Prezenční listina'!A82) -> 
B85: =IF('Prezenční listina'!C83=0,"",'Prezenční listina'!C83) ->  | C85: =IF('Prezenční listina'!C83=0,"",'Prezenční listina'!D83) ->  | D85: =IF('Prezenční listina'!C83=0,"",'Prezenční listina'!E83) ->  | E85: =IF('Prezenční listina'!C83=0,"",'Prezenční listina'!F83) ->  | F85: =IF('Prezenční listina'!C83=0,"",'Prezenční listina'!J83) ->  | G85: =IF('Prezenční listina'!C83=0,"",'Prezenční listina'!K83) ->  | H85: =IF('Prezenční listina'!C83=0,"",'Prezenční listina'!A83) -> 
B86: =IF('Prezenční listina'!C84=0,"",'Prezenční listina'!C84) ->  | C86: =IF('Prezenční listina'!C84=0,"",'Prezenční listina'!D84) ->  | D86: =IF('Prezenční listina'!C84=0,"",'Prezenční listina'!E84) ->  | E86: =IF('Prezenční listina'!C84=0,"",'Prezenční listina'!F84) ->  | F86: =IF('Prezenční listina'!C84=0,"",'Prezenční listina'!J84) ->  | G86: =IF('Prezenční listina'!C84=0,"",'Prezenční listina'!K84) ->  | H86: =IF('Prezenční listina'!C84=0,"",'Prezenční listina'!A84) -> 
B87: =IF('Prezenční listina'!C85=0,"",'Prezenční listina'!C85) ->  | C87: =IF('Prezenční listina'!C85=0,"",'Prezenční listina'!D85) ->  | D87: =IF('Prezenční listina'!C85=0,"",'Prezenční listina'!E85) ->  | E87: =IF('Prezenční listina'!C85=0,"",'Prezenční listina'!F85) ->  | F87: =IF('Prezenční listina'!C85=0,"",'Prezenční listina'!J85) ->  | G87: =IF('Prezenční listina'!C85=0,"",'Prezenční listina'!K85) ->  | H87: =IF('Prezenční listina'!C85=0,"",'Prezenční listina'!A85) -> 
B88: =IF('Prezenční listina'!C86=0,"",'Prezenční listina'!C86) ->  | C88: =IF('Prezenční listina'!C86=0,"",'Prezenční listina'!D86) ->  | D88: =IF('Prezenční listina'!C86=0,"",'Prezenční listina'!E86) ->  | E88: =IF('Prezenční listina'!C86=0,"",'Prezenční listina'!F86) ->  | F88: =IF('Prezenční listina'!C86=0,"",'Prezenční listina'!J86) ->  | G88: =IF('Prezenční listina'!C86=0,"",'Prezenční listina'!K86) ->  | H88: =IF('Prezenční listina'!C86=0,"",'Prezenční listina'!A86) -> 
B89: =IF('Prezenční listina'!C87=0,"",'Prezenční listina'!C87) ->  | C89: =IF('Prezenční listina'!C87=0,"",'Prezenční listina'!D87) ->  | D89: =IF('Prezenční listina'!C87=0,"",'Prezenční listina'!E87) ->  | E89: =IF('Prezenční listina'!C87=0,"",'Prezenční listina'!F87) ->  | F89: =IF('Prezenční listina'!C87=0,"",'Prezenční listina'!J87) ->  | G89: =IF('Prezenční listina'!C87=0,"",'Prezenční listina'!K87) ->  | H89: =IF('Prezenční listina'!C87=0,"",'Prezenční listina'!A87) -> 
B90: =IF('Prezenční listina'!C88=0,"",'Prezenční listina'!C88) ->  | C90: =IF('Prezenční listina'!C88=0,"",'Prezenční listina'!D88) ->  | D90: =IF('Prezenční listina'!C88=0,"",'Prezenční listina'!E88) ->  | E90: =IF('Prezenční listina'!C88=0,"",'Prezenční listina'!F88) ->  | F90: =IF('Prezenční listina'!C88=0,"",'Prezenční listina'!J88) ->  | G90: =IF('Prezenční listina'!C88=0,"",'Prezenční listina'!K88) ->  | H90: =IF('Prezenční listina'!C88=0,"",'Prezenční listina'!A88) -> 
B91: =IF('Prezenční listina'!C89=0,"",'Prezenční listina'!C89) ->  | C91: =IF('Prezenční listina'!C89=0,"",'Prezenční listina'!D89) ->  | D91: =IF('Prezenční listina'!C89=0,"",'Prezenční listina'!E89) ->  | E91: =IF('Prezenční listina'!C89=0,"",'Prezenční listina'!F89) ->  | F91: =IF('Prezenční listina'!C89=0,"",'Prezenční listina'!J89) ->  | G91: =IF('Prezenční listina'!C89=0,"",'Prezenční listina'!K89) ->  | H91: =IF('Prezenční listina'!C89=0,"",'Prezenční listina'!A89) -> 
B92: =IF('Prezenční listina'!C90=0,"",'Prezenční listina'!C90) ->  | C92: =IF('Prezenční listina'!C90=0,"",'Prezenční listina'!D90) ->  | D92: =IF('Prezenční listina'!C90=0,"",'Prezenční listina'!E90) ->  | E92: =IF('Prezenční listina'!C90=0,"",'Prezenční listina'!F90) ->  | F92: =IF('Prezenční listina'!C90=0,"",'Prezenční listina'!J90) ->  | G92: =IF('Prezenční listina'!C90=0,"",'Prezenční listina'!K90) ->  | H92: =IF('Prezenční listina'!C90=0,"",'Prezenční listina'!A90) -> 
B93: =IF('Prezenční listina'!C91=0,"",'Prezenční listina'!C91) ->  | C93: =IF('Prezenční listina'!C91=0,"",'Prezenční listina'!D91) ->  | D93: =IF('Prezenční listina'!C91=0,"",'Prezenční listina'!E91) ->  | E93: =IF('Prezenční listina'!C91=0,"",'Prezenční listina'!F91) ->  | F93: =IF('Prezenční listina'!C91=0,"",'Prezenční listina'!J91) ->  | G93: =IF('Prezenční listina'!C91=0,"",'Prezenční listina'!K91) ->  | H93: =IF('Prezenční listina'!C91=0,"",'Prezenční listina'!A91) -> 
B94: =IF('Prezenční listina'!C92=0,"",'Prezenční listina'!C92) ->  | C94: =IF('Prezenční listina'!C92=0,"",'Prezenční listina'!D92) ->  | D94: =IF('Prezenční listina'!C92=0,"",'Prezenční listina'!E92) ->  | E94: =IF('Prezenční listina'!C92=0,"",'Prezenční listina'!F92) ->  | F94: =IF('Prezenční listina'!C92=0,"",'Prezenční listina'!J92) ->  | G94: =IF('Prezenční listina'!C92=0,"",'Prezenční listina'!K92) ->  | H94: =IF('Prezenční listina'!C92=0,"",'Prezenční listina'!A92) -> 
B95: =IF('Prezenční listina'!C93=0,"",'Prezenční listina'!C93) ->  | C95: =IF('Prezenční listina'!C93=0,"",'Prezenční listina'!D93) ->  | D95: =IF('Prezenční listina'!C93=0,"",'Prezenční listina'!E93) ->  | E95: =IF('Prezenční listina'!C93=0,"",'Prezenční listina'!F93) ->  | F95: =IF('Prezenční listina'!C93=0,"",'Prezenční listina'!J93) ->  | G95: =IF('Prezenční listina'!C93=0,"",'Prezenční listina'!K93) ->  | H95: =IF('Prezenční listina'!C93=0,"",'Prezenční listina'!A93) -> 
B96: =IF('Prezenční listina'!C94=0,"",'Prezenční listina'!C94) ->  | C96: =IF('Prezenční listina'!C94=0,"",'Prezenční listina'!D94) ->  | D96: =IF('Prezenční listina'!C94=0,"",'Prezenční listina'!E94) ->  | E96: =IF('Prezenční listina'!C94=0,"",'Prezenční listina'!F94) ->  | F96: =IF('Prezenční listina'!C94=0,"",'Prezenční listina'!J94) ->  | G96: =IF('Prezenční listina'!C94=0,"",'Prezenční listina'!K94) ->  | H96: =IF('Prezenční listina'!C94=0,"",'Prezenční listina'!A94) -> 
B97: =IF('Prezenční listina'!C95=0,"",'Prezenční listina'!C95) ->  | C97: =IF('Prezenční listina'!C95=0,"",'Prezenční listina'!D95) ->  | D97: =IF('Prezenční listina'!C95=0,"",'Prezenční listina'!E95) ->  | E97: =IF('Prezenční listina'!C95=0,"",'Prezenční listina'!F95) ->  | F97: =IF('Prezenční listina'!C95=0,"",'Prezenční listina'!J95) ->  | G97: =IF('Prezenční listina'!C95=0,"",'Prezenční listina'!K95) ->  | H97: =IF('Prezenční listina'!C95=0,"",'Prezenční listina'!A95) -> 
B98: =IF('Prezenční listina'!C96=0,"",'Prezenční listina'!C96) ->  | C98: =IF('Prezenční listina'!C96=0,"",'Prezenční listina'!D96) ->  | D98: =IF('Prezenční listina'!C96=0,"",'Prezenční listina'!E96) ->  | E98: =IF('Prezenční listina'!C96=0,"",'Prezenční listina'!F96) ->  | F98: =IF('Prezenční listina'!C96=0,"",'Prezenční listina'!J96) ->  | G98: =IF('Prezenční listina'!C96=0,"",'Prezenční listina'!K96) ->  | H98: =IF('Prezenční listina'!C96=0,"",'Prezenční listina'!A96) -> 
B99: =IF('Prezenční listina'!C97=0,"",'Prezenční listina'!C97) ->  | C99: =IF('Prezenční listina'!C97=0,"",'Prezenční listina'!D97) ->  | D99: =IF('Prezenční listina'!C97=0,"",'Prezenční listina'!E97) ->  | E99: =IF('Prezenční listina'!C97=0,"",'Prezenční listina'!F97) ->  | F99: =IF('Prezenční listina'!C97=0,"",'Prezenční listina'!J97) ->  | G99: =IF('Prezenční listina'!C97=0,"",'Prezenční listina'!K97) ->  | H99: =IF('Prezenční listina'!C97=0,"",'Prezenční listina'!A97) -> 
B100: =IF('Prezenční listina'!C98=0,"",'Prezenční listina'!C98) ->  | C100: =IF('Prezenční listina'!C98=0,"",'Prezenční listina'!D98) ->  | D100: =IF('Prezenční listina'!C98=0,"",'Prezenční listina'!E98) ->  | E100: =IF('Prezenční listina'!C98=0,"",'Prezenční listina'!F98) ->  | F100: =IF('Prezenční listina'!C98=0,"",'Prezenční listina'!J98) ->  | G100: =IF('Prezenční listina'!C98=0,"",'Prezenční listina'!K98) ->  | H100: =IF('Prezenční listina'!C98=0,"",'Prezenční listina'!A98) -> 
B101: =IF('Prezenční listina'!C99=0,"",'Prezenční listina'!C99) ->  | C101: =IF('Prezenční listina'!C99=0,"",'Prezenční listina'!D99) ->  | D101: =IF('Prezenční listina'!C99=0,"",'Prezenční listina'!E99) ->  | E101: =IF('Prezenční listina'!C99=0,"",'Prezenční listina'!F99) ->  | F101: =IF('Prezenční listina'!C99=0,"",'Prezenční listina'!J99) ->  | G101: =IF('Prezenční listina'!C99=0,"",'Prezenční listina'!K99) ->  | H101: =IF('Prezenční listina'!C99=0,"",'Prezenční listina'!A99) -> 
B102: =IF('Prezenční listina'!C100=0,"",'Prezenční listina'!C100) ->  | C102: =IF('Prezenční listina'!C100=0,"",'Prezenční listina'!D100) ->  | D102: =IF('Prezenční listina'!C100=0,"",'Prezenční listina'!E100) ->  | E102: =IF('Prezenční listina'!C100=0,"",'Prezenční listina'!F100) ->  | F102: =IF('Prezenční listina'!C100=0,"",'Prezenční listina'!J100) ->  | G102: =IF('Prezenční listina'!C100=0,"",'Prezenční listina'!K100) ->  | H102: =IF('Prezenční listina'!C100=0,"",'Prezenční listina'!A100) -> 
B103: =IF('Prezenční listina'!C101=0,"",'Prezenční listina'!C101) ->  | C103: =IF('Prezenční listina'!C101=0,"",'Prezenční listina'!D101) ->  | D103: =IF('Prezenční listina'!C101=0,"",'Prezenční listina'!E101) ->  | E103: =IF('Prezenční listina'!C101=0,"",'Prezenční listina'!F101) ->  | F103: =IF('Prezenční listina'!C101=0,"",'Prezenční listina'!J101) ->  | G103: =IF('Prezenční listina'!C101=0,"",'Prezenční listina'!K101) ->  | H103: =IF('Prezenční listina'!C101=0,"",'Prezenční listina'!A101) -> 
B104: =IF('Prezenční listina'!C102=0,"",'Prezenční listina'!C102) ->  | C104: =IF('Prezenční listina'!C102=0,"",'Prezenční listina'!D102) ->  | D104: =IF('Prezenční listina'!C102=0,"",'Prezenční listina'!E102) ->  | E104: =IF('Prezenční listina'!C102=0,"",'Prezenční listina'!F102) ->  | F104: =IF('Prezenční listina'!C102=0,"",'Prezenční listina'!J102) ->  | G104: =IF('Prezenční listina'!C102=0,"",'Prezenční listina'!K102) ->  | H104: =IF('Prezenční listina'!C102=0,"",'Prezenční listina'!A102) -> 
B105: =IF('Prezenční listina'!C103=0,"",'Prezenční listina'!C103) ->  | C105: =IF('Prezenční listina'!C103=0,"",'Prezenční listina'!D103) ->  | D105: =IF('Prezenční listina'!C103=0,"",'Prezenční listina'!E103) ->  | E105: =IF('Prezenční listina'!C103=0,"",'Prezenční listina'!F103) ->  | F105: =IF('Prezenční listina'!C103=0,"",'Prezenční listina'!J103) ->  | G105: =IF('Prezenční listina'!C103=0,"",'Prezenční listina'!K103) ->  | H105: =IF('Prezenční listina'!C103=0,"",'Prezenční listina'!A103) -> 
B106: =IF('Prezenční listina'!C104=0,"",'Prezenční listina'!C104) ->  | C106: =IF('Prezenční listina'!C104=0,"",'Prezenční listina'!D104) ->  | D106: =IF('Prezenční listina'!C104=0,"",'Prezenční listina'!E104) ->  | E106: =IF('Prezenční listina'!C104=0,"",'Prezenční listina'!F104) ->  | F106: =IF('Prezenční listina'!C104=0,"",'Prezenční listina'!J104) ->  | G106: =IF('Prezenční listina'!C104=0,"",'Prezenční listina'!K104) ->  | H106: =IF('Prezenční listina'!C104=0,"",'Prezenční listina'!A104) -> 
B107: =IF('Prezenční listina'!C105=0,"",'Prezenční listina'!C105) ->  | C107: =IF('Prezenční listina'!C105=0,"",'Prezenční listina'!D105) ->  | D107: =IF('Prezenční listina'!C105=0,"",'Prezenční listina'!E105) ->  | E107: =IF('Prezenční listina'!C105=0,"",'Prezenční listina'!F105) ->  | F107: =IF('Prezenční listina'!C105=0,"",'Prezenční listina'!J105) ->  | G107: =IF('Prezenční listina'!C105=0,"",'Prezenční listina'!K105) ->  | H107: =IF('Prezenční listina'!C105=0,"",'Prezenční listina'!A105) -> 
B108: =IF('Prezenční listina'!C106=0,"",'Prezenční listina'!C106) ->  | C108: =IF('Prezenční listina'!C106=0,"",'Prezenční listina'!D106) ->  | D108: =IF('Prezenční listina'!C106=0,"",'Prezenční listina'!E106) ->  | E108: =IF('Prezenční listina'!C106=0,"",'Prezenční listina'!F106) ->  | F108: =IF('Prezenční listina'!C106=0,"",'Prezenční listina'!J106) ->  | G108: =IF('Prezenční listina'!C106=0,"",'Prezenční listina'!K106) ->  | H108: =IF('Prezenční listina'!C106=0,"",'Prezenční listina'!A106) -> 
B109: =IF('Prezenční listina'!C107=0,"",'Prezenční listina'!C107) ->  | C109: =IF('Prezenční listina'!C107=0,"",'Prezenční listina'!D107) ->  | D109: =IF('Prezenční listina'!C107=0,"",'Prezenční listina'!E107) ->  | E109: =IF('Prezenční listina'!C107=0,"",'Prezenční listina'!F107) ->  | F109: =IF('Prezenční listina'!C107=0,"",'Prezenční listina'!J107) ->  | G109: =IF('Prezenční listina'!C107=0,"",'Prezenční listina'!K107) ->  | H109: =IF('Prezenční listina'!C107=0,"",'Prezenční listina'!A107) -> 
B110: =IF('Prezenční listina'!C108=0,"",'Prezenční listina'!C108) ->  | C110: =IF('Prezenční listina'!C108=0,"",'Prezenční listina'!D108) ->  | D110: =IF('Prezenční listina'!C108=0,"",'Prezenční listina'!E108) ->  | E110: =IF('Prezenční listina'!C108=0,"",'Prezenční listina'!F108) ->  | F110: =IF('Prezenční listina'!C108=0,"",'Prezenční listina'!J108) ->  | G110: =IF('Prezenční listina'!C108=0,"",'Prezenční listina'!K108) ->  | H110: =IF('Prezenční listina'!C108=0,"",'Prezenční listina'!A108) -> 
B111: =IF('Prezenční listina'!C109=0,"",'Prezenční listina'!C109) ->  | C111: =IF('Prezenční listina'!C109=0,"",'Prezenční listina'!D109) ->  | D111: =IF('Prezenční listina'!C109=0,"",'Prezenční listina'!E109) ->  | E111: =IF('Prezenční listina'!C109=0,"",'Prezenční listina'!F109) ->  | F111: =IF('Prezenční listina'!C109=0,"",'Prezenční listina'!J109) ->  | G111: =IF('Prezenční listina'!C109=0,"",'Prezenční listina'!K109) ->  | H111: =IF('Prezenční listina'!C109=0,"",'Prezenční listina'!A109) -> 
B112: =IF('Prezenční listina'!C110=0,"",'Prezenční listina'!C110) ->  | C112: =IF('Prezenční listina'!C110=0,"",'Prezenční listina'!D110) ->  | D112: =IF('Prezenční listina'!C110=0,"",'Prezenční listina'!E110) ->  | E112: =IF('Prezenční listina'!C110=0,"",'Prezenční listina'!F110) ->  | F112: =IF('Prezenční listina'!C110=0,"",'Prezenční listina'!J110) ->  | G112: =IF('Prezenční listina'!C110=0,"",'Prezenční listina'!K110) ->  | H112: =IF('Prezenční listina'!C110=0,"",'Prezenční listina'!A110) -> 
B113: =IF('Prezenční listina'!C111=0,"",'Prezenční listina'!C111) ->  | C113: =IF('Prezenční listina'!C111=0,"",'Prezenční listina'!D111) ->  | D113: =IF('Prezenční listina'!C111=0,"",'Prezenční listina'!E111) ->  | E113: =IF('Prezenční listina'!C111=0,"",'Prezenční listina'!F111) ->  | F113: =IF('Prezenční listina'!C111=0,"",'Prezenční listina'!J111) ->  | G113: =IF('Prezenční listina'!C111=0,"",'Prezenční listina'!K111) ->  | H113: =IF('Prezenční listina'!C111=0,"",'Prezenční listina'!A111) -> 
B114: =IF('Prezenční listina'!C112=0,"",'Prezenční listina'!C112) ->  | C114: =IF('Prezenční listina'!C112=0,"",'Prezenční listina'!D112) ->  | D114: =IF('Prezenční listina'!C112=0,"",'Prezenční listina'!E112) ->  | E114: =IF('Prezenční listina'!C112=0,"",'Prezenční listina'!F112) ->  | F114: =IF('Prezenční listina'!C112=0,"",'Prezenční listina'!J112) ->  | G114: =IF('Prezenční listina'!C112=0,"",'Prezenční listina'!K112) ->  | H114: =IF('Prezenční listina'!C112=0,"",'Prezenční listina'!A112) -> 
B115: =IF('Prezenční listina'!C113=0,"",'Prezenční listina'!C113) ->  | C115: =IF('Prezenční listina'!C113=0,"",'Prezenční listina'!D113) ->  | D115: =IF('Prezenční listina'!C113=0,"",'Prezenční listina'!E113) ->  | E115: =IF('Prezenční listina'!C113=0,"",'Prezenční listina'!F113) ->  | F115: =IF('Prezenční listina'!C113=0,"",'Prezenční listina'!J113) ->  | G115: =IF('Prezenční listina'!C113=0,"",'Prezenční listina'!K113) ->  | H115: =IF('Prezenční listina'!C113=0,"",'Prezenční listina'!A113) -> 
B116: =IF('Prezenční listina'!C114=0,"",'Prezenční listina'!C114) ->  | C116: =IF('Prezenční listina'!C114=0,"",'Prezenční listina'!D114) ->  | D116: =IF('Prezenční listina'!C114=0,"",'Prezenční listina'!E114) ->  | E116: =IF('Prezenční listina'!C114=0,"",'Prezenční listina'!F114) ->  | F116: =IF('Prezenční listina'!C114=0,"",'Prezenční listina'!J114) ->  | G116: =IF('Prezenční listina'!C114=0,"",'Prezenční listina'!K114) ->  | H116: =IF('Prezenční listina'!C114=0,"",'Prezenční listina'!A114) -> 
B117: =IF('Prezenční listina'!C115=0,"",'Prezenční listina'!C115) ->  | C117: =IF('Prezenční listina'!C115=0,"",'Prezenční listina'!D115) ->  | D117: =IF('Prezenční listina'!C115=0,"",'Prezenční listina'!E115) ->  | E117: =IF('Prezenční listina'!C115=0,"",'Prezenční listina'!F115) ->  | F117: =IF('Prezenční listina'!C115=0,"",'Prezenční listina'!J115) ->  | G117: =IF('Prezenční listina'!C115=0,"",'Prezenční listina'!K115) ->  | H117: =IF('Prezenční listina'!C115=0,"",'Prezenční listina'!A115) -> 
B118: =IF('Prezenční listina'!C116=0,"",'Prezenční listina'!C116) ->  | C118: =IF('Prezenční listina'!C116=0,"",'Prezenční listina'!D116) ->  | D118: =IF('Prezenční listina'!C116=0,"",'Prezenční listina'!E116) ->  | E118: =IF('Prezenční listina'!C116=0,"",'Prezenční listina'!F116) ->  | F118: =IF('Prezenční listina'!C116=0,"",'Prezenční listina'!J116) ->  | G118: =IF('Prezenční listina'!C116=0,"",'Prezenční listina'!K116) ->  | H118: =IF('Prezenční listina'!C116=0,"",'Prezenční listina'!A116) -> 
B119: =IF('Prezenční listina'!C117=0,"",'Prezenční listina'!C117) ->  | C119: =IF('Prezenční listina'!C117=0,"",'Prezenční listina'!D117) ->  | D119: =IF('Prezenční listina'!C117=0,"",'Prezenční listina'!E117) ->  | E119: =IF('Prezenční listina'!C117=0,"",'Prezenční listina'!F117) ->  | F119: =IF('Prezenční listina'!C117=0,"",'Prezenční listina'!J117) ->  | G119: =IF('Prezenční listina'!C117=0,"",'Prezenční listina'!K117) ->  | H119: =IF('Prezenční listina'!C117=0,"",'Prezenční listina'!A117) -> 
B120: =IF('Prezenční listina'!C118=0,"",'Prezenční listina'!C118) ->  | C120: =IF('Prezenční listina'!C118=0,"",'Prezenční listina'!D118) ->  | D120: =IF('Prezenční listina'!C118=0,"",'Prezenční listina'!E118) ->  | E120: =IF('Prezenční listina'!C118=0,"",'Prezenční listina'!F118) ->  | F120: =IF('Prezenční listina'!C118=0,"",'Prezenční listina'!J118) ->  | G120: =IF('Prezenční listina'!C118=0,"",'Prezenční listina'!K118) ->  | H120: =IF('Prezenční listina'!C118=0,"",'Prezenční listina'!A118) -> 
B121: =IF('Prezenční listina'!C119=0,"",'Prezenční listina'!C119) ->  | C121: =IF('Prezenční listina'!C119=0,"",'Prezenční listina'!D119) ->  | D121: =IF('Prezenční listina'!C119=0,"",'Prezenční listina'!E119) ->  | E121: =IF('Prezenční listina'!C119=0,"",'Prezenční listina'!F119) ->  | F121: =IF('Prezenční listina'!C119=0,"",'Prezenční listina'!J119) ->  | G121: =IF('Prezenční listina'!C119=0,"",'Prezenční listina'!K119) ->  | H121: =IF('Prezenční listina'!C119=0,"",'Prezenční listina'!A119) -> 
B122: =IF('Prezenční listina'!C120=0,"",'Prezenční listina'!C120) ->  | C122: =IF('Prezenční listina'!C120=0,"",'Prezenční listina'!D120) ->  | D122: =IF('Prezenční listina'!C120=0,"",'Prezenční listina'!E120) ->  | E122: =IF('Prezenční listina'!C120=0,"",'Prezenční listina'!F120) ->  | F122: =IF('Prezenční listina'!C120=0,"",'Prezenční listina'!J120) ->  | G122: =IF('Prezenční listina'!C120=0,"",'Prezenční listina'!K120) ->  | H122: =IF('Prezenční listina'!C120=0,"",'Prezenční listina'!A120) -> 
B123: =IF('Prezenční listina'!C121=0,"",'Prezenční listina'!C121) ->  | C123: =IF('Prezenční listina'!C121=0,"",'Prezenční listina'!D121) ->  | D123: =IF('Prezenční listina'!C121=0,"",'Prezenční listina'!E121) ->  | E123: =IF('Prezenční listina'!C121=0,"",'Prezenční listina'!F121) ->  | F123: =IF('Prezenční listina'!C121=0,"",'Prezenční listina'!J121) ->  | G123: =IF('Prezenční listina'!C121=0,"",'Prezenční listina'!K121) ->  | H123: =IF('Prezenční listina'!C121=0,"",'Prezenční listina'!A121) -> 
B124: =IF('Prezenční listina'!C122=0,"",'Prezenční listina'!C122) ->  | C124: =IF('Prezenční listina'!C122=0,"",'Prezenční listina'!D122) ->  | D124: =IF('Prezenční listina'!C122=0,"",'Prezenční listina'!E122) ->  | E124: =IF('Prezenční listina'!C122=0,"",'Prezenční listina'!F122) ->  | F124: =IF('Prezenční listina'!C122=0,"",'Prezenční listina'!J122) ->  | G124: =IF('Prezenční listina'!C122=0,"",'Prezenční listina'!K122) ->  | H124: =IF('Prezenční listina'!C122=0,"",'Prezenční listina'!A122) -> 
B125: =IF('Prezenční listina'!C123=0,"",'Prezenční listina'!C123) ->  | C125: =IF('Prezenční listina'!C123=0,"",'Prezenční listina'!D123) ->  | D125: =IF('Prezenční listina'!C123=0,"",'Prezenční listina'!E123) ->  | E125: =IF('Prezenční listina'!C123=0,"",'Prezenční listina'!F123) ->  | F125: =IF('Prezenční listina'!C123=0,"",'Prezenční listina'!J123) ->  | G125: =IF('Prezenční listina'!C123=0,"",'Prezenční listina'!K123) ->  | H125: =IF('Prezenční listina'!C123=0,"",'Prezenční listina'!A123) -> 
B126: =IF('Prezenční listina'!C124=0,"",'Prezenční listina'!C124) ->  | C126: =IF('Prezenční listina'!C124=0,"",'Prezenční listina'!D124) ->  | D126: =IF('Prezenční listina'!C124=0,"",'Prezenční listina'!E124) ->  | E126: =IF('Prezenční listina'!C124=0,"",'Prezenční listina'!F124) ->  | F126: =IF('Prezenční listina'!C124=0,"",'Prezenční listina'!J124) ->  | G126: =IF('Prezenční listina'!C124=0,"",'Prezenční listina'!K124) ->  | H126: =IF('Prezenční listina'!C124=0,"",'Prezenční listina'!A124) -> 
B127: =IF('Prezenční listina'!C125=0,"",'Prezenční listina'!C125) ->  | C127: =IF('Prezenční listina'!C125=0,"",'Prezenční listina'!D125) ->  | D127: =IF('Prezenční listina'!C125=0,"",'Prezenční listina'!E125) ->  | E127: =IF('Prezenční listina'!C125=0,"",'Prezenční listina'!F125) ->  | F127: =IF('Prezenční listina'!C125=0,"",'Prezenční listina'!J125) ->  | G127: =IF('Prezenční listina'!C125=0,"",'Prezenční listina'!K125) ->  | H127: =IF('Prezenční listina'!C125=0,"",'Prezenční listina'!A125) -> 
B128: =IF('Prezenční listina'!C126=0,"",'Prezenční listina'!C126) ->  | C128: =IF('Prezenční listina'!C126=0,"",'Prezenční listina'!D126) ->  | D128: =IF('Prezenční listina'!C126=0,"",'Prezenční listina'!E126) ->  | E128: =IF('Prezenční listina'!C126=0,"",'Prezenční listina'!F126) ->  | F128: =IF('Prezenční listina'!C126=0,"",'Prezenční listina'!J126) ->  | G128: =IF('Prezenční listina'!C126=0,"",'Prezenční listina'!K126) ->  | H128: =IF('Prezenční listina'!C126=0,"",'Prezenční listina'!A126) -> 
B129: =IF('Prezenční listina'!C127=0,"",'Prezenční listina'!C127) ->  | C129: =IF('Prezenční listina'!C127=0,"",'Prezenční listina'!D127) ->  | D129: =IF('Prezenční listina'!C127=0,"",'Prezenční listina'!E127) ->  | E129: =IF('Prezenční listina'!C127=0,"",'Prezenční listina'!F127) ->  | F129: =IF('Prezenční listina'!C127=0,"",'Prezenční listina'!J127) ->  | G129: =IF('Prezenční listina'!C127=0,"",'Prezenční listina'!K127) ->  | H129: =IF('Prezenční listina'!C127=0,"",'Prezenční listina'!A127) -> 
B130: =IF('Prezenční listina'!C128=0,"",'Prezenční listina'!C128) ->  | C130: =IF('Prezenční listina'!C128=0,"",'Prezenční listina'!D128) ->  | D130: =IF('Prezenční listina'!C128=0,"",'Prezenční listina'!E128) ->  | E130: =IF('Prezenční listina'!C128=0,"",'Prezenční listina'!F128) ->  | F130: =IF('Prezenční listina'!C128=0,"",'Prezenční listina'!J128) ->  | G130: =IF('Prezenční listina'!C128=0,"",'Prezenční listina'!K128) ->  | H130: =IF('Prezenční listina'!C128=0,"",'Prezenční listina'!A128) -> 
B131: =IF('Prezenční listina'!C129=0,"",'Prezenční listina'!C129) ->  | C131: =IF('Prezenční listina'!C129=0,"",'Prezenční listina'!D129) ->  | D131: =IF('Prezenční listina'!C129=0,"",'Prezenční listina'!E129) ->  | E131: =IF('Prezenční listina'!C129=0,"",'Prezenční listina'!F129) ->  | F131: =IF('Prezenční listina'!C129=0,"",'Prezenční listina'!J129) ->  | G131: =IF('Prezenční listina'!C129=0,"",'Prezenční listina'!K129) ->  | H131: =IF('Prezenční listina'!C129=0,"",'Prezenční listina'!A129) -> 
B132: =IF('Prezenční listina'!C130=0,"",'Prezenční listina'!C130) ->  | C132: =IF('Prezenční listina'!C130=0,"",'Prezenční listina'!D130) ->  | D132: =IF('Prezenční listina'!C130=0,"",'Prezenční listina'!E130) ->  | E132: =IF('Prezenční listina'!C130=0,"",'Prezenční listina'!F130) ->  | F132: =IF('Prezenční listina'!C130=0,"",'Prezenční listina'!J130) ->  | G132: =IF('Prezenční listina'!C130=0,"",'Prezenční listina'!K130) ->  | H132: =IF('Prezenční listina'!C130=0,"",'Prezenční listina'!A130) -> 
B133: =IF('Prezenční listina'!C131=0,"",'Prezenční listina'!C131) ->  | C133: =IF('Prezenční listina'!C131=0,"",'Prezenční listina'!D131) ->  | D133: =IF('Prezenční listina'!C131=0,"",'Prezenční listina'!E131) ->  | E133: =IF('Prezenční listina'!C131=0,"",'Prezenční listina'!F131) ->  | F133: =IF('Prezenční listina'!C131=0,"",'Prezenční listina'!J131) ->  | G133: =IF('Prezenční listina'!C131=0,"",'Prezenční listina'!K131) ->  | H133: =IF('Prezenční listina'!C131=0,"",'Prezenční listina'!A131) -> 
B134: =IF('Prezenční listina'!C132=0,"",'Prezenční listina'!C132) ->  | C134: =IF('Prezenční listina'!C132=0,"",'Prezenční listina'!D132) ->  | D134: =IF('Prezenční listina'!C132=0,"",'Prezenční listina'!E132) ->  | E134: =IF('Prezenční listina'!C132=0,"",'Prezenční listina'!F132) ->  | F134: =IF('Prezenční listina'!C132=0,"",'Prezenční listina'!J132) ->  | G134: =IF('Prezenční listina'!C132=0,"",'Prezenční listina'!K132) ->  | H134: =IF('Prezenční listina'!C132=0,"",'Prezenční listina'!A132) -> 
A135: =IF(B135="","",A134+1) ->  | B135: =IF('Prezenční listina'!C133=0,"",'Prezenční listina'!C133) ->  | C135: =IF('Prezenční listina'!C133=0,"",'Prezenční listina'!D133) ->  | D135: =IF('Prezenční listina'!C133=0,"",'Prezenční listina'!E133) ->  | E135: =IF('Prezenční listina'!C133=0,"",'Prezenční listina'!F133) ->  | F135: =IF('Prezenční listina'!C133=0,"",'Prezenční listina'!J133) ->  | G135: =IF('Prezenční listina'!C133=0,"",'Prezenční listina'!K133) ->  | H135: =IF('Prezenční listina'!C133=0,"",'Prezenční listina'!A133) -> 
B136: =IF('Prezenční listina'!C134=0,"",'Prezenční listina'!C134) ->  | C136: =IF('Prezenční listina'!C134=0,"",'Prezenční listina'!D134) ->  | D136: =IF('Prezenční listina'!C134=0,"",'Prezenční listina'!E134) ->  | E136: =IF('Prezenční listina'!C134=0,"",'Prezenční listina'!F134) ->  | F136: =IF('Prezenční listina'!C134=0,"",'Prezenční listina'!J134) ->  | G136: =IF('Prezenční listina'!C134=0,"",'Prezenční listina'!K134) ->  | H136: =IF('Prezenční listina'!C134=0,"",'Prezenční listina'!A134) -> 
B137: =IF('Prezenční listina'!C135=0,"",'Prezenční listina'!C135) ->  | C137: =IF('Prezenční listina'!C135=0,"",'Prezenční listina'!D135) ->  | D137: =IF('Prezenční listina'!C135=0,"",'Prezenční listina'!E135) ->  | E137: =IF('Prezenční listina'!C135=0,"",'Prezenční listina'!F135) ->  | F137: =IF('Prezenční listina'!C135=0,"",'Prezenční listina'!J135) ->  | G137: =IF('Prezenční listina'!C135=0,"",'Prezenční listina'!K135) ->  | H137: =IF('Prezenční listina'!C135=0,"",'Prezenční listina'!A135) -> 
B138: =IF('Prezenční listina'!C136=0,"",'Prezenční listina'!C136) ->  | C138: =IF('Prezenční listina'!C136=0,"",'Prezenční listina'!D136) ->  | D138: =IF('Prezenční listina'!C136=0,"",'Prezenční listina'!E136) ->  | E138: =IF('Prezenční listina'!C136=0,"",'Prezenční listina'!F136) ->  | F138: =IF('Prezenční listina'!C136=0,"",'Prezenční listina'!J136) ->  | G138: =IF('Prezenční listina'!C136=0,"",'Prezenční listina'!K136) ->  | H138: =IF('Prezenční listina'!C136=0,"",'Prezenční listina'!A136) -> 
B139: =IF('Prezenční listina'!C137=0,"",'Prezenční listina'!C137) ->  | C139: =IF('Prezenční listina'!C137=0,"",'Prezenční listina'!D137) ->  | D139: =IF('Prezenční listina'!C137=0,"",'Prezenční listina'!E137) ->  | E139: =IF('Prezenční listina'!C137=0,"",'Prezenční listina'!F137) ->  | F139: =IF('Prezenční listina'!C137=0,"",'Prezenční listina'!J137) ->  | G139: =IF('Prezenční listina'!C137=0,"",'Prezenční listina'!K137) ->  | H139: =IF('Prezenční listina'!C137=0,"",'Prezenční listina'!A137) -> 
B140: =IF('Prezenční listina'!C138=0,"",'Prezenční listina'!C138) ->  | C140: =IF('Prezenční listina'!C138=0,"",'Prezenční listina'!D138) ->  | D140: =IF('Prezenční listina'!C138=0,"",'Prezenční listina'!E138) ->  | E140: =IF('Prezenční listina'!C138=0,"",'Prezenční listina'!F138) ->  | F140: =IF('Prezenční listina'!C138=0,"",'Prezenční listina'!J138) ->  | G140: =IF('Prezenční listina'!C138=0,"",'Prezenční listina'!K138) ->  | H140: =IF('Prezenční listina'!C138=0,"",'Prezenční listina'!A138) -> 
B141: =IF('Prezenční listina'!C139=0,"",'Prezenční listina'!C139) ->  | C141: =IF('Prezenční listina'!C139=0,"",'Prezenční listina'!D139) ->  | D141: =IF('Prezenční listina'!C139=0,"",'Prezenční listina'!E139) ->  | E141: =IF('Prezenční listina'!C139=0,"",'Prezenční listina'!F139) ->  | F141: =IF('Prezenční listina'!C139=0,"",'Prezenční listina'!J139) ->  | G141: =IF('Prezenční listina'!C139=0,"",'Prezenční listina'!K139) ->  | H141: =IF('Prezenční listina'!C139=0,"",'Prezenční listina'!A139) -> 
B142: =IF('Prezenční listina'!C140=0,"",'Prezenční listina'!C140) ->  | C142: =IF('Prezenční listina'!C140=0,"",'Prezenční listina'!D140) ->  | D142: =IF('Prezenční listina'!C140=0,"",'Prezenční listina'!E140) ->  | E142: =IF('Prezenční listina'!C140=0,"",'Prezenční listina'!F140) ->  | F142: =IF('Prezenční listina'!C140=0,"",'Prezenční listina'!J140) ->  | G142: =IF('Prezenční listina'!C140=0,"",'Prezenční listina'!K140) ->  | H142: =IF('Prezenční listina'!C140=0,"",'Prezenční listina'!A140) -> 
B143: =IF('Prezenční listina'!C141=0,"",'Prezenční listina'!C141) ->  | C143: =IF('Prezenční listina'!C141=0,"",'Prezenční listina'!D141) ->  | D143: =IF('Prezenční listina'!C141=0,"",'Prezenční listina'!E141) ->  | E143: =IF('Prezenční listina'!C141=0,"",'Prezenční listina'!F141) ->  | F143: =IF('Prezenční listina'!C141=0,"",'Prezenční listina'!J141) ->  | G143: =IF('Prezenční listina'!C141=0,"",'Prezenční listina'!K141) ->  | H143: =IF('Prezenční listina'!C141=0,"",'Prezenční listina'!A141) -> 
B144: =IF('Prezenční listina'!C142=0,"",'Prezenční listina'!C142) ->  | C144: =IF('Prezenční listina'!C142=0,"",'Prezenční listina'!D142) ->  | D144: =IF('Prezenční listina'!C142=0,"",'Prezenční listina'!E142) ->  | E144: =IF('Prezenční listina'!C142=0,"",'Prezenční listina'!F142) ->  | F144: =IF('Prezenční listina'!C142=0,"",'Prezenční listina'!J142) ->  | G144: =IF('Prezenční listina'!C142=0,"",'Prezenční listina'!K142) ->  | H144: =IF('Prezenční listina'!C142=0,"",'Prezenční listina'!A142) -> 
B145: =IF('Prezenční listina'!C143=0,"",'Prezenční listina'!C143) ->  | C145: =IF('Prezenční listina'!C143=0,"",'Prezenční listina'!D143) ->  | D145: =IF('Prezenční listina'!C143=0,"",'Prezenční listina'!E143) ->  | E145: =IF('Prezenční listina'!C143=0,"",'Prezenční listina'!F143) ->  | F145: =IF('Prezenční listina'!C143=0,"",'Prezenční listina'!J143) ->  | G145: =IF('Prezenční listina'!C143=0,"",'Prezenční listina'!K143) ->  | H145: =IF('Prezenční listina'!C143=0,"",'Prezenční listina'!A143) -> 
B146: =IF('Prezenční listina'!C144=0,"",'Prezenční listina'!C144) ->  | C146: =IF('Prezenční listina'!C144=0,"",'Prezenční listina'!D144) ->  | D146: =IF('Prezenční listina'!C144=0,"",'Prezenční listina'!E144) ->  | E146: =IF('Prezenční listina'!C144=0,"",'Prezenční listina'!F144) ->  | F146: =IF('Prezenční listina'!C144=0,"",'Prezenční listina'!J144) ->  | G146: =IF('Prezenční listina'!C144=0,"",'Prezenční listina'!K144) ->  | H146: =IF('Prezenční listina'!C144=0,"",'Prezenční listina'!A144) -> 
B147: =IF('Prezenční listina'!C145=0,"",'Prezenční listina'!C145) ->  | C147: =IF('Prezenční listina'!C145=0,"",'Prezenční listina'!D145) ->  | D147: =IF('Prezenční listina'!C145=0,"",'Prezenční listina'!E145) ->  | E147: =IF('Prezenční listina'!C145=0,"",'Prezenční listina'!F145) ->  | F147: =IF('Prezenční listina'!C145=0,"",'Prezenční listina'!J145) ->  | G147: =IF('Prezenční listina'!C145=0,"",'Prezenční listina'!K145) ->  | H147: =IF('Prezenční listina'!C145=0,"",'Prezenční listina'!A145) -> 
B148: =IF('Prezenční listina'!C146=0,"",'Prezenční listina'!C146) ->  | C148: =IF('Prezenční listina'!C146=0,"",'Prezenční listina'!D146) ->  | D148: =IF('Prezenční listina'!C146=0,"",'Prezenční listina'!E146) ->  | E148: =IF('Prezenční listina'!C146=0,"",'Prezenční listina'!F146) ->  | F148: =IF('Prezenční listina'!C146=0,"",'Prezenční listina'!J146) ->  | G148: =IF('Prezenční listina'!C146=0,"",'Prezenční listina'!K146) ->  | H148: =IF('Prezenční listina'!C146=0,"",'Prezenční listina'!A146) -> 
B149: =IF('Prezenční listina'!C147=0,"",'Prezenční listina'!C147) ->  | C149: =IF('Prezenční listina'!C147=0,"",'Prezenční listina'!D147) ->  | D149: =IF('Prezenční listina'!C147=0,"",'Prezenční listina'!E147) ->  | E149: =IF('Prezenční listina'!C147=0,"",'Prezenční listina'!F147) ->  | F149: =IF('Prezenční listina'!C147=0,"",'Prezenční listina'!J147) ->  | G149: =IF('Prezenční listina'!C147=0,"",'Prezenční listina'!K147) ->  | H149: =IF('Prezenční listina'!C147=0,"",'Prezenční listina'!A147) -> 
B150: =IF('Prezenční listina'!C148=0,"",'Prezenční listina'!C148) ->  | C150: =IF('Prezenční listina'!C148=0,"",'Prezenční listina'!D148) ->  | D150: =IF('Prezenční listina'!C148=0,"",'Prezenční listina'!E148) ->  | E150: =IF('Prezenční listina'!C148=0,"",'Prezenční listina'!F148) ->  | F150: =IF('Prezenční listina'!C148=0,"",'Prezenční listina'!J148) ->  | G150: =IF('Prezenční listina'!C148=0,"",'Prezenční listina'!K148) ->  | H150: =IF('Prezenční listina'!C148=0,"",'Prezenční listina'!A148) -> 
B151: =IF('Prezenční listina'!C149=0,"",'Prezenční listina'!C149) ->  | C151: =IF('Prezenční listina'!C149=0,"",'Prezenční listina'!D149) ->  | D151: =IF('Prezenční listina'!C149=0,"",'Prezenční listina'!E149) ->  | E151: =IF('Prezenční listina'!C149=0,"",'Prezenční listina'!F149) ->  | F151: =IF('Prezenční listina'!C149=0,"",'Prezenční listina'!J149) ->  | G151: =IF('Prezenční listina'!C149=0,"",'Prezenční listina'!K149) ->  | H151: =IF('Prezenční listina'!C149=0,"",'Prezenční listina'!A149) -> 
B152: =IF('Prezenční listina'!C150=0,"",'Prezenční listina'!C150) ->  | C152: =IF('Prezenční listina'!C150=0,"",'Prezenční listina'!D150) ->  | D152: =IF('Prezenční listina'!C150=0,"",'Prezenční listina'!E150) ->  | E152: =IF('Prezenční listina'!C150=0,"",'Prezenční listina'!F150) ->  | F152: =IF('Prezenční listina'!C150=0,"",'Prezenční listina'!J150) ->  | G152: =IF('Prezenční listina'!C150=0,"",'Prezenční listina'!K150) ->  | H152: =IF('Prezenční listina'!C150=0,"",'Prezenční listina'!A150) -> 

Sheet Výsledková listina
A1: ="Výsledková listina - Bystřickem kolem Vírské přehrady "&'Prezenční listina'!U2 -> Výsledková listina - Bystřickem kolem Vírské přehrady 2018
A2: ='Startovní listina'!A2:H2 -> 2018-05-26 | L2: Poté, co jsou dopsány časy VŠECH běžců, stisknout tlačítko 1.řazení Ve sloupci B (Pořadí v kategorii) vytvořit posloupnou číselnou řadu pro každou kategorii a poté stisknout tlačítko 2.řazení !!! POZOR!!! Použití tlačítek je nevratný krok!
A3: ='Startovní listina'!A3:H3 -> 14. ročník
A4: Celkové pořadí | B4: Pořadí v kategorii | C4: Kategorie | D4: Startovní číslo | E4: Příjmení | F4: Jméno | G4: Narození | H4: Město | I4: Tým | J4: Čas
A5: 1 | B5: 1 | C5: A | D5: 27 | E5: Kohut | F5: Jan | G5: 1985 | I5: Univerzita Brno | J5: 01:47:49
A6: =IF('Výsledková listina'!D5<>"",A5+1,"") -> 2 | B6: 2 | C6: A | D6: 36 | E6: Hradecký | F6: Jaromír | G6: 1985 | H6: Skuteč | J6: 01:49:08
A7: =IF('Výsledková listina'!D6<>"",A6+1,"") -> 3 | B7: 3 | C7: A | D7: 29 | E7: Šebánek | F7: Petr | G7: 1979 | H7: Rájec | J7: 01:49:37
A8: =IF('Výsledková listina'!D19<>"",A7+1,"") -> 4 | B8: 1 | C8: B | D8: 35 | E8: Vintrlík | F8: Martin | G8: 1977 | H8: Křepice | I8: Triatlon Křepice | J8: 01:50:54
A9: =IF('Výsledková listina'!D20<>"",A8+1,"") -> 5 | B9: 2 | C9: B | D9: 33 | E9: Pohanka | F9: Martin | G9: 1973 | I9: Track & Field Brno | J9: 01:51:50
A10: =IF('Výsledková listina'!D7<>"",A9+1,"") -> 6 | B10: 4 | C10: A | D10: 43 | E10: Glier | F10: Michal | G10: 1982 | H10: Doubravník | I10: SDH Doubravník | J10: 01:52:23
A11: =IF('Výsledková listina'!D8<>"",A10+1,"") -> 7 | B11: 5 | C11: A | D11: 21 | E11: Toman | F11: Radek | G11: 1987 | H11: Litomysl | I11: AFK Kornice | J11: 01:53:30
A12: =IF('Výsledková listina'!D9<>"",A11+1,"") -> 8 | B12: 6 | C12: A | D12: 34 | E12: Oberreiter | F12: Martin | G12: 1988 | H12: Polná | J12: 01:54:00
A13: =IF('Výsledková listina'!D10<>"",A12+1,"") -> 9 | B13: 7 | C13: A | D13: 5 | E13: Hrdina | F13: Tomáš | G13: 1979 | H13: Rosice | I13: AC Moravská Slavia Brno | J13: 01:57:49
A14: =IF('Výsledková listina'!D21<>"",A13+1,"") -> 10 | B14: 3 | C14: B | D14: 39 | E14: Konečný | F14: Libor | G14: 1971 | H14: Kuřim | J14: 02:00:10
A15: =IF('Výsledková listina'!D30<>"",A14+1,"") -> 11 | B15: 1 | C15: C | D15: 14 | E15: Ožana | F15: Václav | G15: 1964 | H15: Nové Město na Moravě | I15: TJ Nové Město na Moravě | J15: 02:02:49
A16: =IF('Výsledková listina'!D22<>"",A15+1,"") -> 12 | B16: 4 | C16: B | D16: 6 | E16: Šerák | F16: Martin | G16: 1978 | I16: Sokol Bílovice n. Svit. | J16: 02:03:11
A17: =IF('Výsledková listina'!D31<>"",A16+1,"") -> 13 | B17: 2 | C17: C | D17: 23 | E17: Šimunek | F17: Martin | G17: 1966 | H17: Modřice | I17: Modřice | J17: 02:03:14
A18: =IF('Výsledková listina'!D32<>"",A17+1,"") -> 14 | B18: 3 | C18: C | D18: 19 | E18: Hýbl | F18: Jiří | G18: 1967 | H18: Hrušovany u Brna | I18: Hrušovany u Brna | J18: 02:03:25
A19: =IF('Výsledková listina'!D33<>"",A18+1,"") -> 15 | B19: 4 | C19: C | D19: 22 | E19: Svoboda | F19: Petr | G19: 1968 | H19: Brno | I19: AC Moravská Slavia Brno | J19: 02:04:03
A20: =IF('Výsledková listina'!D23<>"",A19+1,"") -> 16 | B20: 5 | C20: B | D20: 2 | E20: Kuneš | F20: David | G20: 1974 | H20: Tišnov | I20: EURUNNER | J20: 02:04:35
A21: =IF('Výsledková listina'!D40<>"",A20+1,"") -> 17 | B21: 1 | C21: F | D21: 4 | E21: Pešáková | F21: Mirka | G21: 1985 | H21: Tetčice | I21: AC Racers | J21: 02:07:24
A22: =IF('Výsledková listina'!D11<>"",A21+1,"") -> 18 | B22: 8 | C22: A | D22: 1 | E22: Hübner | F22: Tomáš | G22: 1979 | H22: Brno | I22: SDH Bolešín | J22: 02:08:44
A23: =IF('Výsledková listina'!D34<>"",A22+1,"") -> 19 | B23: 5 | C23: C | D23: 30 | E23: Dvořáček | F23: Jiří | G23: 1968 | I23: Elite Sport Max Training | J23: 02:10:43
A24: =IF('Výsledková listina'!D24<>"",A23+1,"") -> 20 | B24: 6 | C24: B | D24: 20 | E24: Kropáček | F24: Jaroslav | G24: 1970 | H24: Brno | J24: 02:11:05
A25: =IF('Výsledková listina'!D25<>"",A24+1,"") -> 21 | B25: 7 | C25: B | D25: 42 | E25: Fritscher | F25: Adam | G25: 1975 | I25: TJ Liga 100 Olomouc | J25: 02:11:22
A26: =IF('Výsledková listina'!D26<>"",A25+1,"") -> 22 | B26: 8 | C26: B | D26: 44 | E26: Kratochvíl | F26: Jaroslav | G26: 1977 | H26: Moravany | I26: SDH Hluboké | J26: 02:14:34
A27: =IF('Výsledková listina'!D44<>"",A26+1,"") -> 23 | B27: 1 | C27: G | D27: 32 | E27: Klinecká | F27: Jana | G27: 1981 | H27: Hlinsko | I27: MK Hlinsko | J27: 02:15:54
A28: =IF('Výsledková listina'!D35<>"",A27+1,"") -> 24 | B28: 6 | C28: C | D28: 24 | E28: Nosek | F28: Pavel | G28: 1965 | H28: Slavkov u Brna | I28: ASK Slavkov | J28: 02:16:26
A29: =IF('Výsledková listina'!D45<>"",A28+1,"") -> 25 | B29: 2 | C29: G | D29: 38 | E29: Komárková | F29: Zdeňka | G29: 1974 | H29: Olešnice na Mor. | I29: SDH Bolešín | J29: 02:17:33
A30: =IF('Výsledková listina'!D12<>"",A29+1,"") -> 26 | B30: 9 | C30: A | D30: 25 | E30: Košek | F30: Martin | G30: 1984 | H30: Brno | J30: 02:23:54
A31: =IF('Výsledková listina'!D13<>"",A30+1,"") -> 27 | B31: 10 | C31: A | D31: 3 | E31: Hanák | F31: Jakub | G31: 1986 | H31: Vír | I31: Plant Powered Runners | J31: 02:24:42
A32: =IF('Výsledková listina'!D41<>"",A31+1,"") -> 28 | B32: 2 | C32: F | D32: 41 | E32: Matějíková | F32: Jana | G32: 1990 | I32: TJ Liga 100 Olomouc | J32: 02:28:09
A33: =IF('Výsledková listina'!D14<>"",A32+1,"") -> 29 | B33: 11 | C33: A | D33: 13 | E33: Koutský | F33: Tomáš | G33: 1987 | I33: Ledová stěna Vír | J33: 02:28:55
A34: =IF('Výsledková listina'!D46<>"",A33+1,"") -> 30 | B34: 3 | C34: G | D34: 16 | E34: Kuncová | F34: Markéta | G34: 1982 | H34: Rožná | J34: 02:30:39
A35: =IF('Výsledková listina'!D36<>"",A34+1,"") -> 31 | B35: 7 | C35: C | D35: 31 | E35: Žák | F35: Miroslav | G35: 1965 | H35: Stříbrné Hory | J35: 02:30:41
A36: =IF('Výsledková listina'!D15<>"",A35+1,"") -> 32 | B36: 12 | C36: A | D36: 9 | E36: Labedz | F36: Jan | G36: 1984 | H36: Svinošice | J36: 02:32:53
A37: =IF('Výsledková listina'!D38<>"",A36+1,"") -> 33 | B37: 1 | C37: D | D37: 18 | E37: Mareš | F37: Bohumil | G37: 1951 | H37: Brno | I37: Posilovna Průvan Brno | J37: 02:35:27
A38: =IF('Výsledková listina'!D16<>"",A37+1,"") -> 34 | B38: 13 | C38: A | D38: 11 | E38: Vrba | F38: Tomáš | G38: 1986 | H38: Bystré | J38: 02:37:47
A39: =IF('Výsledková listina'!D27<>"",A38+1,"") -> 35 | B39: 9 | C39: B | D39: 28 | E39: Kupka | F39: Pavel | G39: 1975 | H39: Lukovany | J39: 02:41:06
A40: =IF('Výsledková listina'!D17<>"",A39+1,"") -> 36 | B40: 14 | C40: A | D40: 26 | E40: Hakl | F40: Zdeněk | G40: 1982 | H40: Žďár nad Sázavou | I40: SK Tri Cyklochlubna | J40: 02:49:18
A41: =IF('Výsledková listina'!D42<>"",A40+1,"") -> 37 | B41: 3 | C41: F | D41: 15 | E41: Trefilová | F41: Ester | G41: 1993 | H41: Vír | J41: 02:49:45
A42: =IF('Výsledková listina'!D43<>"",A41+1,"") -> 38 | B42: 4 | C42: F | D42: 37 | E42: Tomková | F42: Iva | G42: 1990 | H42: Letovice | I42: Letovice | J42: 02:53:26
A43: =IF('Výsledková listina'!D18<>"",A42+1,"") -> 39 | B43: 15 | C43: A | D43: 40 | E43: Lenhart | F43: Vít | G43: 1982 | H43: Přerov | I43: TJ Liga 100 Olomouc | J43: 02:53:29
A44: =IF('Výsledková listina'!D47<>"",A43+1,"") -> 40 | B44: 1 | C44: H | D44: 12 | E44: Breburdová | F44: Hana | G44: 1961 | H44: 19800 Praha 9, Tálinská 999 | I44: Maraton klub Kladno | J44: 02:59:57
A45: =IF('Výsledková listina'!D28<>"",A44+1,"") -> 41 | B45: 10 | C45: B | D45: 8 | E45: Faja | F45: Ondřej | G45: 1976 | H45: Brno | J45: 03:12:02
A46: =IF('Výsledková listina'!D39<>"",A45+1,"") -> 42 | B46: 1 | C46: E | D46: 7 | E46: Holý | F46: Josef | G46: 1941 | I46: AC Moravská Slavia | J46: 03:35:32
A47: =IF('Výsledková listina'!D37<>"",A46+1,"") -> 43 | B47: 8 | C47: C | D47: 17 | E47: Krátký | F47: Josef | G47: 1965 | H47: Vysoká nad Labem | I47: Hvězda Pardubice | J47: 03:37:19
A48: =IF('Výsledková listina'!D29<>"",A47+1,"") -> 44 | B48: 11 | C48: B | D48: 10 | E48: Štýbnar | F48: Zbyněk | G48: 1974 | H48: P team | I48: ='Startovní listina'!G49 ->  | J48: DNF
A49: =IF('Výsledková listina'!D48<>"",A48+1,"") -> 45 | C49: ='Startovní listina'!H50 ->  | D49: ='Startovní listina'!B50 ->  | E49: ='Startovní listina'!C50 ->  | F49: ='Startovní listina'!D50 ->  | G49: ='Startovní listina'!E50 ->  | H49: ='Startovní listina'!F50 ->  | I49: ='Startovní listina'!G50 -> 
A50: =IF('Výsledková listina'!D49<>"",A49+1,"") ->  | C50: ='Startovní listina'!H51 ->  | D50: ='Startovní listina'!B51 ->  | E50: ='Startovní listina'!C51 ->  | F50: ='Startovní listina'!D51 ->  | G50: ='Startovní listina'!E51 ->  | H50: ='Startovní listina'!F51 ->  | I50: ='Startovní listina'!G51 -> 
A51: =IF('Výsledková listina'!D50<>"",A50+1,"") ->  | C51: ='Startovní listina'!H52 ->  | D51: ='Startovní listina'!B52 ->  | E51: ='Startovní listina'!C52 ->  | F51: ='Startovní listina'!D52 ->  | G51: ='Startovní listina'!E52 ->  | H51: ='Startovní listina'!F52 ->  | I51: ='Startovní listina'!G52 -> 
A52: =IF('Výsledková listina'!D51<>"",A51+1,"") ->  | C52: ='Startovní listina'!H53 ->  | D52: ='Startovní listina'!B53 ->  | E52: ='Startovní listina'!C53 ->  | F52: ='Startovní listina'!D53 ->  | G52: ='Startovní listina'!E53 ->  | H52: ='Startovní listina'!F53 ->  | I52: ='Startovní listina'!G53 -> 
A53: =IF('Výsledková listina'!D52<>"",A52+1,"") ->  | C53: ='Startovní listina'!H54 ->  | D53: ='Startovní listina'!B54 ->  | E53: ='Startovní listina'!C54 ->  | F53: ='Startovní listina'!D54 ->  | G53: ='Startovní listina'!E54 ->  | H53: ='Startovní listina'!F54 ->  | I53: ='Startovní listina'!G54 -> 
A54: =IF('Výsledková listina'!D53<>"",A53+1,"") ->  | C54: ='Startovní listina'!H55 ->  | D54: ='Startovní listina'!B55 ->  | E54: ='Startovní listina'!C55 ->  | F54: ='Startovní listina'!D55 ->  | G54: ='Startovní listina'!E55 ->  | H54: ='Startovní listina'!F55 ->  | I54: ='Startovní listina'!G55 -> 
A55: =IF('Výsledková listina'!D54<>"",A54+1,"") ->  | C55: ='Startovní listina'!H56 ->  | D55: ='Startovní listina'!B56 ->  | E55: ='Startovní listina'!C56 ->  | F55: ='Startovní listina'!D56 ->  | G55: ='Startovní listina'!E56 ->  | H55: ='Startovní listina'!F56 ->  | I55: ='Startovní listina'!G56 -> 
A56: =IF('Výsledková listina'!D55<>"",A55+1,"") ->  | C56: ='Startovní listina'!H57 ->  | D56: ='Startovní listina'!B57 ->  | E56: ='Startovní listina'!C57 ->  | F56: ='Startovní listina'!D57 ->  | G56: ='Startovní listina'!E57 ->  | H56: ='Startovní listina'!F57 ->  | I56: ='Startovní listina'!G57 -> 
A57: =IF('Výsledková listina'!D56<>"",A56+1,"") ->  | C57: ='Startovní listina'!H58 ->  | D57: ='Startovní listina'!B58 ->  | E57: ='Startovní listina'!C58 ->  | F57: ='Startovní listina'!D58 ->  | G57: ='Startovní listina'!E58 ->  | H57: ='Startovní listina'!F58 ->  | I57: ='Startovní listina'!G58 -> 
A58: =IF('Výsledková listina'!D57<>"",A57+1,"") ->  | C58: ='Startovní listina'!H59 ->  | D58: ='Startovní listina'!B59 ->  | E58: ='Startovní listina'!C59 ->  | F58: ='Startovní listina'!D59 ->  | G58: ='Startovní listina'!E59 ->  | H58: ='Startovní listina'!F59 ->  | I58: ='Startovní listina'!G59 -> 
A59: =IF('Výsledková listina'!D58<>"",A58+1,"") ->  | C59: ='Startovní listina'!H60 ->  | D59: ='Startovní listina'!B60 ->  | E59: ='Startovní listina'!C60 ->  | F59: ='Startovní listina'!D60 ->  | G59: ='Startovní listina'!E60 ->  | H59: ='Startovní listina'!F60 ->  | I59: ='Startovní listina'!G60 -> 
A60: =IF('Výsledková listina'!D59<>"",A59+1,"") ->  | C60: ='Startovní listina'!H61 ->  | D60: ='Startovní listina'!B61 ->  | E60: ='Startovní listina'!C61 ->  | F60: ='Startovní listina'!D61 ->  | G60: ='Startovní listina'!E61 ->  | H60: ='Startovní listina'!F61 ->  | I60: ='Startovní listina'!G61 -> 
A61: =IF('Výsledková listina'!D60<>"",A60+1,"") ->  | C61: ='Startovní listina'!H62 ->  | D61: ='Startovní listina'!B62 ->  | E61: ='Startovní listina'!C62 ->  | F61: ='Startovní listina'!D62 ->  | G61: ='Startovní listina'!E62 ->  | H61: ='Startovní listina'!F62 ->  | I61: ='Startovní listina'!G62 -> 
A62: =IF('Výsledková listina'!D61<>"",A61+1,"") ->  | C62: ='Startovní listina'!H63 ->  | D62: ='Startovní listina'!B63 ->  | E62: ='Startovní listina'!C63 ->  | F62: ='Startovní listina'!D63 ->  | G62: ='Startovní listina'!E63 ->  | H62: ='Startovní listina'!F63 ->  | I62: ='Startovní listina'!G63 -> 
A63: =IF('Výsledková listina'!D62<>"",A62+1,"") ->  | C63: ='Startovní listina'!H64 ->  | D63: ='Startovní listina'!B64 ->  | E63: ='Startovní listina'!C64 ->  | F63: ='Startovní listina'!D64 ->  | G63: ='Startovní listina'!E64 ->  | H63: ='Startovní listina'!F64 ->  | I63: ='Startovní listina'!G64 -> 
A64: =IF('Výsledková listina'!D63<>"",A63+1,"") ->  | C64: ='Startovní listina'!H65 ->  | D64: ='Startovní listina'!B65 ->  | E64: ='Startovní listina'!C65 ->  | F64: ='Startovní listina'!D65 ->  | G64: ='Startovní listina'!E65 ->  | H64: ='Startovní listina'!F65 ->  | I64: ='Startovní listina'!G65 -> 
A65: =IF('Výsledková listina'!D64<>"",A64+1,"") ->  | C65: ='Startovní listina'!H66 ->  | D65: ='Startovní listina'!B66 ->  | E65: ='Startovní listina'!C66 ->  | F65: ='Startovní listina'!D66 ->  | G65: ='Startovní listina'!E66 ->  | H65: ='Startovní listina'!F66 ->  | I65: ='Startovní listina'!G66 -> 
A66: =IF('Výsledková listina'!D65<>"",A65+1,"") ->  | C66: ='Startovní listina'!H67 ->  | D66: ='Startovní listina'!B67 ->  | E66: ='Startovní listina'!C67 ->  | F66: ='Startovní listina'!D67 ->  | G66: ='Startovní listina'!E67 ->  | H66: ='Startovní listina'!F67 ->  | I66: ='Startovní listina'!G67 -> 
A67: =IF('Výsledková listina'!D66<>"",A66+1,"") ->  | C67: ='Startovní listina'!H68 ->  | D67: ='Startovní listina'!B68 ->  | E67: ='Startovní listina'!C68 ->  | F67: ='Startovní listina'!D68 ->  | G67: ='Startovní listina'!E68 ->  | H67: ='Startovní listina'!F68 ->  | I67: ='Startovní listina'!G68 -> 
A68: =IF('Výsledková listina'!D67<>"",A67+1,"") ->  | C68: ='Startovní listina'!H69 ->  | D68: ='Startovní listina'!B69 ->  | E68: ='Startovní listina'!C69 ->  | F68: ='Startovní listina'!D69 ->  | G68: ='Startovní listina'!E69 ->  | H68: ='Startovní listina'!F69 ->  | I68: ='Startovní listina'!G69 -> 
A69: =IF('Výsledková listina'!D68<>"",A68+1,"") ->  | C69: ='Startovní listina'!H70 ->  | D69: ='Startovní listina'!B70 ->  | E69: ='Startovní listina'!C70 ->  | F69: ='Startovní listina'!D70 ->  | G69: ='Startovní listina'!E70 ->  | H69: ='Startovní listina'!F70 ->  | I69: ='Startovní listina'!G70 -> 
A70: =IF('Výsledková listina'!D69<>"",A69+1,"") ->  | C70: ='Startovní listina'!H71 ->  | D70: ='Startovní listina'!B71 ->  | E70: ='Startovní listina'!C71 ->  | F70: ='Startovní listina'!D71 ->  | G70: ='Startovní listina'!E71 ->  | H70: ='Startovní listina'!F71 ->  | I70: ='Startovní listina'!G71 -> 
A71: =IF('Výsledková listina'!D70<>"",A70+1,"") ->  | C71: ='Startovní listina'!H72 ->  | D71: ='Startovní listina'!B72 ->  | E71: ='Startovní listina'!C72 ->  | F71: ='Startovní listina'!D72 ->  | G71: ='Startovní listina'!E72 ->  | H71: ='Startovní listina'!F72 ->  | I71: ='Startovní listina'!G72 -> 
A72: =IF('Výsledková listina'!D71<>"",A71+1,"") ->  | C72: ='Startovní listina'!H73 ->  | D72: ='Startovní listina'!B73 ->  | E72: ='Startovní listina'!C73 ->  | F72: ='Startovní listina'!D73 ->  | G72: ='Startovní listina'!E73 ->  | H72: ='Startovní listina'!F73 ->  | I72: ='Startovní listina'!G73 -> 
A73: =IF('Výsledková listina'!D72<>"",A72+1,"") ->  | C73: ='Startovní listina'!H74 ->  | D73: ='Startovní listina'!B74 ->  | E73: ='Startovní listina'!C74 ->  | F73: ='Startovní listina'!D74 ->  | G73: ='Startovní listina'!E74 ->  | H73: ='Startovní listina'!F74 ->  | I73: ='Startovní listina'!G74 -> 
A74: =IF('Výsledková listina'!D73<>"",A73+1,"") ->  | C74: ='Startovní listina'!H75 ->  | D74: ='Startovní listina'!B75 ->  | E74: ='Startovní listina'!C75 ->  | F74: ='Startovní listina'!D75 ->  | G74: ='Startovní listina'!E75 ->  | H74: ='Startovní listina'!F75 ->  | I74: ='Startovní listina'!G75 -> 
A75: =IF('Výsledková listina'!D74<>"",A74+1,"") ->  | C75: ='Startovní listina'!H76 ->  | D75: ='Startovní listina'!B76 ->  | E75: ='Startovní listina'!C76 ->  | F75: ='Startovní listina'!D76 ->  | G75: ='Startovní listina'!E76 ->  | H75: ='Startovní listina'!F76 ->  | I75: ='Startovní listina'!G76 -> 
A76: =IF('Výsledková listina'!D75<>"",A75+1,"") ->  | C76: ='Startovní listina'!H77 ->  | D76: ='Startovní listina'!B77 ->  | E76: ='Startovní listina'!C77 ->  | F76: ='Startovní listina'!D77 ->  | G76: ='Startovní listina'!E77 ->  | H76: ='Startovní listina'!F77 ->  | I76: ='Startovní listina'!G77 -> 
A77: =IF('Výsledková listina'!D76<>"",A76+1,"") ->  | C77: ='Startovní listina'!H78 ->  | D77: ='Startovní listina'!B78 ->  | E77: ='Startovní listina'!C78 ->  | F77: ='Startovní listina'!D78 ->  | G77: ='Startovní listina'!E78 ->  | H77: ='Startovní listina'!F78 ->  | I77: ='Startovní listina'!G78 -> 
A78: =IF('Výsledková listina'!D77<>"",A77+1,"") ->  | C78: ='Startovní listina'!H79 ->  | D78: ='Startovní listina'!B79 ->  | E78: ='Startovní listina'!C79 ->  | F78: ='Startovní listina'!D79 ->  | G78: ='Startovní listina'!E79 ->  | H78: ='Startovní listina'!F79 ->  | I78: ='Startovní listina'!G79 -> 
A79: =IF('Výsledková listina'!D78<>"",A78+1,"") ->  | C79: ='Startovní listina'!H80 ->  | D79: ='Startovní listina'!B80 ->  | E79: ='Startovní listina'!C80 ->  | F79: ='Startovní listina'!D80 ->  | G79: ='Startovní listina'!E80 ->  | H79: ='Startovní listina'!F80 ->  | I79: ='Startovní listina'!G80 -> 
A80: =IF('Výsledková listina'!D79<>"",A79+1,"") ->  | C80: ='Startovní listina'!H81 ->  | D80: ='Startovní listina'!B81 ->  | E80: ='Startovní listina'!C81 ->  | F80: ='Startovní listina'!D81 ->  | G80: ='Startovní listina'!E81 ->  | H80: ='Startovní listina'!F81 ->  | I80: ='Startovní listina'!G81 -> 
A81: =IF('Výsledková listina'!D80<>"",A80+1,"") ->  | C81: ='Startovní listina'!H82 ->  | D81: ='Startovní listina'!B82 ->  | E81: ='Startovní listina'!C82 ->  | F81: ='Startovní listina'!D82 ->  | G81: ='Startovní listina'!E82 ->  | H81: ='Startovní listina'!F82 ->  | I81: ='Startovní listina'!G82 -> 
A82: =IF('Výsledková listina'!D81<>"",A81+1,"") ->  | C82: ='Startovní listina'!H83 ->  | D82: ='Startovní listina'!B83 ->  | E82: ='Startovní listina'!C83 ->  | F82: ='Startovní listina'!D83 ->  | G82: ='Startovní listina'!E83 ->  | H82: ='Startovní listina'!F83 ->  | I82: ='Startovní listina'!G83 -> 
A83: =IF('Výsledková listina'!D82<>"",A82+1,"") ->  | C83: ='Startovní listina'!H84 ->  | D83: ='Startovní listina'!B84 ->  | E83: ='Startovní listina'!C84 ->  | F83: ='Startovní listina'!D84 ->  | G83: ='Startovní listina'!E84 ->  | H83: ='Startovní listina'!F84 ->  | I83: ='Startovní listina'!G84 -> 
A84: =IF('Výsledková listina'!D83<>"",A83+1,"") ->  | C84: ='Startovní listina'!H85 ->  | D84: ='Startovní listina'!B85 ->  | E84: ='Startovní listina'!C85 ->  | F84: ='Startovní listina'!D85 ->  | G84: ='Startovní listina'!E85 ->  | H84: ='Startovní listina'!F85 ->  | I84: ='Startovní listina'!G85 -> 
A85: =IF('Výsledková listina'!D84<>"",A84+1,"") ->  | C85: ='Startovní listina'!H86 ->  | D85: ='Startovní listina'!B86 ->  | E85: ='Startovní listina'!C86 ->  | F85: ='Startovní listina'!D86 ->  | G85: ='Startovní listina'!E86 ->  | H85: ='Startovní listina'!F86 ->  | I85: ='Startovní listina'!G86 -> 
A86: =IF('Výsledková listina'!D85<>"",A85+1,"") ->  | C86: ='Startovní listina'!H87 ->  | D86: ='Startovní listina'!B87 ->  | E86: ='Startovní listina'!C87 ->  | F86: ='Startovní listina'!D87 ->  | G86: ='Startovní listina'!E87 ->  | H86: ='Startovní listina'!F87 ->  | I86: ='Startovní listina'!G87 -> 
A87: =IF('Výsledková listina'!D86<>"",A86+1,"") ->  | C87: ='Startovní listina'!H88 ->  | D87: ='Startovní listina'!B88 ->  | E87: ='Startovní listina'!C88 ->  | F87: ='Startovní listina'!D88 ->  | G87: ='Startovní listina'!E88 ->  | H87: ='Startovní listina'!F88 ->  | I87: ='Startovní listina'!G88 -> 
A88: =IF('Výsledková listina'!D87<>"",A87+1,"") ->  | C88: ='Startovní listina'!H89 ->  | D88: ='Startovní listina'!B89 ->  | E88: ='Startovní listina'!C89 ->  | F88: ='Startovní listina'!D89 ->  | G88: ='Startovní listina'!E89 ->  | H88: ='Startovní listina'!F89 ->  | I88: ='Startovní listina'!G89 -> 
A89: =IF('Výsledková listina'!D88<>"",A88+1,"") ->  | C89: ='Startovní listina'!H90 ->  | D89: ='Startovní listina'!B90 ->  | E89: ='Startovní listina'!C90 ->  | F89: ='Startovní listina'!D90 ->  | G89: ='Startovní listina'!E90 ->  | H89: ='Startovní listina'!F90 ->  | I89: ='Startovní listina'!G90 -> 
A90: =IF('Výsledková listina'!D89<>"",A89+1,"") ->  | C90: ='Startovní listina'!H91 ->  | D90: ='Startovní listina'!B91 ->  | E90: ='Startovní listina'!C91 ->  | F90: ='Startovní listina'!D91 ->  | G90: ='Startovní listina'!E91 ->  | H90: ='Startovní listina'!F91 ->  | I90: ='Startovní listina'!G91 -> 
A91: =IF('Výsledková listina'!D90<>"",A90+1,"") ->  | C91: ='Startovní listina'!H92 ->  | D91: ='Startovní listina'!B92 ->  | E91: ='Startovní listina'!C92 ->  | F91: ='Startovní listina'!D92 ->  | G91: ='Startovní listina'!E92 ->  | H91: ='Startovní listina'!F92 ->  | I91: ='Startovní listina'!G92 -> 
A92: =IF('Výsledková listina'!D91<>"",A91+1,"") ->  | C92: ='Startovní listina'!H93 ->  | D92: ='Startovní listina'!B93 ->  | E92: ='Startovní listina'!C93 ->  | F92: ='Startovní listina'!D93 ->  | G92: ='Startovní listina'!E93 ->  | H92: ='Startovní listina'!F93 ->  | I92: ='Startovní listina'!G93 -> 
A93: =IF('Výsledková listina'!D92<>"",A92+1,"") ->  | C93: ='Startovní listina'!H94 ->  | D93: ='Startovní listina'!B94 ->  | E93: ='Startovní listina'!C94 ->  | F93: ='Startovní listina'!D94 ->  | G93: ='Startovní listina'!E94 ->  | H93: ='Startovní listina'!F94 ->  | I93: ='Startovní listina'!G94 -> 
A94: =IF('Výsledková listina'!D93<>"",A93+1,"") ->  | C94: ='Startovní listina'!H95 ->  | D94: ='Startovní listina'!B95 ->  | E94: ='Startovní listina'!C95 ->  | F94: ='Startovní listina'!D95 ->  | G94: ='Startovní listina'!E95 ->  | H94: ='Startovní listina'!F95 ->  | I94: ='Startovní listina'!G95 -> 
A95: =IF('Výsledková listina'!D94<>"",A94+1,"") ->  | C95: ='Startovní listina'!H96 ->  | D95: ='Startovní listina'!B96 ->  | E95: ='Startovní listina'!C96 ->  | F95: ='Startovní listina'!D96 ->  | G95: ='Startovní listina'!E96 ->  | H95: ='Startovní listina'!F96 ->  | I95: ='Startovní listina'!G96 -> 
A96: =IF('Výsledková listina'!D95<>"",A95+1,"") ->  | C96: ='Startovní listina'!H97 ->  | D96: ='Startovní listina'!B97 ->  | E96: ='Startovní listina'!C97 ->  | F96: ='Startovní listina'!D97 ->  | G96: ='Startovní listina'!E97 ->  | H96: ='Startovní listina'!F97 ->  | I96: ='Startovní listina'!G97 -> 
A97: =IF('Výsledková listina'!D96<>"",A96+1,"") ->  | C97: ='Startovní listina'!H98 ->  | D97: ='Startovní listina'!B98 ->  | E97: ='Startovní listina'!C98 ->  | F97: ='Startovní listina'!D98 ->  | G97: ='Startovní listina'!E98 ->  | H97: ='Startovní listina'!F98 ->  | I97: ='Startovní listina'!G98 -> 
A98: =IF('Výsledková listina'!D97<>"",A97+1,"") ->  | C98: ='Startovní listina'!H99 ->  | D98: ='Startovní listina'!B99 ->  | E98: ='Startovní listina'!C99 ->  | F98: ='Startovní listina'!D99 ->  | G98: ='Startovní listina'!E99 ->  | H98: ='Startovní listina'!F99 ->  | I98: ='Startovní listina'!G99 -> 
A99: =IF('Výsledková listina'!D98<>"",A98+1,"") ->  | C99: ='Startovní listina'!H100 ->  | D99: ='Startovní listina'!B100 ->  | E99: ='Startovní listina'!C100 ->  | F99: ='Startovní listina'!D100 ->  | G99: ='Startovní listina'!E100 ->  | H99: ='Startovní listina'!F100 ->  | I99: ='Startovní listina'!G100 -> 
A100: =IF('Výsledková listina'!D99<>"",A99+1,"") ->  | C100: ='Startovní listina'!H101 ->  | D100: ='Startovní listina'!B101 ->  | E100: ='Startovní listina'!C101 ->  | F100: ='Startovní listina'!D101 ->  | G100: ='Startovní listina'!E101 ->  | H100: ='Startovní listina'!F101 ->  | I100: ='Startovní listina'!G101 -> 
A101: =IF('Výsledková listina'!D100<>"",A100+1,"") ->  | C101: ='Startovní listina'!H102 ->  | D101: ='Startovní listina'!B102 ->  | E101: ='Startovní listina'!C102 ->  | F101: ='Startovní listina'!D102 ->  | G101: ='Startovní listina'!E102 ->  | H101: ='Startovní listina'!F102 ->  | I101: ='Startovní listina'!G102 -> 
A102: =IF('Výsledková listina'!D101<>"",A101+1,"") ->  | C102: ='Startovní listina'!H103 ->  | D102: ='Startovní listina'!B103 ->  | E102: ='Startovní listina'!C103 ->  | F102: ='Startovní listina'!D103 ->  | G102: ='Startovní listina'!E103 ->  | H102: ='Startovní listina'!F103 ->  | I102: ='Startovní listina'!G103 -> 
A103: =IF('Výsledková listina'!D102<>"",A102+1,"") ->  | C103: ='Startovní listina'!H104 ->  | D103: ='Startovní listina'!B104 ->  | E103: ='Startovní listina'!C104 ->  | F103: ='Startovní listina'!D104 ->  | G103: ='Startovní listina'!E104 ->  | H103: ='Startovní listina'!F104 ->  | I103: ='Startovní listina'!G104 -> 

Sheet Běh přes přehradu
A1: ='Startovní listina'!A3:H3&" Běhu přes přehradu "&'Prezenční listina'!U2 -> 14. ročník Běhu přes přehradu 2018
A2: ='Startovní listina'!A2:H2 -> 2018-05-26
B3: Příjmení | C3: Jméno | D3: Narození | E3: Oddíl / Bydliště | F3: Startovní číslo | G3: Čas | H3: Pohlaví
A4: 1 | B4: Králík | C4: Luděk | D4: 2000 | E4: Brno | F4: 106 | G4: 00:17:04 | H4: =IF(LEN(B4)=0," ",IF(MID(B4,LEN(B4),1)="á","Ž","M")) -> M
A5: =IF(B5="","",A4+1) -> 2 | B5: Bednář | C5: Jan | D5: 1992 | E5: Polná | F5: 102 | G5: 00:17:34 | H5: M
A6: =IF(B6="","",A5+1) -> 3 | B6: Štýbnar | C6: Štěpán | D6: 2003 | E6: PTEAM | F6: 112 | G6: 00:17:41 | H6: M
A7: 4 | B7: Coural | C7: Jaroslav | D7: 2002 | E7: Vír | F7: 103 | G7: 00:18:00 | H7: M
A8: 5 | B8: Jonáš | C8: Jakub | D8: 2003 | E8: SK ANTE, Žďár nad Sázavou | F8: 105 | G8: 00:18:28 | H8: M | K8: ,
A9: 6 | B9: Janů | C9: Petr | D9: 2003 | E9: Hlinné | F9: 104 | G9: 00:19:04 | H9: M
A10: 7 | B10: Pohanka | C10: Tomáš | D10: 2009 | E10: Drásov | F10: 108 | G10: 00:20:10 | H10: M
A11: 8 | B11: Žličař | C11: Karel | D11: 1977 | E11: Polička | F11: 114 | G11: 00:21:09 | H11: M
A12: 9 | B12: Pučálka | C12: Radek | D12: 1973 | E12: Štěpánov | F12: 109 | G12: 00:21:10 | H12: M
A13: 10 | B13: Tomek | C13: Miloš | D13: 1963 | E13: Letovice | F13: 113 | G13: 00:23:52 | H13: M
A14: 11 | B14: Řehůřek | C14: Michal | D14: 1988 | E14: Vír | F14: 110 | G14: 00:24:27 | H14: M
A15: 12 | B15: Kuneš | C15: Vincent | D15: 2008 | E15: Tišnov | F15: 107 | G15: 00:26:30 | H15: M
A16: 13 | B16: Šenkýř | C16: David | D16: 1991 | E16: Vír | F16: 111 | G16: 00:27:14 | H16: M
A17: 1 | B17: Glierová | C17: Renata | D17: 1985 | E17: SDH Doubravník | F17: 116 | G17: 00:20:16 | H17: Ž
A18: 2 | B18: Oberreiterová | C18: Renata | D18: 2000 | E18: Polná | F18: 121 | G18: 00:21:06 | H18: Ž
A19: 3 | B19: Oberreiterová | C19: Kristýna | D19: 2000 | E19: Polná | F19: 122 | G19: 00:21:07 | H19: Ž
A20: 4 | B20: Uhlířová | C20: Magda | D20: 1980 | E20: Domanínek | F20: 127 | G20: 00:23:21 | H20: Ž
A21: 5 | B21: Stalmachová | C21: Nika | D21: 2002 | E21: Vír | F21: 125 | G21: 00:23:51 | H21: Ž
A22: 6 | B22: Pečínková | C22: Zuzana | D22: 1987 | E22: Domanín | F22: 123 | G22: 00:25:25 | H22: Ž
A23: 7 | B23: Havlová | C23: Gabriela | D23: 1975 | E23: Vír | F23: 117 | G23: 00:27:13 | H23: Ž
A24: 8 | B24: Dufková | C24: Miroslava | D24: 1970 | E24: 4MaxFitness | F24: 115 | G24: 00:29:30 | H24: Ž
A25: 9 | B25: Skryjová | C25: Zdena | D25: 1965 | E25: 4MaxFitness | F25: 124 | G25: 00:29:36 | H25: Ž
A26: 10 | B26: Chadimová | C26: Vladimíra | D26: 1972 | E26: Malhostovice | F26: 118 | G26: 00:29:53 | H26: Ž
A27: 11 | B27: Kunešová | C27: Violeta | D27: 2010 | E27: Tišnov | F27: 119 | G27: 00:33:43 | H27: Ž
A28: 12 | B28: Kunešová | C28: Monika | D28: 1978 | E28: Tišnov | F28: 120 | G28: 00:33:44 | H28: Ž
A29: 13 | B29: Tomková | C29: Alena | D29: 1991 | E29: Letovice | F29: 126 | G29: 00:36:08 | H29: Ž
H36: =IF(LEN(B36)=0," ",IF(MID(B36,LEN(B36),1)="á","Ž","M")) -> 

Sheet mezičasy 2017 (hidden)
A1: 5. km | C1: 10. km | E1: 22. km
A2: číslo | B2: čas | C2: číslo | D2: čas | E2: číslo | F2: čas
A3: 51 | B3: 00:18:47 | C3: 51 | D3: 00:36:23 | E3: 24 | F3: 01:22:30
A4: 24 | B4: 00:18:59 | C4: 24 | D4: 00:36:27 | E4: 51 | F4: 01:23:12
A5: 69 | B5: 00:20:00 | C5: 69 | D5: 00:39:24 | E5: 10 | F5: 01:29:22
A6: 37 | B6: 00:20:17 | C6: 49 | D6: 00:39:30 | E6: 36 | F6: 01:30:12
A7: 49 | B7: 00:20:20 | C7: 37 | D7: 00:39:32 | E7: 49 | F7: 01:30:12
A8: 10 | B8: 00:20:52 | C8: 36 | D8: 00:40:03 | E8: 69 | F8: 01:30:59
A9: 36 | B9: 00:20:52 | C9: 10 | D9: 00:40:03 | F9: : :
A10: 38 | B10: 00:21:06 | C10: 23 | D10: 00:40:57 | F10: : :
A11: 23 | B11: 00:21:35 | C11: 38 | D11: 00:41:27 | F11: : :
A12: 21 | B12: 00:22:01 | C12: 21 | D12: 00:43:05 | F12: : :
A13: 54 | B13: 00:22:07 | C13: 54 | D13: 00:43:24
A14: 19 | B14: 00:22:55 | C14: 19 | D14: 00:44:48

Sheet mezičasy tisk (hidden)
A1: 5. km | C1: 10. km | E1: 22. km
A2: číslo | B2: čas | C2: číslo | D2: čas | E2: číslo | F2: čas
B3: : : | D3: : : | F3: : :
B4: : : | D4: : : | F4: : :
B5: : : | D5: : : | F5: : :
B6: : : | D6: : : | F6: : :
B7: : : | D7: : : | F7: : :
B8: : : | D8: : : | F8: : :
B9: : : | D9: : : | F9: : :
B10: : : | D10: : : | F10: : :
B11: : : | D11: : : | F11: : :
B12: : : | D12: : : | F12: : :
B13: : : | D13: : : | F13: : :
B14: : : | D14: : : | F14: : :
B15: : : | D15: : : | F15: : :
B16: : : | D16: : : | F16: : :
B17: : : | D17: : : | F17: : :
B18: : : | D18: : : | F18: : :
B19: : : | D19: : : | F19: : :
B20: : : | D20: : : | F20: : :
B21: : : | D21: : : | F21: : :
B22: : : | D22: : : | F22: : :
B23: : : | D23: : : | F23: : :
B24: : : | D24: : : | F24: : :

Sheet Diplom MSM A5 (hidden)
D27: ='Výsledková listina'!E5&" "&'Výsledková listina'!F5 -> Kohut Jan
G30: ='Výsledková listina'!B5&"." -> 1.
D32: ='Výsledková listina'!C5 -> A
M33: ='Výsledková listina'!J5 -> 01:47:49
G36: 20. srpna 2016

Sheet Diplom MSM A5 (2) (hidden)
D27: ='Výsledková listina'!E6&" "&'Výsledková listina'!F6 -> Hradecký Jaromír
G30: ='Výsledková listina'!B6&"." -> 2.
D32: ='Výsledková listina'!C6 -> A
M33: ='Výsledková listina'!J6 -> 01:49:08
G36: 20. srpna 2016

Sheet Družstva (prac.) (hidden)
B1: ="Výsledková listina - Malý svratecký maratón "&'Prezenční listina'!U2&" - družstva" -> Výsledková listina - Malý svratecký maratón 2018 - družstva
B2: ='Prezenční listina'!U2-1953&". ročník" -> 65. ročník
B3: Pořadí | C3: Startovní číslo | D3: Příjmení | E3: Jméno | F3: Narození | G3: Oddíl / Bydliště | H3: Čas | I3: Výsledný čas
B4: 1. | C4: 3 | D4: =IF(ISERROR(VLOOKUP(C4,'Startovní listina'!$B$5:$G$141,2)),"",VLOOKUP(C4,'Startovní listina'!$B$5:$G$141,2)) -> Hanák | E4: =IF(ISERROR(VLOOKUP(C4,'Startovní listina'!$B$5:$G$141,3)),"",VLOOKUP(C4,'Startovní listina'!$B$5:$G$141,3)) -> Jakub | F4: =IF(ISERROR(VLOOKUP(C4,'Startovní listina'!$B$5:$G$141,4)),"",VLOOKUP(C4,'Startovní listina'!$B$5:$G$141,4)) -> 1986 | G4: =IF(K4=K5,K4,"RŮZNÉ ODDÍLY !!!") -> RŮZNÉ ODDÍLY !!! | H4: 03:07:50 | I4: =IF((H4=0),"",H4+H5) -> 05:48:15 | K4: =IF(ISERROR(VLOOKUP(C4,'Startovní listina'!$B$5:$G$141,5)),"",VLOOKUP(C4,'Startovní listina'!$B$5:$G$141,5)) -> Vír
C5: 2 | D5: =IF(ISERROR(VLOOKUP(C5,'Startovní listina'!$B$5:$G$141,2)),"",VLOOKUP(C5,'Startovní listina'!$B$5:$G$141,2)) -> Kuneš | E5: =IF(ISERROR(VLOOKUP(C5,'Startovní listina'!$B$5:$G$141,3)),"",VLOOKUP(C5,'Startovní listina'!$B$5:$G$141,3)) -> David | F5: =IF(ISERROR(VLOOKUP(C5,'Startovní listina'!$B$5:$G$141,4)),"",VLOOKUP(C5,'Startovní listina'!$B$5:$G$141,4)) -> 1974 | H5: 02:40:25 | K5: =IF(ISERROR(VLOOKUP(C5,'Startovní listina'!$B$5:$G$141,5)),"",VLOOKUP(C5,'Startovní listina'!$B$5:$G$141,5)) -> Tišnov
B6: 2. | C6: 11 | D6: =IF(ISERROR(VLOOKUP(C6,'Startovní listina'!$B$5:$G$141,2)),"",VLOOKUP(C6,'Startovní listina'!$B$5:$G$141,2)) -> Vrba | E6: =IF(ISERROR(VLOOKUP(C6,'Startovní listina'!$B$5:$G$141,3)),"",VLOOKUP(C6,'Startovní listina'!$B$5:$G$141,3)) -> Tomáš | F6: =IF(ISERROR(VLOOKUP(C6,'Startovní listina'!$B$5:$G$141,4)),"",VLOOKUP(C6,'Startovní listina'!$B$5:$G$141,4)) -> 1986 | G6: =IF(K6=K7,K6,"RŮZNÉ ODDÍLY !!!") -> RŮZNÉ ODDÍLY !!! | H6: 02:01:16 | I6: =IF((H6=0),"",H6+H7) -> 04:06:56 | K6: =IF(ISERROR(VLOOKUP(C6,'Startovní listina'!$B$5:$G$141,5)),"",VLOOKUP(C6,'Startovní listina'!$B$5:$G$141,5)) -> Bystré
C7: 8 | D7: =IF(ISERROR(VLOOKUP(C7,'Startovní listina'!$B$5:$G$141,2)),"",VLOOKUP(C7,'Startovní listina'!$B$5:$G$141,2)) -> Faja | E7: =IF(ISERROR(VLOOKUP(C7,'Startovní listina'!$B$5:$G$141,3)),"",VLOOKUP(C7,'Startovní listina'!$B$5:$G$141,3)) -> Ondřej | F7: =IF(ISERROR(VLOOKUP(C7,'Startovní listina'!$B$5:$G$141,4)),"",VLOOKUP(C7,'Startovní listina'!$B$5:$G$141,4)) -> 1976 | H7: 02:05:40 | K7: =IF(ISERROR(VLOOKUP(C7,'Startovní listina'!$B$5:$G$141,5)),"",VLOOKUP(C7,'Startovní listina'!$B$5:$G$141,5)) -> Brno
B8: 3. | C8: 9 | D8: =IF(ISERROR(VLOOKUP(C8,'Startovní listina'!$B$5:$G$141,2)),"",VLOOKUP(C8,'Startovní listina'!$B$5:$G$141,2)) -> Labedz | E8: =IF(ISERROR(VLOOKUP(C8,'Startovní listina'!$B$5:$G$141,3)),"",VLOOKUP(C8,'Startovní listina'!$B$5:$G$141,3)) -> Jan | F8: =IF(ISERROR(VLOOKUP(C8,'Startovní listina'!$B$5:$G$141,4)),"",VLOOKUP(C8,'Startovní listina'!$B$5:$G$141,4)) -> 1984 | G8: =IF(K8=K9,K8,"RŮZNÉ ODDÍLY !!!") -> RŮZNÉ ODDÍLY !!! | H8: 02:40:16 | I8: =IF((H8=0),"",H8+H9) -> 05:12:53 | K8: =IF(ISERROR(VLOOKUP(C8,'Startovní listina'!$B$5:$G$141,5)),"",VLOOKUP(C8,'Startovní listina'!$B$5:$G$141,5)) -> Svinošice
C9: 10 | D9: =IF(ISERROR(VLOOKUP(C9,'Startovní listina'!$B$5:$G$141,2)),"",VLOOKUP(C9,'Startovní listina'!$B$5:$G$141,2)) -> Štýbnar | E9: =IF(ISERROR(VLOOKUP(C9,'Startovní listina'!$B$5:$G$141,3)),"",VLOOKUP(C9,'Startovní listina'!$B$5:$G$141,3)) -> Zbyněk | F9: =IF(ISERROR(VLOOKUP(C9,'Startovní listina'!$B$5:$G$141,4)),"",VLOOKUP(C9,'Startovní listina'!$B$5:$G$141,4)) -> 1974 | H9: 02:32:37 | K9: =IF(ISERROR(VLOOKUP(C9,'Startovní listina'!$B$5:$G$141,5)),"",VLOOKUP(C9,'Startovní listina'!$B$5:$G$141,5)) -> 0
B10: 4. | C10: 23 | D10: =IF(ISERROR(VLOOKUP(C10,'Startovní listina'!$B$5:$G$141,2)),"",VLOOKUP(C10,'Startovní listina'!$B$5:$G$141,2)) -> Šimunek | E10: =IF(ISERROR(VLOOKUP(C10,'Startovní listina'!$B$5:$G$141,3)),"",VLOOKUP(C10,'Startovní listina'!$B$5:$G$141,3)) -> Martin | F10: =IF(ISERROR(VLOOKUP(C10,'Startovní listina'!$B$5:$G$141,4)),"",VLOOKUP(C10,'Startovní listina'!$B$5:$G$141,4)) -> 1966 | G10: =IF(K10=K11,K10,"RŮZNÉ ODDÍLY !!!") -> RŮZNÉ ODDÍLY !!! | H10: 03:04:10 | I10: =IF((H10=0),"",H10+H11) -> 06:10:48 | K10: =IF(ISERROR(VLOOKUP(C10,'Startovní listina'!$B$5:$G$141,5)),"",VLOOKUP(C10,'Startovní listina'!$B$5:$G$141,5)) -> Modřice
C11: 24 | D11: =IF(ISERROR(VLOOKUP(C11,'Startovní listina'!$B$5:$G$141,2)),"",VLOOKUP(C11,'Startovní listina'!$B$5:$G$141,2)) -> Nosek | E11: =IF(ISERROR(VLOOKUP(C11,'Startovní listina'!$B$5:$G$141,3)),"",VLOOKUP(C11,'Startovní listina'!$B$5:$G$141,3)) -> Pavel | F11: =IF(ISERROR(VLOOKUP(C11,'Startovní listina'!$B$5:$G$141,4)),"",VLOOKUP(C11,'Startovní listina'!$B$5:$G$141,4)) -> 1965 | H11: 03:06:38 | K11: =IF(ISERROR(VLOOKUP(C11,'Startovní listina'!$B$5:$G$141,5)),"",VLOOKUP(C11,'Startovní listina'!$B$5:$G$141,5)) -> Slavkov u Brna
B12: 5. | C12: 35 | D12: =IF(ISERROR(VLOOKUP(C12,'Startovní listina'!$B$5:$G$141,2)),"",VLOOKUP(C12,'Startovní listina'!$B$5:$G$141,2)) -> Vintrlík | E12: =IF(ISERROR(VLOOKUP(C12,'Startovní listina'!$B$5:$G$141,3)),"",VLOOKUP(C12,'Startovní listina'!$B$5:$G$141,3)) -> Martin | F12: =IF(ISERROR(VLOOKUP(C12,'Startovní listina'!$B$5:$G$141,4)),"",VLOOKUP(C12,'Startovní listina'!$B$5:$G$141,4)) -> 1977 | G12: =IF(K12=K13,K12,"RŮZNÉ ODDÍLY !!!") -> RŮZNÉ ODDÍLY !!! | H12: 02:31:40 | I12: =IF((H12=0),"",H12+H13) -> 06:21:15 | K12: =IF(ISERROR(VLOOKUP(C12,'Startovní listina'!$B$5:$G$141,5)),"",VLOOKUP(C12,'Startovní listina'!$B$5:$G$141,5)) -> Křepice
C13: 36 | D13: =IF(ISERROR(VLOOKUP(C13,'Startovní listina'!$B$5:$G$141,2)),"",VLOOKUP(C13,'Startovní listina'!$B$5:$G$141,2)) -> Hradecký | E13: =IF(ISERROR(VLOOKUP(C13,'Startovní listina'!$B$5:$G$141,3)),"",VLOOKUP(C13,'Startovní listina'!$B$5:$G$141,3)) -> Jaromír | F13: =IF(ISERROR(VLOOKUP(C13,'Startovní listina'!$B$5:$G$141,4)),"",VLOOKUP(C13,'Startovní listina'!$B$5:$G$141,4)) -> 1985 | H13: 03:49:35 | K13: =IF(ISERROR(VLOOKUP(C13,'Startovní listina'!$B$5:$G$141,5)),"",VLOOKUP(C13,'Startovní listina'!$B$5:$G$141,5)) -> Skuteč
B14: 6. | C14: 82 | D14: =IF(ISERROR(VLOOKUP(C14,'Startovní listina'!$B$5:$G$141,2)),"",VLOOKUP(C14,'Startovní listina'!$B$5:$G$141,2)) -> Kratochvíl | E14: =IF(ISERROR(VLOOKUP(C14,'Startovní listina'!$B$5:$G$141,3)),"",VLOOKUP(C14,'Startovní listina'!$B$5:$G$141,3)) -> Jaroslav | F14: =IF(ISERROR(VLOOKUP(C14,'Startovní listina'!$B$5:$G$141,4)),"",VLOOKUP(C14,'Startovní listina'!$B$5:$G$141,4)) -> 1977 | G14: =IF(K14=K15,K14,"RŮZNÉ ODDÍLY !!!") -> Moravany | H14: 02:11:00 | I14: =IF((H14=0),"",H14+H15) -> 04:05:34 | K14: =IF(ISERROR(VLOOKUP(C14,'Startovní listina'!$B$5:$G$141,5)),"",VLOOKUP(C14,'Startovní listina'!$B$5:$G$141,5)) -> Moravany
C15: 107 | D15: =IF(ISERROR(VLOOKUP(C15,'Startovní listina'!$B$5:$G$141,2)),"",VLOOKUP(C15,'Startovní listina'!$B$5:$G$141,2)) -> Kratochvíl | E15: =IF(ISERROR(VLOOKUP(C15,'Startovní listina'!$B$5:$G$141,3)),"",VLOOKUP(C15,'Startovní listina'!$B$5:$G$141,3)) -> Jaroslav | F15: =IF(ISERROR(VLOOKUP(C15,'Startovní listina'!$B$5:$G$141,4)),"",VLOOKUP(C15,'Startovní listina'!$B$5:$G$141,4)) -> 1977 | H15: 01:54:34 | K15: =IF(ISERROR(VLOOKUP(C15,'Startovní listina'!$B$5:$G$141,5)),"",VLOOKUP(C15,'Startovní listina'!$B$5:$G$141,5)) -> Moravany
B16: 7. | C16: 28 | D16: =IF(ISERROR(VLOOKUP(C16,'Startovní listina'!$B$5:$G$141,2)),"",VLOOKUP(C16,'Startovní listina'!$B$5:$G$141,2)) -> Kupka | E16: =IF(ISERROR(VLOOKUP(C16,'Startovní listina'!$B$5:$G$141,3)),"",VLOOKUP(C16,'Startovní listina'!$B$5:$G$141,3)) -> Pavel | F16: =IF(ISERROR(VLOOKUP(C16,'Startovní listina'!$B$5:$G$141,4)),"",VLOOKUP(C16,'Startovní listina'!$B$5:$G$141,4)) -> 1975 | G16: =IF(K16=K17,K16,"RŮZNÉ ODDÍLY !!!") -> RŮZNÉ ODDÍLY !!! | H16: 02:19:07 | I16: =IF((H16=0),"",H16+H17) -> 04:24:14 | K16: =IF(ISERROR(VLOOKUP(C16,'Startovní listina'!$B$5:$G$141,5)),"",VLOOKUP(C16,'Startovní listina'!$B$5:$G$141,5)) -> Lukovany
C17: 26 | D17: =IF(ISERROR(VLOOKUP(C17,'Startovní listina'!$B$5:$G$141,2)),"",VLOOKUP(C17,'Startovní listina'!$B$5:$G$141,2)) -> Hakl | E17: =IF(ISERROR(VLOOKUP(C17,'Startovní listina'!$B$5:$G$141,3)),"",VLOOKUP(C17,'Startovní listina'!$B$5:$G$141,3)) -> Zdeněk | F17: =IF(ISERROR(VLOOKUP(C17,'Startovní listina'!$B$5:$G$141,4)),"",VLOOKUP(C17,'Startovní listina'!$B$5:$G$141,4)) -> 1982 | H17: 02:05:07 | K17: =IF(ISERROR(VLOOKUP(C17,'Startovní listina'!$B$5:$G$141,5)),"",VLOOKUP(C17,'Startovní listina'!$B$5:$G$141,5)) -> Žďár nad Sázavou
B18: 8. | D18: =IF(ISERROR(VLOOKUP(C18,'Startovní listina'!$B$5:$G$141,2)),"",VLOOKUP(C18,'Startovní listina'!$B$5:$G$141,2)) ->  | E18: =IF(ISERROR(VLOOKUP(C18,'Startovní listina'!$B$5:$G$141,3)),"",VLOOKUP(C18,'Startovní listina'!$B$5:$G$141,3)) ->  | F18: =IF(ISERROR(VLOOKUP(C18,'Startovní listina'!$B$5:$G$141,4)),"",VLOOKUP(C18,'Startovní listina'!$B$5:$G$141,4)) ->  | G18: =IF(K18=K19,K18,"RŮZNÉ ODDÍLY !!!") ->  | I18: =IF((H18=0),"",H18+H19) ->  | K18: =IF(ISERROR(VLOOKUP(C18,'Startovní listina'!$B$5:$G$141,5)),"",VLOOKUP(C18,'Startovní listina'!$B$5:$G$141,5)) -> 
D19: =IF(ISERROR(VLOOKUP(C19,'Startovní listina'!$B$5:$G$141,2)),"",VLOOKUP(C19,'Startovní listina'!$B$5:$G$141,2)) ->  | E19: =IF(ISERROR(VLOOKUP(C19,'Startovní listina'!$B$5:$G$141,3)),"",VLOOKUP(C19,'Startovní listina'!$B$5:$G$141,3)) ->  | F19: =IF(ISERROR(VLOOKUP(C19,'Startovní listina'!$B$5:$G$141,4)),"",VLOOKUP(C19,'Startovní listina'!$B$5:$G$141,4)) ->  | K19: =IF(ISERROR(VLOOKUP(C19,'Startovní listina'!$B$5:$G$141,5)),"",VLOOKUP(C19,'Startovní listina'!$B$5:$G$141,5)) -> 
B20: 9. | D20: =IF(ISERROR(VLOOKUP(C20,'Startovní listina'!$B$5:$G$141,2)),"",VLOOKUP(C20,'Startovní listina'!$B$5:$G$141,2)) ->  | E20: =IF(ISERROR(VLOOKUP(C20,'Startovní listina'!$B$5:$G$141,3)),"",VLOOKUP(C20,'Startovní listina'!$B$5:$G$141,3)) ->  | F20: =IF(ISERROR(VLOOKUP(C20,'Startovní listina'!$B$5:$G$141,4)),"",VLOOKUP(C20,'Startovní listina'!$B$5:$G$141,4)) ->  | G20: =IF(K20=K21,K20,"RŮZNÉ ODDÍLY !!!") ->  | I20: =IF((H20=0),"",H20+H21) ->  | K20: =IF(ISERROR(VLOOKUP(C20,'Startovní listina'!$B$5:$G$141,5)),"",VLOOKUP(C20,'Startovní listina'!$B$5:$G$141,5)) -> 
D21: =IF(ISERROR(VLOOKUP(C21,'Startovní listina'!$B$5:$G$141,2)),"",VLOOKUP(C21,'Startovní listina'!$B$5:$G$141,2)) ->  | E21: =IF(ISERROR(VLOOKUP(C21,'Startovní listina'!$B$5:$G$141,3)),"",VLOOKUP(C21,'Startovní listina'!$B$5:$G$141,3)) ->  | F21: =IF(ISERROR(VLOOKUP(C21,'Startovní listina'!$B$5:$G$141,4)),"",VLOOKUP(C21,'Startovní listina'!$B$5:$G$141,4)) ->  | K21: =IF(ISERROR(VLOOKUP(C21,'Startovní listina'!$B$5:$G$141,5)),"",VLOOKUP(C21,'Startovní listina'!$B$5:$G$141,5)) -> 

Sheet Výsledková listina (2) (hidden)
A1: ="Výsledková listina - Malý svratecký maraton "&'Prezenční listina'!U2 -> Výsledková listina - Malý svratecký maraton 2018
A2: 2015-08-22 | K2: Poté, co jsou dopsány časy VŠECH běžců, stisknout tlačítko 1.řazení Ve sloupci B (Pořadí v kategorii) vytvořit posloupnou číselnou řadu pro každou kategorii a poté stisknout tlačítko 2.řazení !!! POZOR!!! Použití tlačítek je nevratný krok!
A3: ='Prezenční listina'!U2-1953&". ročník" -> 65. ročník
A4: Celkové pořadí | B4: Pořadí v kategorii | C4: Kategorie | D4: Startovní číslo | E4: Příjmení | F4: Jméno | G4: Narození | H4: Oddíl / Bydliště | I4: Čas
A5: 1 | B5: 1 | C5: ='Startovní listina'!H47 -> A | D5: ='Startovní listina'!B47 -> 43 | E5: ='Startovní listina'!C47 -> Glier | F5: ='Startovní listina'!F47 -> Doubravník | G5: ='Startovní listina'!G47 -> SDH Doubravník | H5: ='Startovní listina'!#REF! ->  | I5: 02:19:48
A6: =IF('Výsledková listina (2)'!D5<>"",A5+1,"") -> 2 | C6: ='Startovní listina'!H71 ->  | D6: ='Startovní listina'!B71 ->  | E6: ='Startovní listina'!C71 ->  | F6: ='Startovní listina'!F71 ->  | G6: ='Startovní listina'!G71 ->  | H6: ='Startovní listina'!#REF! ->  | I6: 02:47:00
A7: =IF('Výsledková listina (2)'!D6<>"",A6+1,"") ->  | C7: ='Startovní listina'!H5 -> A | D7: ='Startovní listina'!B5 -> 1 | E7: ='Startovní listina'!C5 -> Hübner | F7: ='Startovní listina'!F5 -> Brno | G7: ='Startovní listina'!G5 -> SDH Bolešín | H7: ='Startovní listina'!#REF! ->  | I7: 03:02:17
A8: =IF('Výsledková listina (2)'!D7<>"",A7+1,"") ->  | C8: ='Startovní listina'!H85 ->  | D8: ='Startovní listina'!B85 ->  | E8: ='Startovní listina'!C85 ->  | F8: ='Startovní listina'!F85 ->  | G8: ='Startovní listina'!G85 ->  | H8: ='Startovní listina'!#REF! ->  | I8: 03:28:11
A9: =IF('Výsledková listina (2)'!D8<>"",A8+1,"") ->  | C9: ='Startovní listina'!H59 ->  | D9: ='Startovní listina'!B59 ->  | E9: ='Startovní listina'!C59 ->  | F9: ='Startovní listina'!F59 ->  | G9: ='Startovní listina'!G59 ->  | H9: ='Startovní listina'!#REF! ->  | I9: 02:23:11
A10: =IF('Výsledková listina (2)'!D9<>"",A9+1,"") ->  | C10: ='Startovní listina'!H46 -> B | D10: ='Startovní listina'!B46 -> 42 | E10: ='Startovní listina'!C46 -> Fritscher | F10: ='Startovní listina'!F46 -> 0 | G10: ='Startovní listina'!G46 -> TJ Liga 100 Olomouc | H10: ='Startovní listina'!#REF! ->  | I10: 02:50:33
A11: =IF('Výsledková listina (2)'!D10<>"",A10+1,"") ->  | C11: ='Startovní listina'!H28 -> C | D11: ='Startovní listina'!B28 -> 24 | E11: ='Startovní listina'!C28 -> Nosek | F11: ='Startovní listina'!F28 -> Slavkov u Brna | G11: ='Startovní listina'!G28 -> ASK Slavkov | H11: ='Startovní listina'!#REF! ->  | I11: 02:26:07
A12: =IF('Výsledková listina (2)'!D11<>"",A11+1,"") ->  | C12: ='Startovní listina'!H67 ->  | D12: ='Startovní listina'!B67 ->  | E12: ='Startovní listina'!C67 ->  | F12: ='Startovní listina'!F67 ->  | G12: ='Startovní listina'!G67 ->  | H12: ='Startovní listina'!#REF! ->  | I12: 02:34:42
A13: =IF('Výsledková listina (2)'!D12<>"",A12+1,"") ->  | C13: ='Startovní listina'!H68 ->  | D13: ='Startovní listina'!B68 ->  | E13: ='Startovní listina'!C68 ->  | F13: ='Startovní listina'!F68 ->  | G13: ='Startovní listina'!G68 ->  | H13: ='Startovní listina'!#REF! ->  | I13: 02:42:43
A14: =IF('Výsledková listina (2)'!D13<>"",A13+1,"") ->  | C14: ='Startovní listina'!H62 ->  | D14: ='Startovní listina'!B62 ->  | E14: ='Startovní listina'!C62 ->  | F14: ='Startovní listina'!F62 ->  | G14: ='Startovní listina'!G62 ->  | H14: ='Startovní listina'!#REF! ->  | I14: 02:42:35
A15: =IF('Výsledková listina (2)'!D14<>"",A14+1,"") ->  | C15: ='Startovní listina'!H55 ->  | D15: ='Startovní listina'!B55 ->  | E15: ='Startovní listina'!C55 ->  | F15: ='Startovní listina'!F55 ->  | G15: ='Startovní listina'!G55 ->  | H15: ='Startovní listina'!#REF! ->  | I15: 02:40:36
A16: =IF('Výsledková listina (2)'!D15<>"",A15+1,"") ->  | C16: ='Startovní listina'!H60 ->  | D16: ='Startovní listina'!B60 ->  | E16: ='Startovní listina'!C60 ->  | F16: ='Startovní listina'!F60 ->  | G16: ='Startovní listina'!G60 ->  | H16: ='Startovní listina'!#REF! ->  | I16: 02:38:54
A17: =IF('Výsledková listina (2)'!D16<>"",A16+1,"") ->  | C17: ='Startovní listina'!H7 -> A | D17: ='Startovní listina'!B7 -> 3 | E17: ='Startovní listina'!C7 -> Hanák | F17: ='Startovní listina'!F7 -> Vír | G17: ='Startovní listina'!G7 -> Plant Powered Runners | H17: ='Startovní listina'!#REF! ->  | I17: 03:07:50
A18: =IF('Výsledková listina (2)'!D17<>"",A17+1,"") ->  | C18: ='Startovní listina'!H63 ->  | D18: ='Startovní listina'!B63 ->  | E18: ='Startovní listina'!C63 ->  | F18: ='Startovní listina'!F63 ->  | G18: ='Startovní listina'!G63 ->  | H18: ='Startovní listina'!#REF! ->  | I18: 02:39:15
A19: =IF('Výsledková listina (2)'!D18<>"",A18+1,"") ->  | C19: ='Startovní listina'!H49 ->  | D19: ='Startovní listina'!B49 ->  | E19: ='Startovní listina'!C49 ->  | F19: ='Startovní listina'!F49 ->  | G19: ='Startovní listina'!G49 ->  | H19: ='Startovní listina'!#REF! ->  | I19: 02:13:13
A20: =IF('Výsledková listina (2)'!D19<>"",A19+1,"") ->  | C20: ='Startovní listina'!H14 -> B | D20: ='Startovní listina'!B14 -> 10 | E20: ='Startovní listina'!C14 -> Štýbnar | F20: ='Startovní listina'!F14 -> 0 | G20: ='Startovní listina'!G14 -> PTEAM | H20: ='Startovní listina'!#REF! ->  | I20: 02:32:37
A21: =IF('Výsledková listina (2)'!D20<>"",A20+1,"") ->  | C21: ='Startovní listina'!H42 -> G | D21: ='Startovní listina'!B42 -> 38 | E21: ='Startovní listina'!C42 -> Komárková | F21: ='Startovní listina'!F42 -> Olešnice na Mor. | G21: ='Startovní listina'!G42 -> SDH Bolešín | H21: ='Startovní listina'!#REF! ->  | I21: 02:49:46
A22: =IF('Výsledková listina (2)'!D22<>"",A21+1,"") ->  | C22: ='Startovní listina'!H79 ->  | D22: ='Startovní listina'!B79 ->  | E22: ='Startovní listina'!C79 ->  | F22: ='Startovní listina'!F79 ->  | G22: ='Startovní listina'!G79 ->  | H22: ='Startovní listina'!#REF! ->  | I22: 02:13:29
A23: =IF('Výsledková listina (2)'!D21<>"",A22+1,"") ->  | C23: ='Startovní listina'!H15 -> A | D23: ='Startovní listina'!B15 -> 11 | E23: ='Startovní listina'!C15 -> Vrba | F23: ='Startovní listina'!F15 -> Bystré | G23: ='Startovní listina'!G15 -> 0 | H23: ='Startovní listina'!#REF! ->  | I23: 02:01:16
A24: =IF('Výsledková listina (2)'!D23<>"",A23+1,"") ->  | C24: ='Startovní listina'!H91 ->  | D24: ='Startovní listina'!B91 ->  | E24: ='Startovní listina'!C91 ->  | F24: ='Startovní listina'!F91 ->  | G24: ='Startovní listina'!G91 ->  | H24: ='Startovní listina'!#REF! ->  | I24: 02:30:31
A25: =IF('Výsledková listina (2)'!D24<>"",A24+1,"") ->  | C25: ='Startovní listina'!H74 ->  | D25: ='Startovní listina'!B74 ->  | E25: ='Startovní listina'!C74 ->  | F25: ='Startovní listina'!F74 ->  | G25: ='Startovní listina'!G74 ->  | H25: ='Startovní listina'!#REF! ->  | I25: 02:11:00
A26: =IF('Výsledková listina (2)'!D25<>"",A25+1,"") ->  | C26: ='Startovní listina'!H44 -> A | D26: ='Startovní listina'!B44 -> 40 | E26: ='Startovní listina'!C44 -> Lenhart | F26: ='Startovní listina'!F44 -> Přerov | G26: ='Startovní listina'!G44 -> TJ Liga 100 Olomouc | H26: ='Startovní listina'!#REF! ->  | I26: 03:10:37
A27: =IF('Výsledková listina (2)'!D26<>"",A26+1,"") ->  | C27: ='Startovní listina'!H84 ->  | D27: ='Startovní listina'!B84 ->  | E27: ='Startovní listina'!C84 ->  | F27: ='Startovní listina'!F84 ->  | G27: ='Startovní listina'!G84 ->  | H27: ='Startovní listina'!#REF! ->  | I27: 02:28:22
A28: =IF('Výsledková listina (2)'!D27<>"",A27+1,"") ->  | C28: ='Startovní listina'!H87 ->  | D28: ='Startovní listina'!B87 ->  | E28: ='Startovní listina'!C87 ->  | F28: ='Startovní listina'!F87 ->  | G28: ='Startovní listina'!G87 ->  | H28: ='Startovní listina'!#REF! ->  | I28: 02:29:21
A29: =IF('Výsledková listina (2)'!D28<>"",A28+1,"") ->  | C29: ='Startovní listina'!H75 ->  | D29: ='Startovní listina'!B75 ->  | E29: ='Startovní listina'!C75 ->  | F29: ='Startovní listina'!F75 ->  | G29: ='Startovní listina'!G75 ->  | H29: ='Startovní listina'!#REF! ->  | I29: 03:01:37
A30: =IF('Výsledková listina (2)'!D29<>"",A29+1,"") ->  | C30: ='Startovní listina'!H18 -> C | D30: ='Startovní listina'!B18 -> 14 | E30: ='Startovní listina'!C18 -> Ožana | F30: ='Startovní listina'!F18 -> Nové Město na Moravě | G30: ='Startovní listina'!G18 -> TJ Nové Město na Moravě | H30: ='Startovní listina'!#REF! -> 
A31: =IF('Výsledková listina (2)'!D30<>"",A30+1,"") ->  | C31: ='Startovní listina'!H41 -> F | D31: ='Startovní listina'!B41 -> 37 | E31: ='Startovní listina'!C41 -> Tomková | F31: ='Startovní listina'!F41 -> Letovice | G31: ='Startovní listina'!G41 -> Letovice | H31: ='Startovní listina'!#REF! ->  | I31: 02:16:46
A32: =IF('Výsledková listina (2)'!D31<>"",A31+1,"") ->  | C32: ='Startovní listina'!H23 -> C | D32: ='Startovní listina'!B23 -> 19 | E32: ='Startovní listina'!C23 -> Hýbl | F32: ='Startovní listina'!F23 -> Hrušovany u Brna | G32: ='Startovní listina'!G23 -> Hrušovany u Brna | H32: ='Startovní listina'!#REF! -> 
A33: =IF('Výsledková listina (2)'!D32<>"",A32+1,"") ->  | C33: ='Startovní listina'!H57 ->  | D33: ='Startovní listina'!B57 ->  | E33: ='Startovní listina'!C57 ->  | F33: ='Startovní listina'!F57 ->  | G33: ='Startovní listina'!G57 ->  | H33: ='Startovní listina'!#REF! ->  | I33: 02:42:39
A34: =IF('Výsledková listina (2)'!D33<>"",A33+1,"") ->  | C34: ='Startovní listina'!H40 -> A | D34: ='Startovní listina'!B40 -> 36 | E34: ='Startovní listina'!C40 -> Hradecký | F34: ='Startovní listina'!F40 -> Skuteč | G34: ='Startovní listina'!G40 -> 0 | H34: ='Startovní listina'!#REF! ->  | I34: 02:10:10
A35: =IF('Výsledková listina (2)'!D34<>"",A34+1,"") ->  | C35: ='Startovní listina'!H9 -> A | D35: ='Startovní listina'!B9 -> 5 | E35: ='Startovní listina'!C9 -> Hrdina | F35: ='Startovní listina'!F9 -> Rosice | G35: ='Startovní listina'!G9 -> AC Moravská Slavia Brno | H35: ='Startovní listina'!#REF! ->  | I35: 02:05:55
A36: =IF('Výsledková listina (2)'!D35<>"",A35+1,"") ->  | C36: ='Startovní listina'!H77 ->  | D36: ='Startovní listina'!B77 ->  | E36: ='Startovní listina'!C77 ->  | F36: ='Startovní listina'!F77 ->  | G36: ='Startovní listina'!G77 ->  | H36: ='Startovní listina'!#REF! -> 
A37: =IF('Výsledková listina (2)'!D36<>"",A36+1,"") ->  | C37: ='Startovní listina'!H81 ->  | D37: ='Startovní listina'!B81 ->  | E37: ='Startovní listina'!C81 ->  | F37: ='Startovní listina'!F81 ->  | G37: ='Startovní listina'!G81 ->  | H37: ='Startovní listina'!#REF! ->  | I37: 03:24:59
A38: =IF('Výsledková listina (2)'!D37<>"",A37+1,"") ->  | C38: ='Startovní listina'!H54 ->  | D38: ='Startovní listina'!B54 ->  | E38: ='Startovní listina'!C54 ->  | F38: ='Startovní listina'!F54 ->  | G38: ='Startovní listina'!G54 ->  | H38: ='Startovní listina'!#REF! ->  | I38: 02:37:38
A39: =IF('Výsledková listina (2)'!D38<>"",A38+1,"") ->  | C39: ='Startovní listina'!H94 ->  | D39: ='Startovní listina'!B94 ->  | E39: ='Startovní listina'!C94 ->  | F39: ='Startovní listina'!F94 ->  | G39: ='Startovní listina'!G94 ->  | H39: ='Startovní listina'!#REF! ->  | I39: 03:13:50
A40: =IF('Výsledková listina (2)'!D39<>"",A39+1,"") ->  | C40: ='Startovní listina'!H20 -> G | D40: ='Startovní listina'!B20 -> 16 | E40: ='Startovní listina'!C20 -> Kuncová | F40: ='Startovní listina'!F20 -> Rožná | G40: ='Startovní listina'!G20 -> 0 | H40: ='Startovní listina'!#REF! ->  | I40: 02:43:21
A41: =IF('Výsledková listina (2)'!D40<>"",A40+1,"") ->  | C41: ='Startovní listina'!H19 -> F | D41: ='Startovní listina'!B19 -> 15 | E41: ='Startovní listina'!C19 -> Trefilová | F41: ='Startovní listina'!F19 -> Vír | G41: ='Startovní listina'!G19 -> 0 | H41: ='Startovní listina'!#REF! ->  | I41: 03:01:04
A42: =IF('Výsledková listina (2)'!D41<>"",A41+1,"") ->  | C42: ='Startovní listina'!H69 ->  | D42: ='Startovní listina'!B69 ->  | E42: ='Startovní listina'!C69 ->  | F42: ='Startovní listina'!F69 ->  | G42: ='Startovní listina'!G69 ->  | H42: ='Startovní listina'!#REF! ->  | I42: DNF
A43: =IF('Výsledková listina (2)'!D42<>"",A42+1,"") ->  | C43: ='Startovní listina'!H38 -> A | D43: ='Startovní listina'!B38 -> 34 | E43: ='Startovní listina'!C38 -> Oberreiter | F43: ='Startovní listina'!F38 -> Polná | G43: ='Startovní listina'!G38 -> 0 | H43: ='Startovní listina'!#REF! ->  | I43: 02:26:38
A44: =IF('Výsledková listina (2)'!D43<>"",A43+1,"") ->  | C44: ='Startovní listina'!H80 ->  | D44: ='Startovní listina'!B80 ->  | E44: ='Startovní listina'!C80 ->  | F44: ='Startovní listina'!F80 ->  | G44: ='Startovní listina'!G80 ->  | H44: ='Startovní listina'!#REF! ->  | I44: 02:45:32
A45: =IF('Výsledková listina (2)'!D44<>"",A44+1,"") ->  | C45: ='Startovní listina'!H53 ->  | D45: ='Startovní listina'!B53 ->  | E45: ='Startovní listina'!C53 ->  | F45: ='Startovní listina'!F53 ->  | G45: ='Startovní listina'!G53 ->  | H45: ='Startovní listina'!#REF! ->  | I45: 02:46:25
A46: =IF('Výsledková listina (2)'!D45<>"",A45+1,"") ->  | C46: ='Startovní listina'!H11 -> E | D46: ='Startovní listina'!B11 -> 7 | E46: ='Startovní listina'!C11 -> Holý | F46: ='Startovní listina'!F11 -> 0 | G46: ='Startovní listina'!G11 -> AC Moravská Slavia | H46: ='Startovní listina'!#REF! ->  | I46: 02:45:37
A47: =IF('Výsledková listina (2)'!D46<>"",A46+1,"") ->  | C47: ='Startovní listina'!H89 ->  | D47: ='Startovní listina'!B89 ->  | E47: ='Startovní listina'!C89 ->  | F47: ='Startovní listina'!F89 ->  | G47: ='Startovní listina'!G89 ->  | H47: ='Startovní listina'!#REF! ->  | I47: 02:23:07
A48: =IF('Výsledková listina (2)'!D47<>"",A47+1,"") ->  | C48: ='Startovní listina'!H93 ->  | D48: ='Startovní listina'!B93 ->  | E48: ='Startovní listina'!C93 ->  | F48: ='Startovní listina'!F93 ->  | G48: ='Startovní listina'!G93 ->  | H48: ='Startovní listina'!#REF! -> 
A49: =IF('Výsledková listina (2)'!D48<>"",A48+1,"") ->  | C49: ='Startovní listina'!H78 ->  | D49: ='Startovní listina'!B78 ->  | E49: ='Startovní listina'!C78 ->  | F49: ='Startovní listina'!F78 ->  | G49: ='Startovní listina'!G78 ->  | H49: ='Startovní listina'!#REF! ->  | I49: 02:49:04
A50: =IF('Výsledková listina (2)'!D49<>"",A49+1,"") ->  | C50: ='Startovní listina'!H35 -> C | D50: ='Startovní listina'!B35 -> 31 | E50: ='Startovní listina'!C35 -> Žák | F50: ='Startovní listina'!F35 -> Stříbrné Hory | G50: ='Startovní listina'!G35 -> 0 | H50: ='Startovní listina'!#REF! ->  | I50: 02:31:40
A51: =IF('Výsledková listina (2)'!D50<>"",A50+1,"") ->  | C51: ='Startovní listina'!H36 -> G | D51: ='Startovní listina'!B36 -> 32 | E51: ='Startovní listina'!C36 -> Klinecká | F51: ='Startovní listina'!F36 -> Hlinsko | G51: ='Startovní listina'!G36 -> MK Hlinsko | H51: ='Startovní listina'!#REF! -> 
A52: =IF('Výsledková listina (2)'!D51<>"",A51+1,"") ->  | C52: ='Startovní listina'!H29 -> A | D52: ='Startovní listina'!B29 -> 25 | E52: ='Startovní listina'!C29 -> Košek | F52: ='Startovní listina'!F29 -> Brno | G52: ='Startovní listina'!G29 -> 0 | H52: ='Startovní listina'!#REF! ->  | I52: 02:19:07
A53: =IF('Výsledková listina (2)'!D52<>"",A52+1,"") ->  | C53: ='Startovní listina'!H86 ->  | D53: ='Startovní listina'!B86 ->  | E53: ='Startovní listina'!C86 ->  | F53: ='Startovní listina'!F86 ->  | G53: ='Startovní listina'!G86 ->  | H53: ='Startovní listina'!#REF! ->  | I53: 02:21:00
A54: =IF('Výsledková listina (2)'!D53<>"",A53+1,"") ->  | C54: ='Startovní listina'!H17 -> A | D54: ='Startovní listina'!B17 -> 13 | E54: ='Startovní listina'!C17 -> Koutský | F54: ='Startovní listina'!F17 -> 0 | G54: ='Startovní listina'!G17 -> Ledová stěna Vír | H54: ='Startovní listina'!#REF! ->  | I54: 03:06:22
A55: =IF('Výsledková listina (2)'!D54<>"",A54+1,"") ->  | C55: ='Startovní listina'!H37 -> B | D55: ='Startovní listina'!B37 -> 33 | E55: ='Startovní listina'!C37 -> Pohanka | F55: ='Startovní listina'!F37 -> 0 | G55: ='Startovní listina'!G37 -> Track & Field Brno | H55: ='Startovní listina'!#REF! ->  | I55: 02:32:28
A56: =IF('Výsledková listina (2)'!D55<>"",A55+1,"") ->  | C56: ='Startovní listina'!H32 -> B | D56: ='Startovní listina'!B32 -> 28 | E56: ='Startovní listina'!C32 -> Kupka | F56: ='Startovní listina'!F32 -> Lukovany | G56: ='Startovní listina'!G32 -> 0 | H56: ='Startovní listina'!#REF! ->  | I56: 02:59:30
A57: =IF('Výsledková listina (2)'!D56<>"",A56+1,"") ->  | C57: ='Startovní listina'!H58 ->  | D57: ='Startovní listina'!B58 ->  | E57: ='Startovní listina'!C58 ->  | F57: ='Startovní listina'!F58 ->  | G57: ='Startovní listina'!G58 ->  | H57: ='Startovní listina'!#REF! ->  | I57: 02:07:54
A58: =IF('Výsledková listina (2)'!D57<>"",A57+1,"") ->  | C58: ='Startovní listina'!H26 -> C | D58: ='Startovní listina'!B26 -> 22 | E58: ='Startovní listina'!C26 -> Svoboda | F58: ='Startovní listina'!F26 -> Brno | G58: ='Startovní listina'!G26 -> AC Moravská Slavia Brno | H58: ='Startovní listina'!#REF! ->  | I58: 03:06:38
A59: =IF('Výsledková listina (2)'!D58<>"",A58+1,"") ->  | C59: ='Startovní listina'!H52 ->  | D59: ='Startovní listina'!B52 ->  | E59: ='Startovní listina'!C52 ->  | F59: ='Startovní listina'!F52 ->  | G59: ='Startovní listina'!G52 ->  | H59: ='Startovní listina'!#REF! ->  | I59: 03:14:48
A60: =IF('Výsledková listina (2)'!D59<>"",A59+1,"") ->  | C60: ='Startovní listina'!H66 ->  | D60: ='Startovní listina'!B66 ->  | E60: ='Startovní listina'!C66 ->  | F60: ='Startovní listina'!F66 ->  | G60: ='Startovní listina'!G66 ->  | H60: ='Startovní listina'!#REF! ->  | I60: 02:46:48
A61: =IF('Výsledková listina (2)'!D60<>"",A60+1,"") ->  | C61: ='Startovní listina'!H31 -> A | D61: ='Startovní listina'!B31 -> 27 | E61: ='Startovní listina'!C31 -> Kohut | F61: ='Startovní listina'!F31 -> 0 | G61: ='Startovní listina'!G31 -> Univerzita Brno | H61: ='Startovní listina'!#REF! ->  | I61: 02:38:44
A62: =IF('Výsledková listina (2)'!D61<>"",A61+1,"") ->  | C62: ='Startovní listina'!H92 ->  | D62: ='Startovní listina'!B92 ->  | E62: ='Startovní listina'!C92 ->  | F62: ='Startovní listina'!F92 ->  | G62: ='Startovní listina'!G92 ->  | H62: ='Startovní listina'!#REF! ->  | I62: 03:04:27
A63: =IF('Výsledková listina (2)'!D62<>"",A62+1,"") ->  | C63: ='Startovní listina'!H45 -> F | D63: ='Startovní listina'!B45 -> 41 | E63: ='Startovní listina'!C45 -> Matějíková | F63: ='Startovní listina'!F45 -> 0 | G63: ='Startovní listina'!G45 -> TJ Liga 100 Olomouc | H63: ='Startovní listina'!#REF! ->  | I63: 03:21:11
A64: =IF('Výsledková listina (2)'!D63<>"",A63+1,"") ->  | C64: ='Startovní listina'!H34 -> C | D64: ='Startovní listina'!B34 -> 30 | E64: ='Startovní listina'!C34 -> Dvořáček | F64: ='Startovní listina'!F34 -> 0 | G64: ='Startovní listina'!G34 -> Elite Sport Max Training | H64: ='Startovní listina'!#REF! ->  | I64: 03:00:59
A65: =IF('Výsledková listina (2)'!D64<>"",A64+1,"") ->  | C65: ='Startovní listina'!H8 -> F | D65: ='Startovní listina'!B8 -> 4 | E65: ='Startovní listina'!C8 -> Pešáková | F65: ='Startovní listina'!F8 -> Tetčice | G65: ='Startovní listina'!G8 -> AC Racers | H65: ='Startovní listina'!#REF! ->  | I65: 03:30:08
A66: =IF('Výsledková listina (2)'!D65<>"",A65+1,"") ->  | C66: ='Startovní listina'!H73 ->  | D66: ='Startovní listina'!B73 ->  | E66: ='Startovní listina'!C73 ->  | F66: ='Startovní listina'!F73 ->  | G66: ='Startovní listina'!G73 ->  | H66: ='Startovní listina'!#REF! ->  | I66: 03:01:32
A67: =IF('Výsledková listina (2)'!D66<>"",A66+1,"") ->  | C67: ='Startovní listina'!H27 -> C | D67: ='Startovní listina'!B27 -> 23 | E67: ='Startovní listina'!C27 -> Šimunek | F67: ='Startovní listina'!F27 -> Modřice | G67: ='Startovní listina'!G27 -> Modřice | H67: ='Startovní listina'!#REF! ->  | I67: 02:05:07
A68: =IF('Výsledková listina (2)'!D67<>"",A67+1,"") ->  | C68: ='Startovní listina'!H70 ->  | D68: ='Startovní listina'!B70 ->  | E68: ='Startovní listina'!C70 ->  | F68: ='Startovní listina'!F70 ->  | G68: ='Startovní listina'!G70 ->  | H68: ='Startovní listina'!#REF! ->  | I68: 02:57:35
A69: =IF('Výsledková listina (2)'!D68<>"",A68+1,"") ->  | C69: ='Startovní listina'!H51 ->  | D69: ='Startovní listina'!B51 ->  | E69: ='Startovní listina'!C51 ->  | F69: ='Startovní listina'!F51 ->  | G69: ='Startovní listina'!G51 ->  | H69: ='Startovní listina'!#REF! ->  | I69: 02:19:36
A70: =IF('Výsledková listina (2)'!D69<>"",A69+1,"") ->  | C70: ='Startovní listina'!H98 ->  | D70: ='Startovní listina'!B98 ->  | E70: ='Startovní listina'!C98 ->  | F70: ='Startovní listina'!F98 ->  | G70: ='Startovní listina'!G98 ->  | H70: ='Startovní listina'!#REF! ->  | I70: 01:54:34
A71: =IF('Výsledková listina (2)'!D70<>"",A70+1,"") ->  | C71: ='Startovní listina'!H50 ->  | D71: ='Startovní listina'!B50 ->  | E71: ='Startovní listina'!C50 ->  | F71: ='Startovní listina'!F50 ->  | G71: ='Startovní listina'!G50 ->  | H71: ='Startovní listina'!#REF! ->  | I71: 02:21:57
A72: =IF('Výsledková listina (2)'!D71<>"",A71+1,"") ->  | C72: ='Startovní listina'!H21 -> C | D72: ='Startovní listina'!B21 -> 17 | E72: ='Startovní listina'!C21 -> Krátký | F72: ='Startovní listina'!F21 -> Vysoká nad Labem | G72: ='Startovní listina'!G21 -> Hvězda Pardubice | H72: ='Startovní listina'!#REF! -> 
A73: =IF('Výsledková listina (2)'!D72<>"",A72+1,"") ->  | C73: ='Startovní listina'!H6 -> B | D73: ='Startovní listina'!B6 -> 2 | E73: ='Startovní listina'!C6 -> Kuneš | F73: ='Startovní listina'!F6 -> Tišnov | G73: ='Startovní listina'!G6 -> EURUNNER | H73: ='Startovní listina'!#REF! ->  | I73: 02:40:25
A74: =IF('Výsledková listina (2)'!D73<>"",A73+1,"") ->  | C74: ='Startovní listina'!H48 -> B | D74: ='Startovní listina'!B48 -> 44 | E74: ='Startovní listina'!C48 -> Kratochvíl | F74: ='Startovní listina'!F48 -> Moravany | G74: ='Startovní listina'!G48 -> SDH Hluboké | H74: ='Startovní listina'!#REF! ->  | I74: 02:21:35
A75: =IF('Výsledková listina (2)'!D74<>"",A74+1,"") ->  | C75: ='Startovní listina'!H97 ->  | D75: ='Startovní listina'!B97 ->  | E75: ='Startovní listina'!C97 ->  | F75: ='Startovní listina'!F97 ->  | G75: ='Startovní listina'!G97 ->  | H75: ='Startovní listina'!#REF! ->  | I75: 03:14:54
A76: =IF('Výsledková listina (2)'!D75<>"",A75+1,"") ->  | C76: ='Startovní listina'!H22 -> D | D76: ='Startovní listina'!B22 -> 18 | E76: ='Startovní listina'!C22 -> Mareš | F76: ='Startovní listina'!F22 -> Brno | G76: ='Startovní listina'!G22 -> Posilovna Průvan Brno | H76: ='Startovní listina'!#REF! ->  | I76: 02:25:09
A77: =IF('Výsledková listina (2)'!D76<>"",A76+1,"") ->  | C77: ='Startovní listina'!H82 ->  | D77: ='Startovní listina'!B82 ->  | E77: ='Startovní listina'!C82 ->  | F77: ='Startovní listina'!F82 ->  | G77: ='Startovní listina'!G82 ->  | H77: ='Startovní listina'!#REF! ->  | I77: 02:50:59
A78: =IF('Výsledková listina (2)'!D77<>"",A77+1,"") ->  | C78: ='Startovní listina'!H96 ->  | D78: ='Startovní listina'!B96 ->  | E78: ='Startovní listina'!C96 ->  | F78: ='Startovní listina'!F96 ->  | G78: ='Startovní listina'!G96 ->  | H78: ='Startovní listina'!#REF! ->  | I78: 03:12:26
A79: =IF('Výsledková listina (2)'!D78<>"",A78+1,"") ->  | C79: ='Startovní listina'!H30 -> A | D79: ='Startovní listina'!B30 -> 26 | E79: ='Startovní listina'!C30 -> Hakl | F79: ='Startovní listina'!F30 -> Žďár nad Sázavou | G79: ='Startovní listina'!G30 -> SK Tri Cyklochlubna | H79: ='Startovní listina'!#REF! ->  | I79: 02:37:53
A80: =IF('Výsledková listina (2)'!D79<>"",A79+1,"") ->  | C80: ='Startovní listina'!H64 ->  | D80: ='Startovní listina'!B64 ->  | E80: ='Startovní listina'!C64 ->  | F80: ='Startovní listina'!F64 ->  | G80: ='Startovní listina'!G64 ->  | H80: ='Startovní listina'!#REF! ->  | I80: 03:18:47
A81: =IF('Výsledková listina (2)'!D80<>"",A80+1,"") ->  | C81: ='Startovní listina'!H39 -> B | D81: ='Startovní listina'!B39 -> 35 | E81: ='Startovní listina'!C39 -> Vintrlík | F81: ='Startovní listina'!F39 -> Křepice | G81: ='Startovní listina'!G39 -> Triatlon Křepice | H81: ='Startovní listina'!#REF! ->  | I81: 02:07:35
A82: =IF('Výsledková listina (2)'!D81<>"",A81+1,"") ->  | C82: ='Startovní listina'!H56 ->  | D82: ='Startovní listina'!B56 ->  | E82: ='Startovní listina'!C56 ->  | F82: ='Startovní listina'!F56 ->  | G82: ='Startovní listina'!G56 ->  | H82: ='Startovní listina'!#REF! ->  | I82: 02:24:19
A83: =IF('Výsledková listina (2)'!D82<>"",A82+1,"") ->  | C83: ='Startovní listina'!H83 ->  | D83: ='Startovní listina'!B83 ->  | E83: ='Startovní listina'!C83 ->  | F83: ='Startovní listina'!F83 ->  | G83: ='Startovní listina'!G83 ->  | H83: ='Startovní listina'!#REF! ->  | I83: 02:31:15
A84: =IF('Výsledková listina (2)'!D83<>"",A83+1,"") ->  | C84: ='Startovní listina'!H61 ->  | D84: ='Startovní listina'!B61 ->  | E84: ='Startovní listina'!C61 ->  | F84: ='Startovní listina'!F61 ->  | G84: ='Startovní listina'!G61 ->  | H84: ='Startovní listina'!#REF! ->  | I84: 02:27:55
A85: =IF('Výsledková listina (2)'!D84<>"",A84+1,"") ->  | C85: ='Startovní listina'!H95 ->  | D85: ='Startovní listina'!B95 ->  | E85: ='Startovní listina'!C95 ->  | F85: ='Startovní listina'!F95 ->  | G85: ='Startovní listina'!G95 ->  | H85: ='Startovní listina'!#REF! ->  | I85: 02:34:44
A86: =IF('Výsledková listina (2)'!D85<>"",A85+1,"") ->  | C86: ='Startovní listina'!H65 ->  | D86: ='Startovní listina'!B65 ->  | E86: ='Startovní listina'!C65 ->  | F86: ='Startovní listina'!F65 ->  | G86: ='Startovní listina'!G65 ->  | H86: ='Startovní listina'!#REF! ->  | I86: 02:58:55
A87: =IF('Výsledková listina (2)'!D86<>"",A86+1,"") ->  | C87: ='Startovní listina'!H43 -> B | D87: ='Startovní listina'!B43 -> 39 | E87: ='Startovní listina'!C43 -> Konečný | F87: ='Startovní listina'!F43 -> Kuřim | G87: ='Startovní listina'!G43 -> 0 | H87: ='Startovní listina'!#REF! ->  | I87: 02:32:49
A88: =IF('Výsledková listina (2)'!D87<>"",A87+1,"") ->  | C88: ='Startovní listina'!H33 -> A | D88: ='Startovní listina'!B33 -> 29 | E88: ='Startovní listina'!C33 -> Šebánek | F88: ='Startovní listina'!F33 -> Rájec | G88: ='Startovní listina'!G33 -> 0 | H88: ='Startovní listina'!#REF! -> 
A89: =IF('Výsledková listina (2)'!D88<>"",A88+1,"") ->  | C89: ='Startovní listina'!H76 ->  | D89: ='Startovní listina'!B76 ->  | E89: ='Startovní listina'!C76 ->  | F89: ='Startovní listina'!F76 ->  | G89: ='Startovní listina'!G76 ->  | H89: ='Startovní listina'!#REF! ->  | I89: 03:18:56
A90: =IF('Výsledková listina (2)'!D89<>"",A89+1,"") ->  | C90: ='Startovní listina'!H12 -> B | D90: ='Startovní listina'!B12 -> 8 | E90: ='Startovní listina'!C12 -> Faja | F90: ='Startovní listina'!F12 -> Brno | G90: ='Startovní listina'!G12 -> 0 | H90: ='Startovní listina'!#REF! ->  | I90: 02:05:40
A91: =IF('Výsledková listina (2)'!D90<>"",A90+1,"") ->  | C91: ='Startovní listina'!H24 -> B | D91: ='Startovní listina'!B24 -> 20 | E91: ='Startovní listina'!C24 -> Kropáček | F91: ='Startovní listina'!F24 -> Brno | G91: ='Startovní listina'!G24 -> 0 | H91: ='Startovní listina'!#REF! ->  | I91: 02:08:44
A92: =IF('Výsledková listina (2)'!D91<>"",A91+1,"") ->  | C92: ='Startovní listina'!H16 -> H | D92: ='Startovní listina'!B16 -> 12 | E92: ='Startovní listina'!C16 -> Breburdová | F92: ='Startovní listina'!F16 -> 19800 Praha 9, Tálinská 999 | G92: ='Startovní listina'!G16 -> Maraton klub Kladno | H92: ='Startovní listina'!#REF! -> 
A93: =IF('Výsledková listina (2)'!D92<>"",A92+1,"") ->  | C93: ='Startovní listina'!H88 ->  | D93: ='Startovní listina'!B88 ->  | E93: ='Startovní listina'!C88 ->  | F93: ='Startovní listina'!F88 ->  | G93: ='Startovní listina'!G88 ->  | H93: ='Startovní listina'!#REF! ->  | I93: 02:53:55
A94: =IF('Výsledková listina (2)'!D93<>"",A93+1,"") ->  | C94: ='Startovní listina'!H90 ->  | D94: ='Startovní listina'!B90 ->  | E94: ='Startovní listina'!C90 ->  | F94: ='Startovní listina'!F90 ->  | G94: ='Startovní listina'!G90 ->  | H94: ='Startovní listina'!#REF! ->  | I94: 02:55:52
A95: =IF('Výsledková listina (2)'!D94<>"",A94+1,"") ->  | C95: ='Startovní listina'!H25 -> A | D95: ='Startovní listina'!B25 -> 21 | E95: ='Startovní listina'!C25 -> Toman | F95: ='Startovní listina'!F25 -> Litomysl | G95: ='Startovní listina'!G25 -> AFK Kornice | H95: ='Startovní listina'!#REF! ->  | I95: 03:04:10
A96: =IF('Výsledková listina (2)'!D95<>"",A95+1,"") ->  | C96: ='Startovní listina'!H72 ->  | D96: ='Startovní listina'!B72 ->  | E96: ='Startovní listina'!C72 ->  | F96: ='Startovní listina'!F72 ->  | G96: ='Startovní listina'!G72 ->  | H96: ='Startovní listina'!#REF! -> 
A97: =IF('Výsledková listina (2)'!D96<>"",A96+1,"") ->  | C97: ='Startovní listina'!H13 -> A | D97: ='Startovní listina'!B13 -> 9 | E97: ='Startovní listina'!C13 -> Labedz | F97: ='Startovní listina'!F13 -> Svinošice | G97: ='Startovní listina'!G13 -> 0 | H97: ='Startovní listina'!#REF! ->  | I97: 02:40:16
A98: =IF('Výsledková listina (2)'!D97<>"",A97+1,"") ->  | C98: ='Startovní listina'!H10 -> B | D98: ='Startovní listina'!B10 -> 6 | E98: ='Startovní listina'!C10 -> Šerák | F98: ='Startovní listina'!F10 -> 0 | G98: ='Startovní listina'!G10 -> Sokol Bílovice n. Svit. | H98: ='Startovní listina'!#REF! ->  | I98: 03:00:21
A99: =IF('Výsledková listina (2)'!D98<>"",A98+1,"") ->  | C99: ='Startovní listina'!H99 ->  | D99: ='Startovní listina'!B99 ->  | E99: ='Startovní listina'!C99 ->  | F99: ='Startovní listina'!F99 ->  | G99: ='Startovní listina'!G99 ->  | H99: ='Startovní listina'!#REF! -> 
A100: =IF('Výsledková listina (2)'!D99<>"",A99+1,"") ->  | C100: ='Startovní listina'!H100 ->  | D100: ='Startovní listina'!B100 ->  | E100: ='Startovní listina'!C100 ->  | F100: ='Startovní listina'!F100 ->  | G100: ='Startovní listina'!G100 ->  | H100: ='Startovní listina'!#REF! -> 
A101: =IF('Výsledková listina (2)'!D100<>"",A100+1,"") ->  | C101: ='Startovní listina'!H101 ->  | D101: ='Startovní listina'!B101 ->  | E101: ='Startovní listina'!C101 ->  | F101: ='Startovní listina'!F101 ->  | G101: ='Startovní listina'!G101 ->  | H101: ='Startovní listina'!#REF! -> 
A102: =IF('Výsledková listina (2)'!D101<>"",A101+1,"") ->  | C102: ='Startovní listina'!H102 ->  | D102: ='Startovní listina'!B102 ->  | E102: ='Startovní listina'!C102 ->  | F102: ='Startovní listina'!F102 ->  | G102: ='Startovní listina'!G102 ->  | H102: ='Startovní listina'!#REF! -> 
A103: =IF('Výsledková listina (2)'!D102<>"",A102+1,"") ->  | C103: ='Startovní listina'!H103 ->  | D103: ='Startovní listina'!B103 ->  | E103: ='Startovní listina'!C103 ->  | F103: ='Startovní listina'!F103 ->  | G103: ='Startovní listina'!G103 ->  | H103: ='Startovní listina'!#REF! -> 
